{"text_format":"1","workbook":"xlsx","n_sheets":16,"sheets":["BOISSON","CLUB","DONNEES","FICHE-JOUEUR","Saisie des joueurs","GRAPHIQUE 32J","GRAPHIQUE 28J","Distances","GRAPHIQUE 16J","Heures convocations 16J","GRAPHIQUE 20J","12x4","12x3","Heures convocations 20J","GRAPHIQUE 24J","Heures convocations 24J"],"not_rendered":{"charts":0,"images":3,"macros":1,"external_links":1,"defined_names":14,"comments":1,"pivot_tables":0},"unopened":[],"bounds":{"document_bytes":16777216,"sheet_cells":100000,"rows_first":2000,"rows_last":500,"rows_between":2000,"halvings":0,"cell_chars":16384,"cell_head_chars":4096},"cells_cut":0,"cells_raw":0,"read":"whole","date_system":"1900"}

{"sheet":"BOISSON","index":0,"n_rows":26,"n_cols":7,"rows_kept":26,"cut":false,"hidden":false,"merged":[[0,1,0,6]]}
[null,"BILLARD CLUB"]
["N°","Nom - Prénom","EAU","BOISSONS","REPAS","TOTAL","CLUB"]
[{"$f":"ROW(A1)","v":1},{"$f":"'Saisie des joueurs'!B18","v":0}]
[{"$f":"ROW(A2)","v":2},{"$f":"'Saisie des joueurs'!B19","v":0}]
[3,{"$f":"'Saisie des joueurs'!B20","v":0}]
[4,{"$f":"'Saisie des joueurs'!B21","v":0}]
[5,{"$f":"'Saisie des joueurs'!B22","v":0}]
[6,{"$f":"'Saisie des joueurs'!B23","v":0}]
[7,{"$f":"'Saisie des joueurs'!B24","v":0}]
[8,{"$f":"'Saisie des joueurs'!B25","v":0}]
[9,{"$f":"'Saisie des joueurs'!B26","v":0}]
[10,{"$f":"'Saisie des joueurs'!B27","v":0}]
[11,{"$f":"'Saisie des joueurs'!B28","v":0}]
[12,{"$f":"'Saisie des joueurs'!B29","v":0}]
[13,{"$f":"'Saisie des joueurs'!B30","v":0}]
[14,{"$f":"'Saisie des joueurs'!B31","v":0}]
[15,{"$f":"'Saisie des joueurs'!B32","v":0}]
[16,{"$f":"'Saisie des joueurs'!B33","v":0}]
[17,{"$f":"'Saisie des joueurs'!B34","v":0}]
[18,{"$f":"'Saisie des joueurs'!B35","v":0}]
[{"$f":"ROW(A19)","v":19},{"$f":"'Saisie des joueurs'!B36","v":0}]
[20,{"$f":"'Saisie des joueurs'!B37","v":0}]
[21,{"$f":"'Saisie des joueurs'!B38","v":0}]
[22,{"$f":"'Saisie des joueurs'!B39","v":0}]
[23,{"$f":"'Saisie des joueurs'!B40","v":0}]
[24,{"$f":"'Saisie des joueurs'!B41","v":0}]

{"sheet":"CLUB","index":1,"n_rows":27,"n_cols":5,"rows_kept":27,"cut":false,"hidden":true,"merged":[[0,0,0,4]]}
["CLUB AFFILIE LMB\n"]
["CLUB","ADRESSE 1","ADRESSE 2","CODE POSTAL","VILLE"]
["BILLARD CLUB DE ST RAPHAEL","90 RUE THOMAS EDISON","LA PALUD",83600,"FREJUS"]
["ACADEMIE DE BILLARD DE BOLLENE","GROUPE SCOLAIRE PIERRE MARIE CURIE",null,84500,"BOLLENE"]
["ACADEMIE DE BILLARD DE MENTON","Académie municipale de billard","Allée du Louvre Salon du Louvre",6500,"MENTON"]
["BILLARD CLUB  AIX EN PROVENCE","RUE PIERRE DE COUBERTIN",null,13100,"AIX EN PROVENCE"]
["BILLARD CLUB AMATEUR ROGNAC","60 BOULEVARD JEAN JAURES",null,13340,"ROGNAC"]
["BILLARD CLUB AVIGNONNAIS","12 RUE BONAPARTE","MAISON DU COMBATTANT",84000,"AVIGNON"]
["BILLARD CLUB BERROIS","RUE MARCEL PAGNOL",null,13130,"BERRE L ETANG"]
["BILLARD CLUB CARPENTRASSIEN","264 BOULEVARD ALBIN DURAND",null,84200,"CARPENTRAS"]
["BILLARD CLUB CAVAILLONNAIS","CERCLE DE L INDEPENDANCE","97 COURS VICTOR HUGO",84300,"CAVAILLON"]
["BILLARD CLUB CLUB ARLESIEN","1 RUE HONORE CLAIR",null,13200,"ARLES"]
["BILLARD CLUB DE LA BAIE CAVALAIRE","SALLE OTTAVI","AVENUE DES ALLIES",83240,"CAVALAIRE SUR MER"]
["ACADEMIE DE BILLARD DE BARBOSSI","COUNTRY CLIB DE BARBOSSI","23 CHEMIN DE MAURE-VIEL",6210,"MANDELIEU"]
["BILLARD CLUB DE NICE","SALLE MALATESTA","64 AVENUE CYRILLE BESSET",6100,"NICE"]
["BILLARD CLUB LA FARE LES OLIVIERS","36 BIS AVENUE PASTEUR",null,13580,"LA FARE LES OLIVIERS"]
["BILLARD CLUB LA GARDE","LE MAS QUARTIER SAINTE MARGUERITE","293 AVENUE PIERRE LOTI",83130,"LA GARDE"]
["BILLARD CLUB ORANGE","ACADEMIE DE BILLARD","67 COURS POURTOULES",84100,"ORANGE"]
["BILLARD CLUB ORANGE","MAISON DES ASSOCIATIONS","ROUTE DE CADEROUSSE",84100,"ORANGE"]
["BILLARD CLUB PHOCEEN","12 rue du docteur ACQUAVIVA",null,13004,"MARSEILLE"]
["BILLARD CLUB ROQUEBRUNOIS","44 avenue Gabriel Péri",null,83520,"ROQUEBRUNE SUR ARGENS"]
["BILLARD CLUB SALON","CERCLE DES ARTS","RUE DES FILEUSES DE SOIE",13300,"SALON DE PROVENCE"]
["BILLARD CLUB SAUSSET LES PINS","PARC MUNICIPAL DES LOISIRS","31 AVENUE DE LA COTE BLEUE",13960,"SAUSSET LES PINS"]
["BILLARD CLUB SISTERONNAIS","73 AVENUE DE LA DURANCE","SALLE OMNISPORT DANIEL MAFFREN",4200,"SISTERON"]
["BILLARD CLUB VINON SUR VERDON","480 RUE DES ENTREPRENEURS","ZA DU PAS DE MENC",83560,"VINON SUR VERDON"]
["CLUB BILLARD ISTRES","HALLE POLYVALENTE PLACE RAOUX","ALLEE DES ECHOPPES",13800,"ISTRES"]
["SPORT AMAT.DE BILLARD MARSEILLAIS","26 RUE PAVILLON",null,13001,"MARSEILLE"]

{"sheet":"DONNEES","index":2,"n_rows":394,"n_cols":6,"rows_kept":394,"cut":false,"hidden":false,"merged":[[0,0,0,5]]}
["Classification  L.M.B   3 BANDES\n 2023 - 2024"]
[]
["NC","NOM","LICENCE","CAT","MG","CLUB"]
[null,"ABAD YANNICK","106287Z","N2",0.46899999999999997,"19002--SPORT AMAT.DE BILLARD MARSEILLAIS"]
[null,"ABEAUZIT JACQUES","106902Q","N3",0.373,"19014--BILLARD CLUB AVIGNONNAIS"]
[null,"ABSENT",0,"XX",0,"XXXXXXXX"]
[null,"AKNIN GABRIEL","021810W","N2",0.47899999999999998,"19027--ACADEMIE DE BILLARD DE BOLLENE"]
[null,"ALLIGIER GERARD","157036R","R1",0.223,"19019--BILLARD CLUB DE LA BAIE"]
[null,"ALVAREZ PHILIPPE","159130S","R1",0.25600000000000001,"19056--BILLARD CLUB DE NICE"]
[null,"AMOUROUX LUC","155531F","R1",0.24199999999999999,"19023--BILLARD CLUB GARDEEN"]
[null,"ANDRY JEAN FRANCOIS","021818E","R1",0.28599999999999998,"19090--BILLARD AMATEUR ROGNAC"]
[null,"ANGIOLINI PIERRE","127654U","N2",0.46400000000000002,"19057--ACADEMIE VENCOISE DE BILLARD"]
[null,"ANGUE PATRICK","021819F","N1",0.69199999999999995,"19056--BILLARD CLUB DE NICE"]
[null,"ANNESTAY JACQUES","021820G","R1",0.27400000000000002,"19025--BILLARD CLUB SISTERONNAIS"]
[null,"ANTONIN ALAIN","021821H","N3",0.33200000000000002,"19021--BILLARD CLUB CAVAILLONNAIS"]
[null,"APREA ARMANDO","021823J","R1",0.3,"19106--BILLARD CLUB VINONNAIS"]
[null,"ARDITI GERALD","021825L","N3",0.38400000000000001,"19056--BILLARD CLUB DE NICE"]
[null,"ARMENGAUD NOEL","021826M","R1",0.24299999999999999,"19009--CLUB BILLARD ISTREEN"]
["CL","ARNOUX LAURENT","180272Y","R2",0.193,"19058--ACADEMIE DE BILLARD DE BARBOSSI MANDELIEU"]
[null,"AUBERT ROUECHE ERIC","022383X","N3",0.34399999999999997,"19106--BILLARD CLUB VINONNAIS"]
[null,"AUBERT ROUECHE LYDIA","148204R","R2",0.21099999999999999,"19106--BILLARD CLUB VINONNAIS"]
[null,"AZERAD HUGO","012464K","N1",0.61499999999999999,"19058--ACADEMIE DE BILLARD DE BARBOSSI MANDELIEU"]
[null,"AZOULAY ALAIN","021839Z","N2",0.54500000000000004,"19017--BILLARD CLUB PHOCEEN"]
[null,"BAILLON JEAN","115304U","R2",0.16900000000000001,"19058--ACADEMIE DE BILLARD DE BARBOSSI MANDELIEU"]
[null,"BALESTRI MAURICE","153554G","R2",0.19900000000000001,"19058--ACADEMIE DE BILLARD DE BARBOSSI MANDELIEU"]
[null,"BALLIGAND SERGE","023184S","N3",0.34,"19059--BILLARD CLUB ROQUEBRUNOIS"]
[null,"BANO SERGE","149693K","R2",0.186,"19001--S. S. A. B. D AIX EN PROVENCE"]
[null,"BARBANNEAU FREDERIC","109917P","N1",0.67200000000000004,"19012--SALON BILLARD CLUB"]
[null,"BASELGA PASCAL","135538A","R1",0.22900000000000001,"19093--AMERICAN CLUB LOUIS XI"]
[null,"BASSOUL JEAN MARIE","103568K","R2",0.20300000000000001,"19006--BILLARD CLUB CARPENTRASSIEN"]
[null,"BAYARD JEAN CLAUDE","021860U","R2",0.184,"19021--BILLARD CLUB CAVAILLONNAIS"]
[null,"BECK MICHEL","011797T","N2",0.39400000000000002,"19061--ACAD.BILLARD ST RAPHAEL"]
[null,"BEDOC JACQUES","021863X","R1",0.30299999999999999,"19007--BILLARD CLUB BERROIS"]
[null,"BENAVIDES GERARD","138275H","R2",0.20699999999999999,"19012--SALON BILLARD CLUB"]
[null,"BENIER PATRICK","159238K","R2",0.16600000000000001,"19023--BILLARD CLUB GARDEEN"]
[null,"BERNAT JEAN PIERRE","125945B","R2",0.19800000000000001,"19023--BILLARD CLUB GARDEEN"]
[null,"BETTES CECILE","016451T","R1",0.27400000000000002,"19012--SALON BILLARD CLUB"]
["CL","BETTONI GILLES","180334Q","R2",0.19400000000000001,"19058--ACADEMIE DE BILLARD DE BARBOSSI MANDELIEU"]
[null,"BIARD ANDRE","159202W","R2",0.13500000000000001,"19009--CLUB BILLARD ISTREEN"]
[null,"BILDIK MEHMET","141828Y","N3",0.36699999999999999,"19006--BILLARD CLUB CARPENTRASSIEN"]
["NC","BLANC SANTELLI ERIC","179744Z","R2",0.13,"19009--CLUB BILLARD ISTREEN"]
[null,"BOFFA BERNARD","016248Y","R2",0.192,"19023--BILLARD CLUB GARDEEN"]
["NC","BOGGIO POLA PIERRE","181202J","R2",0.13,"19007--BILLARD CLUB BERROIS"]
[null,"BOMBA OLIVIER","125947D","R2",0.18,"19061--ACAD.BILLARD ST RAPHAEL"]
[null,"BONALD YVES","132947J","N3",0.33400000000000002,"19001--S. S. A. B. D AIX EN PROVENCE"]
[null,"BONNEMAISON DENIS","150422C","R2",0.20100000000000001,"19009--CLUB BILLARD ISTREEN"]
[null,"BONSIGNORI PATRICK","021898G","N3",0.39500000000000002,"19002--SPORT AMAT.DE BILLARD MARSEILLAIS"]
[null,"BONTOUX MAX","021900I","N3",0.34599999999999997,"19090--BILLARD AMATEUR ROGNAC"]
[null,"BORNMANN ROBERT","118781N","N2",0.55400000000000005,"19017--BILLARD CLUB PHOCEEN"]
[null,"BOULANDET ALAIN","012645J","R1",0.20699999999999999,"19055--ACADEMIE DE BILLARD DE MENTON"]
[null,"BOULANT CLAUDE","155529D","R1",0.20899999999999999,"19019--BILLARD CLUB DE LA BAIE"]
["CL","BOURDELLES LAURENT","021911T","N3",0.36699999999999999,"19055--ACADEMIE DE BILLARD DE MENTON"]
[null,"BOUTILLE NICOLAS","122662U","N3",0.33700000000000002,"19027--ACADEMIE DE BILLARD DE BOLLENE"]
[null,"BOVET MICHEL","149613Y","R2",0.13,"19059--BILLARD CLUB ROQUEBRUNOIS"]
[null,"BRAYER DENIS","016411F","N3",0.39800000000000002,"19008--BRITISH BILLARD CLUB AVIGNON"]
[null,"BREDAT RENE","021918A","N3",0.316,"19025--BILLARD CLUB SISTERONNAIS"]
[null,"BREPSON MARTIAL","152345S","N3",0.33300000000000002,"19058--ACADEMIE DE BILLARD DE BARBOSSI MANDELIEU"]
[null,"BRIAND ALAIN","113104E","R1",0.24299999999999999,"19002--SPORT AMAT.DE BILLARD MARSEILLAIS"]
[null,"BRIOIT DOMINIQUE","021920C","N3",0.32700000000000001,"19055--ACADEMIE DE BILLARD DE MENTON"]
[null,"BRIQUET ERIC","106514S","R2",0.16700000000000001,"19012--SALON BILLARD CLUB"]
[null,"BUI THAI NINH","109188O","N3",0.32300000000000001,"19055--ACADEMIE DE BILLARD DE MENTON"]
[null,"BULGHERONI NICOLAS","122928A","N3",0.41199999999999998,"19055--ACADEMIE DE BILLARD DE MENTON"]
[null,"BURELLI GEORGES","155679R","R2",0.13600000000000001,"19050--BILLARD CLUB SAUSSETOIS"]
[null,"BUSSONE REGIS","139222S","R2",0.13900000000000001,"19090--BILLARD AMATEUR ROGNAC"]
[null,"CACHO DIDIER","112311R","R1",0.28699999999999998,"19098--BILLARD CLUB LA FARE"]
[null,"CAILLAUD DANIEL","144785R","R1",0.26200000000000001,"19023--BILLARD CLUB GARDEEN"]
[null,"CAILLET PATRICK","010401B","N3",0.41299999999999998,"19023--BILLARD CLUB GARDEEN"]
[null,"CALDERON LUC","021938U","N3",0.35399999999999998,"19009--CLUB BILLARD ISTREEN"]
[null,"CAO HUU TUOI","021944A","R1",0.26700000000000002,"19098--BILLARD CLUB LA FARE"]
[null,"CARDINALI DENIS","021946C","N3",0.33500000000000002,"19056--BILLARD CLUB DE NICE"]
[null,"CARRILLON MICHEL","141066Q","R1",0.248,"19001--S. S. A. B. D AIX EN PROVENCE"]
[null,"CARRION JEAN PHILIPPE","130701Z","N3",0.35199999999999998,"19058--ACADEMIE DE BILLARD DE BARBOSSI MANDELIEU"]
[null,"CASTA JEAN","021953J","N3",0.30099999999999999,"19025--BILLARD CLUB SISTERONNAIS"]
[null,"CATONI LAURENT","021955L","N2",0.45100000000000001,"19014--BILLARD CLUB AVIGNONNAIS"]
[null,"CHABASSIERE DOMINIQUE","173622V","N2",0.45400000000000001,"19098--BILLARD CLUB LA FARE"]
[null,"CHABERT JEAN PIERRE","021958O","R1",0.29399999999999998,"19021--BILLARD CLUB CAVAILLONNAIS"]
["CL","CHABOUD JACQUES","161620Z","R2",0.14299999999999999,"19023--BILLARD CLUB GARDEEN"]
[null,"CHADELAT BERNARD","114501X","R1",0.30099999999999999,"19106--BILLARD CLUB VINONNAIS"]
[null,"CHAIX JOEL","021960Q","N3",0.28499999999999998,"19025--BILLARD CLUB SISTERONNAIS"]
[null,"CHANOINA YANICK","021965V","N2",0.48599999999999999,"19061--ACAD.BILLARD ST RAPHAEL"]
[null,"CHAPUIS GERARD","163134V","R2",0.129,"19093--AMERICAN CLUB LOUIS XI"]
[null,"CHARBAUT CLAUDE","122456W","R1",0.13600000000000001,"19059--BILLARD CLUB ROQUEBRUNOIS"]
[null,"CHARBIT JEAN MARC","021967X","N1",0.58199999999999996,"19056--BILLARD CLUB DE NICE"]
[null,"CHARBONNIER DAVID","107542G","N1",0.63700000000000001,"19019--BILLARD CLUB DE LA BAIE"]
[null,"CHARTIER YVES","021971B","R1",0.153,"19090--BILLARD AMATEUR ROGNAC"]
[null,"CHASTAN GEORGES","012782Q","N3",0.36099999999999999,"19021--BILLARD CLUB CAVAILLONNAIS"]
[null,"CHAUVIN JEAN PAUL","021972C","R1",0.307,"19050--BILLARD CLUB SAUSSETOIS"]
[null,"CHEVALLIER MICHEL","145444A","R1",0.24299999999999999,"19061--ACAD.BILLARD ST RAPHAEL"]
[null,"CHUZEVILLE GILLES","108854S","N2",0.46600000000000003,"19025--BILLARD CLUB SISTERONNAIS"]
[null,"CLEMENT GERARD","129497R","N3",0.35899999999999999,"19050--BILLARD CLUB SAUSSETOIS"]
[null,"COATMEUR ALAN","149116H","R1",0.251,"19014--BILLARD CLUB AVIGNONNAIS"]
[null,"COHEN RICHARD (MANDELIEU)","012827J","R1",0.252,"19058--ACADEMIE DE BILLARD DE BARBOSSI MANDELIEU"]
[null,"COLLEMINE BERNARD","113219P","R1",0.28599999999999998,"19050--BILLARD CLUB SAUSSETOIS"]
[null,"CONSOLIN DANIEL","127970Y","R2",0.154,"19007--BILLARD CLUB BERROIS"]
[null,"COPPIN JEAN MICHEL","021985P","R1",0.14000000000000001,"19027--ACADEMIE DE BILLARD DE BOLLENE"]
[null,"CORANOTTO SERGE","021986Q","N1",0.82099999999999995,"19056--BILLARD CLUB DE NICE"]
[null,"CORDONNIER ROGER","106512Q","R1",0.24099999999999999,"19027--ACADEMIE DE BILLARD DE BOLLENE"]
[null,"CORNIOU JEAN CLAUDE","012844A","R1",0.23200000000000001,"19025--BILLARD CLUB SISTERONNAIS"]
[null,"COSTAZ ALAIN","148136S","R2",0.14699999999999999,"19019--BILLARD CLUB DE LA BAIE"]
[null,"COSTE PHILIPPE","125938U","R1",0.30299999999999999,"19061--ACAD.BILLARD ST RAPHAEL"]
[null,"COUPET PHILIPPE","119932U","N1",0.67900000000000005,"19023--BILLARD CLUB GARDEEN"]
[null,"COURRET JEAN PAUL","101490M","R1",0.16500000000000001,"19007--BILLARD CLUB BERROIS"]
[null,"CREUZOT PATRICE","021996A","N3",0.442,"19017--BILLARD CLUB PHOCEEN"]
[null,"D HERET ERIC","119971H","R1",0.29399999999999998,"19006--BILLARD CLUB CARPENTRASSIEN"]
[null,"DAMON GERARD","022002G","N3",0.26100000000000001,"19056--BILLARD CLUB DE NICE"]
[null,"DAMON OLIVIER","022003H","N1",0.65100000000000002,"19012--SALON BILLARD CLUB"]
[null,"DAUPHIN MICHEL","014828I","N1",0.626,"19012--SALON BILLARD CLUB"]
[null,"DE HAAN PATRICK","140113Z","N1",0.72499999999999998,"19061--ACAD.BILLARD ST RAPHAEL"]
[null,"DE LOOSE FELIX","163348C","N3",0.36699999999999999,"19106--BILLARD CLUB VINONNAIS"]
[null,"DEBERNARDI ARNAUD","109536Y","N3",0.40500000000000003,"19007--BILLARD CLUB BERROIS"]
[null,"DEDON RICHARD","177233V","R2",0.17299999999999999,"19007--BILLARD CLUB BERROIS"]
[null,"DEFFE MICHEL","119889D","R1",0.26,"19068--BILLARD CLUB ARLESIEN"]
[null,"DEFRETIN JOEL","020635R","N3",0.36799999999999999,"19023--BILLARD CLUB GARDEEN"]
[null,"DELAGE JEAN MARIE","022013R","N2",0.40600000000000003,"19056--BILLARD CLUB DE NICE"]
[null,"DELBEY JULIEN","112719J","N3",0.441,"19012--SALON BILLARD CLUB"]
[null,"DEMANET CLAUDE","020524K","N2",0.434,"19057--ACADEMIE VENCOISE DE BILLARD"]
["CL","DESMERO RAYMOND","142358I","R2",0.13400000000000001,"19007--BILLARD CLUB BERROIS"]
[null,"DESWAZIERE MICHEL","115051B","N2",0.47099999999999997,"19027--ACADEMIE DE BILLARD DE BOLLENE"]
[null,"DHAINAUT JEAN FRANCOIS","022033L","N2",0.498,"19056--BILLARD CLUB DE NICE"]
[null,"DI CINTIO BENJAMIN","159059Q","R1",0.22600000000000001,"19014--BILLARD CLUB AVIGNONNAIS"]
[null,"DI CINTIO PHILIPPE","144569J","N3",0.40100000000000002,"19014--BILLARD CLUB AVIGNONNAIS"]
[null,"DI CRESCENZO PIERRE","109528Q","N3",0.36699999999999999,"19017--BILLARD CLUB PHOCEEN"]
[null,"DORNEL GERARD","013003D","N3",0.245,"19061--ACAD.BILLARD ST RAPHAEL"]
[null,"DOS SANTOS FRANCIS","022039R","N2",0.53500000000000003,"19050--BILLARD CLUB SAUSSETOIS"]
["CL","DOUSSET RENE","174348J","R2",0.13700000000000001,"19023--BILLARD CLUB GARDEEN"]
["NC","DREMEAUX JEAN PIERRE","140803N","N3",0.31,"19023--BILLARD CLUB GARDEEN"]
[null,"DUBREUIL FRANCK","013022W","N2",0.52300000000000002,"19061--ACAD.BILLARD ST RAPHAEL"]
[null,"DUCA ALFONSO","154651Z","R2",0.107,"19090--BILLARD AMATEUR ROGNAC"]
[null,"DUMET BRUNO","013037L","N3",0.33,"19023--BILLARD CLUB GARDEEN"]
[null,"DUPERRAY ALEX","147554K","R2",0.14899999999999999,"19016--BILLARD CLUB ORANGEOIS"]
[null,"DUPUIS MICHEL","105621J","R1",0.223,"19019--BILLARD CLUB DE LA BAIE"]
[null,"DUPUY MICHEL","011522E","R1",0.22,"19058--ACADEMIE DE BILLARD DE BARBOSSI MANDELIEU"]
[null,"DURAND FREDERIC","022049B","N3",0.30099999999999999,"19012--SALON BILLARD CLUB"]
[null,"DURAND HERVE","022050C","N2",0.57899999999999996,"19012--SALON BILLARD CLUB"]
[null,"DUSFOUR RENE","022052E","N3",0.33400000000000002,"19012--SALON BILLARD CLUB"]
[null,"DUSSAULE PIERRE","102285B","N3",0.308,"19027--ACADEMIE DE BILLARD DE BOLLENE"]
[null,"DUVAL THIERRY","175172E","R2",0.21199999999999999,"19061--ACAD.BILLARD ST RAPHAEL"]
[null,"EL MEGHARY MAROUANE","140809T","N2",0.51100000000000001,"19002--SPORT AMAT.DE BILLARD MARSEILLAIS"]
[null,"ELEOUET DANIEL","163467G","N3",0.26200000000000001,"19006--BILLARD CLUB CARPENTRASSIEN"]
[null,"ENJOLRAS PIERRE","105440K","R1",0.27100000000000002,"19050--BILLARD CLUB SAUSSETOIS"]
[null,"ESTABLIER PIERRE","147622J","R2",0.17899999999999999,"19023--BILLARD CLUB GARDEEN"]
[null,"ESTRUGO HENRI","117567V","R2",0.13,"19012--SALON BILLARD CLUB"]
[null,"FAGET FRANCIS","101511H","N3",0.35299999999999998,"19001--S. S. A. B. D AIX EN PROVENCE"]
[null,"FAIVRE D ARCIER PATRICK","022061N","N1",0.52200000000000002,"19056--BILLARD CLUB DE NICE"]
[null,"FARINA GENNARO","176105T","R2",0.19700000000000001,"19061--ACAD.BILLARD ST RAPHAEL"]
[null,"FAURE EMILE","022065R","R1",0.249,"19016--BILLARD CLUB ORANGEOIS"]
[null,"FERAUD GERARD","022067T","N3",0.32600000000000001,"19027--ACADEMIE DE BILLARD DE BOLLENE"]
[null,"FERHAT ACHOUR","129036Y","N3",0.33100000000000002,"19106--BILLARD CLUB VINONNAIS"]
[null,"FERNANDES VINCENT","022071X","N3",0.29799999999999999,"19061--ACAD.BILLARD ST RAPHAEL"]
[null,"FERNANDEZ MARC","013111H","N2",0.42699999999999999,"19007--BILLARD CLUB BERROIS"]
[null,"FERRAT RAYMOND","022076C","N1",0.626,"19012--SALON BILLARD CLUB"]
["CL","FERRE DIDIER","120704M","R2",0.21099999999999999,"19058--ACADEMIE DE BILLARD DE BARBOSSI MANDELIEU"]
[null,"FERRO PHILIPPE","122658Q","R1",0.23300000000000001,"19009--CLUB BILLARD ISTREEN"]
[null,"FLEURIOT PATRICK","173138T","R2",0.157,"19014--BILLARD CLUB AVIGNONNAIS"]
[null,"FONTAINE DANY","101139Z","N3",0.33500000000000002,"19106--BILLARD CLUB VINONNAIS"]
[null,"FOSSATI BRUNO","022082I","N3",0.312,"19023--BILLARD CLUB GARDEEN"]
[null,"FOURNIER ANDRE","139588U","N3",0.34499999999999997,"19023--BILLARD CLUB GARDEEN"]
[null,"FRANCO ALBERT","022084K","N2",0.435,"19019--BILLARD CLUB DE LA BAIE"]
[null,"FRANCO HENRY","118688Y","N3",0.33300000000000002,"19055--ACADEMIE DE BILLARD DE MENTON"]
[null,"FROMEYER CORINNE","167290M","R2",0.11700000000000001,"19058--ACADEMIE DE BILLARD DE BARBOSSI MANDELIEU"]
[null,"GALARDINI RICHARD","142316S","R1",0.24199999999999999,"19050--BILLARD CLUB SAUSSETOIS"]
[null,"GALLUCCI STEPHANE","022091R","N1",0.625,"19056--BILLARD CLUB DE NICE"]
["CL","GAMEN ANDRE","147288W","R2",2.3E-2,"19023--BILLARD CLUB GARDEEN"]
[null,"GANTOIS GILLES","022092S","N2",0.45400000000000001,"19016--BILLARD CLUB ORANGEOIS"]
[null,"GARREVOET DENIS","142272A","R1",0.28000000000000003,"19027--ACADEMIE DE BILLARD DE BOLLENE"]
[null,"GATTO ANTOINE","022097X","R2",0.17299999999999999,"19050--BILLARD CLUB SAUSSETOIS"]
[null,"GAVALDA PIERRE","116278G","N2",0.48,"19006--BILLARD CLUB CARPENTRASSIEN"]
[null,"GAVANON ANDRE","125944A","N3",0.33200000000000002,"19023--BILLARD CLUB GARDEEN"]
[null,"GELAS BERNARD","163279C","R2",0.157,"19098--BILLARD CLUB LA FARE"]
[null,"GENTILI ROBERTO","022100A","N2",0.57299999999999995,"19056--BILLARD CLUB DE NICE"]
[null,"GEORGE ALAIN","022101B","N3",0.32100000000000001,"19057--ACADEMIE VENCOISE DE BILLARD"]
[null,"GERVAIS GUILLAUME","022104E","N2",0.48699999999999999,"19021--BILLARD CLUB CAVAILLONNAIS"]
[null,"GHU GERARD","101282M","R1",0.30299999999999999,"19016--BILLARD CLUB ORANGEOIS"]
[null,"GIACONIA HERBERT","104472E","R1",0.22800000000000001,"19058--ACADEMIE DE BILLARD DE BARBOSSI MANDELIEU"]
[null,"GIBARROUX CHRISTOPHE","118661X","R1",0.27,"19001--S. S. A. B. D AIX EN PROVENCE"]
[null,"GIFFARD PHILIPPE","149390F","N2",0.42099999999999999,"19023--BILLARD CLUB GARDEEN"]
[null,"GIOVANNETTI DAMIEN","022115P","R1",0.24399999999999999,"19050--BILLARD CLUB SAUSSETOIS"]
[null,"GIRARD JACQUES","129718E","R1",0.26400000000000001,"19058--ACADEMIE DE BILLARD DE BARBOSSI MANDELIEU"]
[null,"GODARD PASCAL","157852D","R1",0.30499999999999999,"19006--BILLARD CLUB CARPENTRASSIEN"]
[null,"GOMES VITOR","120100G","N2",0.503,"19001--S. S. A. B. D AIX EN PROVENCE"]
[null,"GOUDENECHE BERNARD","131925B","R1",0.253,"19098--BILLARD CLUB LA FARE"]
[null,"GOUIRAN GEORGES","022129D","R2",0.16600000000000001,"19050--BILLARD CLUB SAUSSETOIS"]
[null,"GOUKASSIAN JACQUES","113216M","N3",0.40300000000000002,"19050--BILLARD CLUB SAUSSETOIS"]
[null,"GOURSEAUD YVES","104054C","N2",0.34599999999999997,"19016--BILLARD CLUB ORANGEOIS"]
[null,"GREGOIRE J CLAUDE","149576H","R2",0.186,"19016--BILLARD CLUB ORANGEOIS"]
[null,"GRUAT ALAIN","022134I","N2",0.46500000000000002,"19002--SPORT AMAT.DE BILLARD MARSEILLAIS"]
[null,"GUERI ROBERT","135013V","R2",0.154,"19027--ACADEMIE DE BILLARD DE BOLLENE"]
[null,"GUERINEAU BRUNO","144796C","N3",0.33900000000000002,"19021--BILLARD CLUB CAVAILLONNAIS"]
[null,"GUEUG PIERRE","104475H","R1",0.23,"19056--BILLARD CLUB DE NICE"]
[null,"GUEZOU MATHIS","151649L","R2",0.128,"19012--SALON BILLARD CLUB"]
[null,"GUIBERT JEAN MARIE","022137L","R1",0.17499999999999999,"19009--CLUB BILLARD ISTREEN"]
[null,"GUTIERREZ FRANCOIS","022138M","R1",0.27300000000000002,"19017--BILLARD CLUB PHOCEEN"]
["NC","GUYENOT JEAN LOUIS","161784C","R2",0.13,"19056--BILLARD CLUB DE NICE"]
[null,"HAHN DANIEL","011966G","R1",0.23,"19017--BILLARD CLUB PHOCEEN"]
[null,"HAROUTUNIAN PIERRE","022141P","R1",0.17100000000000001,"19050--BILLARD CLUB SAUSSETOIS"]
[null,"HAZE PATRICK","137523J","R1",0.16800000000000001,"19021--BILLARD CLUB CAVAILLONNAIS"]
[null,"HERBER DOMINIQUE","159610P","R1",0.28399999999999997,"19027--ACADEMIE DE BILLARD DE BOLLENE"]
[null,"HERREMAN SERGE","119933V","R1",0.22500000000000001,"19023--BILLARD CLUB GARDEEN"]
[null,"HEURTAULT JACKY","137004K","N3",0.35899999999999999,"19012--SALON BILLARD CLUB"]
[null,"HMAYDA YOUSSEF","132460Q","N2",0.55200000000000005,"19056--BILLARD CLUB DE NICE"]
[null,"HUGUET PATRICK","172086A","N2",0.49299999999999999,"19017--BILLARD CLUB PHOCEEN"]
[null,"ICART MICHEL","022154C","N3",0.314,"19057--ACADEMIE VENCOISE DE BILLARD"]
[null,"JAMET PIERRE","179136N","R2",0.157,"19055--ACADEMIE DE BILLARD DE MENTON"]
[null,"JAVEY JEAN FRANCOIS","120276A","R2",0.191,"19019--BILLARD CLUB DE LA BAIE"]
[null,"JIMENEZ RICARDO","109065V","N3",0.33800000000000002,"19055--ACADEMIE DE BILLARD DE MENTON"]
[null,"JONNARD FREDERIC","120814S","N2",0.51,"19023--BILLARD CLUB GARDEEN"]
[null,"JUBILEU DANIEL","127033X","N3",0.38600000000000001,"19058--ACADEMIE DE BILLARD DE BARBOSSI MANDELIEU"]
[null,"JUMEL RENE","162905W","R1",0.222,"19027--ACADEMIE DE BILLARD DE BOLLENE"]
[null,"KOPACZEWSKI DANIEL","116642G","N3",0.36199999999999999,"19061--ACAD.BILLARD ST RAPHAEL"]
[null,"KOSKACH JEAN PAUL","022173V","N3",0.38400000000000001,"19017--BILLARD CLUB PHOCEEN"]
[null,"LACOSSE JEAN PAUL","109977X","R1",0.19,"19019--BILLARD CLUB DE LA BAIE"]
[null,"LACOSTE BRUNO","147195V","N2",0.45100000000000001,"19061--ACAD.BILLARD ST RAPHAEL"]
["NC","LAFDJIAN GILBERT","177232T","R2",0.13,"19007--BILLARD CLUB BERROIS"]
[null,"LAGIERE CHRISTIAN","151312V","R2",0.124,"19019--BILLARD CLUB DE LA BAIE"]
[null,"LANDE GERARD","016084Q","N2",0.46600000000000003,"19014--BILLARD CLUB AVIGNONNAIS"]
["CL","LANDERECTHE PASCAL","181199F","R2",0.186,"19007--BILLARD CLUB BERROIS"]
["NC","LANDERECTHE RUDY","181200G","R2",0.13,"19007--BILLARD CLUB BERROIS"]
[null,"LANNURIEN THIERRY","168288X","N3",0.34799999999999998,"19023--BILLARD CLUB GARDEEN"]
[null,"LATIL YVES","022192O","R1",0.27100000000000002,"19025--BILLARD CLUB SISTERONNAIS"]
[null,"LAVASTROU ROGER","022195R","N3",0.26600000000000001,"19014--BILLARD CLUB AVIGNONNAIS"]
[null,"LE THAN HAI","132346G","N3",0.35399999999999998,"19056--BILLARD CLUB DE NICE"]
[null,"LEBAR PATRICK","110799N","N3",0.31,"19090--BILLARD AMATEUR ROGNAC"]
["NC","LEBARBENCHON JEAN","177122Z","R2",0.15,"19055--ACADEMIE DE BILLARD DE MENTON"]
[null,"LEBRASSEUR GILBERT","022198U","N3",0.35699999999999998,"19058--ACADEMIE DE BILLARD DE BARBOSSI MANDELIEU"]
[null,"LECOQ ARNAUD","141504M","N3",0.318,"19012--SALON BILLARD CLUB"]
[null,"LECOQ SYLVIE","151648K","R2",7.8E-2,"19012--SALON BILLARD CLUB"]
[null,"LEDRU RAYMOND","022203Z","N2",0.39400000000000002,"19020--A.O.C. LA VALETTE SECTION BILLARD"]
[null,"LEDU GERARD","135537Z","R2",9.2999999999999999E-2,"19006--BILLARD CLUB CARPENTRASSIEN"]
[null,"LEDUCQ MORGAN","105373V","N2",0.50700000000000001,"19014--BILLARD CLUB AVIGNONNAIS"]
[null,"LEFAUX JEAN JACQUES","117411V","N3",0.34100000000000003,"19025--BILLARD CLUB SISTERONNAIS"]
[null,"LEMARTINET ROBERT","110379J","R1",0.252,"19019--BILLARD CLUB DE LA BAIE"]
[null,"LEMESLE FABRICE","022205B","R1",0.26600000000000001,"19017--BILLARD CLUB PHOCEEN"]
[null,"LEMIERE JEAN NOEL","104233Z","N2",0.47799999999999998,"19023--BILLARD CLUB GARDEEN"]
[null,"LEROY ANDRE","022206C","R1",0.29799999999999999,"19058--ACADEMIE DE BILLARD DE BARBOSSI MANDELIEU"]
[null,"LEVAVASSEUR ROBERT","131535B","N2",0.48899999999999999,"19025--BILLARD CLUB SISTERONNAIS"]
[null,"LEVEQUE DAVID","141067R","N3",0.377,"19007--BILLARD CLUB BERROIS"]
[null,"LIOU THAI HUNG","122673F","N1",0.63700000000000001,"19058--ACADEMIE DE BILLARD DE BARBOSSI MANDELIEU"]
[null,"LISI ROGER","146375V","R2",0.121,"19007--BILLARD CLUB BERROIS"]
[null,"LOCKS TIMOTHY","174810L","R2",0.157,"19025--BILLARD CLUB SISTERONNAIS"]
[null,"LOMBARDO PHILIPPE","022215L","N2",0.46100000000000002,"19055--ACADEMIE DE BILLARD DE MENTON"]
[null,"LOPEZ JOSE","107094A","N2",0.47199999999999998,"19106--BILLARD CLUB VINONNAIS"]
[null,"LUCENET PAUL","162076V","R1",0.17899999999999999,"19009--CLUB BILLARD ISTREEN"]
[null,"LUVISON JEAN","022221R","R2",0.10199999999999999,"19012--SALON BILLARD CLUB"]
[null,"MACIA RENE","114274E","N1",0.54700000000000004,"19057--ACADEMIE VENCOISE DE BILLARD"]
[null,"MACQUET PATRICK","022223T","N1",0.745,"19056--BILLARD CLUB DE NICE"]
["CL","MAGNIER PIERRE","165843P","R2",0.13900000000000001,"19023--BILLARD CLUB GARDEEN"]
[null,"MARCIANO GEORGES","108280Q","N3",0.27900000000000003,"19058--ACADEMIE DE BILLARD DE BARBOSSI MANDELIEU"]
[null,"MARTIN FERNAND","022238I","R1",0.20300000000000001,"19106--BILLARD CLUB VINONNAIS"]
[null,"MARTIN MICHEL","022239J","N3",0.26100000000000001,"19090--BILLARD AMATEUR ROGNAC"]
[null,"MARTIN THOMAS","137032M","R1",0.28799999999999998,"19027--ACADEMIE DE BILLARD DE BOLLENE"]
[null,"MASRASLIGILLER MARDIROS","130160E","R1",0.26700000000000002,"19056--BILLARD CLUB DE NICE"]
[null,"MASSERAN PHILIPPE","103581X","N1",0.627,"19058--ACADEMIE DE BILLARD DE BARBOSSI MANDELIEU"]
[null,"MASSON DENIS","015513R","R2",0.17,"19023--BILLARD CLUB GARDEEN"]
[null,"MATHIEU CLAUDE","129498S","R1",0.183,"19098--BILLARD CLUB LA FARE"]
[null,"MAUDUIT DIDIER","017615N","R1",0.215,"19009--CLUB BILLARD ISTREEN"]
[null,"MAURON BERNARD","149391G","N3",0.32100000000000001,"19023--BILLARD CLUB GARDEEN"]
[null,"MENGUY PHILIPPE","103621L","N3",0.35799999999999998,"19055--ACADEMIE DE BILLARD DE MENTON"]
[null,"METAIS ALBAN","152604Z","R1",0.30399999999999999,"19006--BILLARD CLUB CARPENTRASSIEN"]
[null,"MICHEL GROSJEAN CEDRIC","133204G","R1",0.27,"19057--ACADEMIE VENCOISE DE BILLARD"]
["NC","MILANA NICOLAS","176968G","R2",0.13,"19007--BILLARD CLUB BERROIS"]
[null,"MILLOT ROBERT","172218T","R2",0.21099999999999999,"19025--BILLARD CLUB SISTERONNAIS"]
[null,"MISSION JEAN","102551H","N3",0.29499999999999998,"19058--ACADEMIE DE BILLARD DE BARBOSSI MANDELIEU"]
[null,"MOGLIA EMILE","022266K","N3",0.34399999999999997,"19014--BILLARD CLUB AVIGNONNAIS"]
[null,"MOLAND PHILIPPE","022268M","R1",0.29099999999999998,"19059--BILLARD CLUB ROQUEBRUNOIS"]
[null,"MOLINAS ROBERT","022270O","R1",0.30399999999999999,"19021--BILLARD CLUB CAVAILLONNAIS"]
[null,"MONNET JEAN CLAUDE","022271P","N2",0.48899999999999999,"19021--BILLARD CLUB CAVAILLONNAIS"]
[null,"MONTAY JEAN CLAUDE","014997V","N3",0.28799999999999998,"19027--ACADEMIE DE BILLARD DE BOLLENE"]
[null,"MORENO BASTIEN","101279J","R1",0.28699999999999998,"19007--BILLARD CLUB BERROIS"]
[null,"MORPOURGO SIMON","022278W","R2",0.14199999999999999,"19007--BILLARD CLUB BERROIS"]
[null,"MUNOS JEAN","109063T","N2",0.44800000000000001,"19050--BILLARD CLUB SAUSSETOIS"]
[null,"MUNOS VINCENT","109708O","N3",0.29499999999999998,"19007--BILLARD CLUB BERROIS"]
["CL","MUNOZ CHRISTIAN","022284C","N3",0.33100000000000002,"19021--BILLARD CLUB CAVAILLONNAIS"]
["CL","N GUYEN NGA","132351L","N3",0.44500000000000001,"19056--BILLARD CLUB DE NICE"]
[null,"N GUYEN VAN DUC MAX","141788K","R1",0.24299999999999999,"19007--BILLARD CLUB BERROIS"]
[null,"NABHANE EMILE","166329S","R2",0.13600000000000001,"19006--BILLARD CLUB CARPENTRASSIEN"]
[null,"NASICA PATRICK","107263N","N3",0.38700000000000001,"19014--BILLARD CLUB AVIGNONNAIS"]
["CL","NGUYEN PAUL","183754H","R1",0.30399999999999999,"19055--ACADEMIE DE BILLARD DE MENTON"]
[null,"NOEL SYLVAIN","104487T","R1",0.27,"19058--ACADEMIE DE BILLARD DE BARBOSSI MANDELIEU"]
[null,"OLLIVIER DANIEL","020258E","R1",0.254,"19009--CLUB BILLARD ISTREEN"]
[null,"OUDOUX GERARD","128468C","R2",0.16700000000000001,"19023--BILLARD CLUB GARDEEN"]
[null,"PACZESNY FABRICE","150400D","R1",0.251,"19098--BILLARD CLUB LA FARE"]
[null,"PAGANONI GEORGES","022302U","N3",0.32,"19023--BILLARD CLUB GARDEEN"]
[null,"PARINELLO RENE","022308A","N3",0.43,"19023--BILLARD CLUB GARDEEN"]
[null,"PARIZE MICHEL","105442M","Masters",0.90700000000000003,"19058--ACADEMIE DE BILLARD DE BARBOSSI MANDELIEU"]
[null,"PAVIOT DIDIER","153692G","R1",0.307,"19023--BILLARD CLUB GARDEEN"]
[null,"PELLAT FRANCIS","141673Z","R1",0.29699999999999999,"19025--BILLARD CLUB SISTERONNAIS"]
[null,"PELLAT JACQUES","112424A","N3",0.30199999999999999,"19017--BILLARD CLUB PHOCEEN"]
[null,"PENEDO MANUEL","103577T","N3",0.32800000000000001,"19106--BILLARD CLUB VINONNAIS"]
[null,"PEREIRA CHARLES","013896M","N1",0.68700000000000006,"19023--BILLARD CLUB GARDEEN"]
[null,"PEREZ CHRISTIAN","130773T","R1",0.20300000000000001,"19009--CLUB BILLARD ISTREEN"]
[null,"PERIES MICHEL","022319L","N2",0.48399999999999999,"19025--BILLARD CLUB SISTERONNAIS"]
[null,"PERIS MICHEL","022321N","R2",5.7000000000000002E-2,"19056--BILLARD CLUB DE NICE"]
[null,"PICHEREAU GERARD","022329V","N3",0.38900000000000001,"19050--BILLARD CLUB SAUSSETOIS"]
[null,"PICOLLET MANUEL","129330G","N2",0.45900000000000002,"19090--BILLARD AMATEUR ROGNAC"]
[null,"PIELIN PASCAL","022330W","N2",0.46500000000000002,"19012--SALON BILLARD CLUB"]
[null,"PIGNARD CHARLES","106899N","N3",0.41199999999999998,"19061--ACAD.BILLARD ST RAPHAEL"]
[null,"PIGNATEL FLORENT","112316W","N1",0.60499999999999998,"19021--BILLARD CLUB CAVAILLONNAIS"]
[null,"PILAVDJIAN JACQUES","165118B","R2",0.20699999999999999,"19017--BILLARD CLUB PHOCEEN"]
[null,"PINARD PATRICE","105404A","N1",0.70499999999999996,"19012--SALON BILLARD CLUB"]
[null,"PINNA ALAIN","022332Y","N2",0.51800000000000002,"19017--BILLARD CLUB PHOCEEN"]
[null,"PINNA VINCENT","148229T","R1",0.30599999999999999,"19017--BILLARD CLUB PHOCEEN"]
[null,"PIONE GUY","022335B","R1",0.29499999999999998,"19007--BILLARD CLUB BERROIS"]
[null,"POIRET JEAN MARC","022341H","R1",0.18,"19061--ACAD.BILLARD ST RAPHAEL"]
[null,"POIRIER DOMINIQUE","108010G","R1",0.23599999999999999,"19061--ACAD.BILLARD ST RAPHAEL"]
[null,"PORA JEAN PAUL","170697Q","R1",0.16300000000000001,"19009--CLUB BILLARD ISTREEN"]
["CL","PORTET PATRICK","181316H","R2",0.13300000000000001,"19059--BILLARD CLUB ROQUEBRUNOIS"]
[null,"POUJOL JEAN PAUL","022347N","R1",0.23499999999999999,"19014--BILLARD CLUB AVIGNONNAIS"]
[null,"POULAIN FREDERIC","144719D","R2",0.189,"19016--BILLARD CLUB ORANGEOIS"]
[null,"POZNANSKI JEAN MICHEL","022349P","N3",0.42199999999999999,"19012--SALON BILLARD CLUB"]
[null,"POZNANSKI LOIC","105485D","N3",0.33,"19012--SALON BILLARD CLUB"]
[null,"PRACHAR JEAN PIERRE","017857V","R1",0.245,"19059--BILLARD CLUB ROQUEBRUNOIS"]
[null,"PUT MARCEL","022353T","R2",0.14799999999999999,"19006--BILLARD CLUB CARPENTRASSIEN"]
[null,"QUANTIN MICHEL","022354U","R1",0.28499999999999998,"19098--BILLARD CLUB LA FARE"]
[null,"QUEZEL ANDRE","136544S","R2",0.10299999999999999,"19014--BILLARD CLUB AVIGNONNAIS"]
["CL","RAMOND JEAN MARC","022357X","R1",0.26600000000000001,"19058--ACADEMIE DE BILLARD DE BARBOSSI MANDELIEU"]
[null,"RANC ALAIN","136205R","R1",0.29099999999999998,"19027--ACADEMIE DE BILLARD DE BOLLENE"]
[null,"RAVEL PIERRE","101519P","N3",0.32600000000000001,"19017--BILLARD CLUB PHOCEEN"]
["CL","RAVENET FRANCIS","157788J","R1",0.28299999999999997,"19059--BILLARD CLUB ROQUEBRUNOIS"]
[null,"RAVERDINO JULIEN","103561D","N2",0.46700000000000003,"19057--ACADEMIE VENCOISE DE BILLARD"]
[null,"REMUS STEPHANE","022360A","N2",0.51300000000000001,"19056--BILLARD CLUB DE NICE"]
[null,"REVALOR MICHEL","119696S","R1",0.22600000000000001,"19050--BILLARD CLUB SAUSSETOIS"]
[null,"RICART ANDRE","133646G","N3",0.32300000000000001,"19009--CLUB BILLARD ISTREEN"]
[null,"RICHARD GUY","022367H","N3",0.34499999999999997,"19023--BILLARD CLUB GARDEEN"]
[null,"RICHAUD PIERRE","107093Z","N3",0.29199999999999998,"19106--BILLARD CLUB VINONNAIS"]
[null,"RIFFET BERNARD","125943Z","R2",0.20699999999999999,"19014--BILLARD CLUB AVIGNONNAIS"]
[null,"RIGA JEAN LOUIS","022371L","N3",0.31,"19002--SPORT AMAT.DE BILLARD MARSEILLAIS"]
[null,"RIGNOLS PHILIPPE","022372M","N2",0.439,"19021--BILLARD CLUB CAVAILLONNAIS"]
[null,"RIGOLLET PIERRE","023064C","N2",0.45500000000000002,"19025--BILLARD CLUB SISTERONNAIS"]
["CL","RIHANI ANDRE","169613M","R2",8.5999999999999993E-2,"19058--ACADEMIE DE BILLARD DE BARBOSSI MANDELIEU"]
[null,"ROBBE RAYMOND","134183X","N3",0.37,"19098--BILLARD CLUB LA FARE"]
[null,"ROBERT DIDIER","022450M","N2",0.48099999999999998,"19014--BILLARD CLUB AVIGNONNAIS"]
[null,"RONSAIN JEAN JACQUES","166175A","R1",0.21199999999999999,"19012--SALON BILLARD CLUB"]
[null,"ROTH ALAIN","166176B","R2",0.14899999999999999,"19012--SALON BILLARD CLUB"]
[null,"ROUANET CLAUDE","163166E","N3",0.34100000000000003,"19025--BILLARD CLUB SISTERONNAIS"]
[null,"ROUGON ROBERT","101518O","R1",0.30099999999999999,"19090--BILLARD AMATEUR ROGNAC"]
[null,"ROUX CLAUDE","022384Y","N2",0.503,"19050--BILLARD CLUB SAUSSETOIS"]
[null,"SALAMA ALAIN","136546U","N3",0.40500000000000003,"19021--BILLARD CLUB CAVAILLONNAIS"]
[null,"SALES RENE","114734W","N2",0.41799999999999998,"19068--BILLARD CLUB ARLESIEN"]
["CL","SALES THIERRY","175174G","R2",0.24299999999999999,"19061--ACAD.BILLARD ST RAPHAEL"]
[null,"SANTIAGO JEAN JOSEPH","022391F","N2",0.54600000000000004,"19050--BILLARD CLUB SAUSSETOIS"]
[null,"SARRALDE LOUIS","014138U","N3",0.21299999999999999,"19021--BILLARD CLUB CAVAILLONNAIS"]
[null,"SAVOIA MICKAEL","122939L","R2",0.17,"19050--BILLARD CLUB SAUSSETOIS"]
[null,"SAVOIA PATRICK","113222S","N3",0.32,"19050--BILLARD CLUB SAUSSETOIS"]
[null,"SCHAEFER ERNEST ROBERT","149694L","R2",0.15,"19006--BILLARD CLUB CARPENTRASSIEN"]
[null,"SCHEKLER JEAN FLORIAN","022399N","R1",0.28299999999999997,"19061--ACAD.BILLARD ST RAPHAEL"]
[null,"SCHMIDT CLAUDE","022401P","N3",0.39500000000000002,"19023--BILLARD CLUB GARDEEN"]
[null,"SCHOLTEN GERT","139284C","N3",0.33100000000000002,"19020--A.O.C. LA VALETTE SECTION BILLARD"]
[null,"SICARD GEORGES","163238H","R2",0.17199999999999999,"19025--BILLARD CLUB SISTERONNAIS"]
[null,"SIMON GERARD","010203L","N3",0.41099999999999998,"19014--BILLARD CLUB AVIGNONNAIS"]
[null,"SINANIAN JEAN PAUL","022412A","N3",0.41599999999999998,"19017--BILLARD CLUB PHOCEEN"]
[null,"SOLTANI OMAR","103578U","N3",0.27500000000000002,"19106--BILLARD CLUB VINONNAIS"]
[null,"STEINMANN SEBASTIEN","020790Q","N3",0.33200000000000002,"19061--ACAD.BILLARD ST RAPHAEL"]
[null,"STEPHAN OLIVIER","125931N","R1",0.30599999999999999,"19025--BILLARD CLUB SISTERONNAIS"]
[null,"STERCKX PIERRE","144720E","R2",0.157,"19016--BILLARD CLUB ORANGEOIS"]
[null,"SUEUR PASCAL","165039Q","R1",0.252,"19058--ACADEMIE DE BILLARD DE BARBOSSI MANDELIEU"]
[null,"TARDIEUX LUC","022429R","R1",0.193,"19007--BILLARD CLUB BERROIS"]
[null,"TARDY JEAN CLAUDE","133907H","R2",0.16300000000000001,"19014--BILLARD CLUB AVIGNONNAIS"]
[null,"TARDY PIERRE YVES","143024Y","R1",0.30099999999999999,"19058--ACADEMIE DE BILLARD DE BARBOSSI MANDELIEU"]
[null,"TATTIS HENRI","118668E","R1",0.248,"19050--BILLARD CLUB SAUSSETOIS"]
[null,"TERZIAN BERNARD","148464Z","N3",0.35099999999999998,"19090--BILLARD AMATEUR ROGNAC"]
["CL","TIMSIT SERGE","148252T","R2",7.0999999999999994E-2,"19017--BILLARD CLUB PHOCEEN"]
[null,"TOLEDANO ARMAND","111163N","N3",0.28000000000000003,"19017--BILLARD CLUB PHOCEEN"]
[null,"TONNELIER JEAN PIERRE","132786E","R1",0.22600000000000001,"19106--BILLARD CLUB VINONNAIS"]
[null,"TONOLI PASCAL","022438A","N3",0.32800000000000001,"19061--ACAD.BILLARD ST RAPHAEL"]
[null,"TORREGROSA GILBERT","022440C","R1",0.27200000000000002,"19058--ACADEMIE DE BILLARD DE BARBOSSI MANDELIEU"]
[null,"TOURE MADOU","014256I","N1",0.67300000000000004,"19002--SPORT AMAT.DE BILLARD MARSEILLAIS"]
[null,"TRAN DINH VUONG","131929F","N2",0.46200000000000002,"19002--SPORT AMAT.DE BILLARD MARSEILLAIS"]
[null,"TREMEAU PHILIPPE","018691X","N2",0.46800000000000003,"19059--BILLARD CLUB ROQUEBRUNOIS"]
[null,"TROEGNER DANIEL","018722C","N3",0.37,"19059--BILLARD CLUB ROQUEBRUNOIS"]
[null,"TRUCCO DAMIEN","107457Z","N2",0.54400000000000004,"19023--BILLARD CLUB GARDEEN"]
[null,"TRUCCO DOMINIQUE","022448K","N3",0.41699999999999998,"19023--BILLARD CLUB GARDEEN"]
[null,"VALENSI GERARD","022453P","N2",0.49299999999999999,"19017--BILLARD CLUB PHOCEEN"]
[null,"VASSALLUCCI ERIC","136537L","R2",0.16600000000000001,"19017--BILLARD CLUB PHOCEEN"]
[null,"VASSE JEAN PIERRE","129880K","R2",0.13,"19019--BILLARD CLUB DE LA BAIE"]
[null,"VAUTRIN JEAN","022459V","N2",0.379,"19056--BILLARD CLUB DE NICE"]
[null,"VERRIER JEAN PIERRE","125928K","N3",0.41299999999999998,"19012--SALON BILLARD CLUB"]
[null,"VICTOR DANIEL","147412F","R2",0.14699999999999999,"19019--BILLARD CLUB DE LA BAIE"]
[null,"VIERA MAIA ARLINDO","148051A","N2",0.51400000000000001,"19061--ACAD.BILLARD ST RAPHAEL"]
[null,"VIGNE PHILIPPE","014327B","N1",0.60599999999999998,"19014--BILLARD CLUB AVIGNONNAIS"]
[null,"VILLASEVIL ANTONIO","101485H","N2",0.46899999999999997,"19090--BILLARD AMATEUR ROGNAC"]
[null,"VIOU GERARD","147607S","N3",0.33600000000000002,"19098--BILLARD CLUB LA FARE"]
[null,"VITALIEN PIERRE","119674W","R1",0.28799999999999998,"19016--BILLARD CLUB ORANGEOIS"]
[null,"VIVALDI ANDRE","022476M","N3",0.39900000000000002,"19106--BILLARD CLUB VINONNAIS"]
[null,"VO DANG HUY","132515T","N1",0.83,"19056--BILLARD CLUB DE NICE"]
["CL","VUILLAUME JEAN CLAUDE","154571M","R2",0.152,"19006--BILLARD CLUB CARPENTRASSIEN"]
[null,"VUILLERMET PIERRE","112318Y","R1",0.28499999999999998,"19098--BILLARD CLUB LA FARE"]
[null,"VULTAGGIO PIERRE","022480Q","R1",0.29599999999999999,"19058--ACADEMIE DE BILLARD DE BARBOSSI MANDELIEU"]
[null,"WARIN ALAIN","138807T","R2",0.155,"19016--BILLARD CLUB ORANGEOIS"]
[null,"WARLET JEAN CLAUDE","117872O","N2",0.53500000000000003,"19059--BILLARD CLUB ROQUEBRUNOIS"]
[null,"WOILLEZ FRANCIS","101283N","R2",0.16300000000000001,"19014--BILLARD CLUB AVIGNONNAIS"]
["CL","YVOZ ALAIN","184288N","R1",0.26900000000000002,"19006--BILLARD CLUB CARPENTRASSIEN"]
[null,"YVOZ CLAUDE","022484U","N3",0.36,"19006--BILLARD CLUB CARPENTRASSIEN"]
[null,"ZOPPI AIME","144788U","N3",0.39300000000000002,"19106--BILLARD CLUB VINONNAIS"]
[null,"ZOPPI CEDRIC","125457H","N1",0.91700000000000004,"19106--BILLARD CLUB VINONNAIS"]

{"sheet":"FICHE-JOUEUR","index":3,"n_rows":413,"n_cols":3,"rows_kept":413,"cut":false,"hidden":true,"merged":[[0,0,0,2]]}
["LMB \nFICHE JOUEURS\n"]
["Licence","NOM","PRENOM"]
["106287Z","ABAD","YANNICK"]
["169265J","ABDALLAH","ANTHONY"]
["159403P","ABELA","JOSEPH"]
["169267L","ACOCA","WILLIAM"]
["147622J","ESTABLIER","PIERRE"]
["165301A","BARTH","JEAN PAUL"]
["021810W","AKNIN","GABRIEL"]
["147980Y","AKTAS","JEAN"]
["149448T","ALESSI","JEAN PIERRE"]
["169144C","ALEXANIAN","ANTOINE"]
["151459E","ALIBERT","BRUNO"]
["159130S","ALVAREZ","PHILIPPE"]
["152035F","ALVISET","GUY"]
["155531F","AMOUROUX","LUC"]
["162879S","AMOUROUX","JACQUES ANTOINE"]
["153111A","ANDRIEUX","STEPHANE"]
["021818E","ANDRY","JEAN FRANCOIS"]
["021819F","ANGUE","PATRICK"]
["021820G","ANNESTAY","JACQUES"]
["021821H","ANTONIN","ALAIN"]
["021824K","ARBAUD","STEPHANE"]
["166320H","ATHLANI","MICHEL"]
["106513R","AUDIBERT","JEAN PIERRE"]
["138454E","AUDOUIN","JEAN JACQUES"]
["012464K","AZERAD","HUGO"]
["021839Z","AZOULAY","ALAIN"]
["115304U","BAILLON","JEAN"]
["153554G","BALESTRI","MAURICE"]
["023184S","BALLIGAND","SERGE"]
["109917P","BARBANNEAU","FREDERIC"]
["018535X","BARDET","JEAN PIERRE"]
["122300W","BARRALLON","JEAN PAUL"]
["115343H","BARTOLETTI","JULIEN"]
["129911P","BASSIGNANA","ROBERT"]
["103568K","BASSOUL","JEAN MARIE"]
["021860U","BAYARD","JEAN CLAUDE"]
["153113C","BECQ","GILLES"]
["021865Z","BELHASSEN","BENJAMIN"]
["132789H","BELTRITTI","JEAN YVES"]
["021872G","BENAVIDES","CLAUDE"]
["138275H","BENAVIDES","GERARD"]
["124802C","BENDAVID","KARINE"]
["159238K","BENIER","PATRICK"]
["160011A","BENSAID","NOEL"]
["125945B","BERNAT","JEAN PIERRE"]
["115001D","BERNICHON","PASCAL"]
["159202W","BIARD","ANDRE"]
["168684C","BODET","DENIS"]
["016248Y","BOFFA","BERNARD"]
["168836S","BOLAND","CHRISTIAN"]
["021894C","BONELLO","LUCIEN"]
["150422C","BONNEMAISON","DENIS"]
["101352E","BONNET","JONATHAN"]
["021900I","BONTOUX","MAX"]
["149287T","BORDES","BERNARD"]
["149288V","BORDES","CATHIE"]
["160000N","BOSSOT","JEAN"]
["155529D","BOULANT","CLAUDE"]
["021911T","BOURDELLES","LAURENT"]
["122662U","BOUTILLE","NICOLAS"]
["118665B","BOUTTIER","CHARLES"]
["125921D","BOUTTIER","CAROLINE"]
["149613Y","BOVET","MICHEL"]
["168877M","BOYER","ANNE MARIE"]
["021918A","BREDAT","RENE"]
["152345S","BREPSON","MARTIAL"]
["113104E","BRIAND","ALAIN"]
["021920C","BRIOIT","DOMINIQUE"]
["114733V","BRUANT","SYLVAIN"]
["136581D","BRUNERIE","JEAN LOUIS"]
["117642S","BUFFART","MICHELE"]
["109188O","BUI THAI","NINH"]
["155679R","BURELLI","GEORGES"]
["162877Q","BUROIS","FREDERIQUE"]
["151533K","BURON","JEAN LOUIS"]
["112311R","CACHO","DIDIER"]
["144785R","CAILLAUD","DANIEL"]
["158342L","CALUSIO","J PIERRE"]
["159692D","CANAL","FRANCOIS"]
["021944A","CAO","HUU TUOI"]
["146885L","CARAIL","MICHEL"]
["021946C","CARDINALI","DENIS"]
["101302G","CARPENTRAS","MICHEL"]
["152346T","CARRE","PIERRE"]
["118684U","CESARO","JEAN CLAUDE"]
["161620Z","CHABOUD","JACQUES"]
["021960Q","CHAIX","JOEL"]
["143166K","CHANTEUX","ALAIN"]
["151534L","CHAPLIN","CHRISTIAN"]
["021967X","CHARBIT","JEAN MARC"]
["152655E","CHEVRIER","JACQUES"]
["152831W","CHEVRIER","CAMILLE"]
["160332Z","CHICARD","ALAIN"]
["108854S","CHUZEVILLE","GILLES"]
["168880Q","CLAUDEN","PHILIPPE"]
["129497R","CLEMENT","GERARD"]
["106896K","CLUS","SANDY"]
["012827J","COHEN","RICHARD"]
["166294E","COLOMBET","MARIE"]
["166295F","COLOMBET","MICHEL"]
["166177C","CONTRAIN","JEROME"]
["021985P","COPPIN","JEAN MICHEL"]
["164007T","CORBIN","LUC"]
["106512Q","CORDONNIER","ROGER"]
["148136S","COSTAZ","ALAIN"]
["125938U","COSTE","PHILIPPE"]
["101268Y","COTARD","SANDRINE"]
["119932U","COUPET","PHILIPPE"]
["168287W","COURSAULT","BERNADETTE"]
["168685D","COZETTE","SYLVIE"]
["021996A","CREUZOT","PATRICE"]
["152067Q","CROUZET","JEAN ANDRE"]
["144718C","D ANTONIO","JEROME"]
["126747X","DAMIEN","JACQUES"]
["022002G","DAMON","GERARD"]
["022003H","DAMON","OLIVIER"]
["144640C","DANCARVILLE","GUY"]
["155526A","DAVID","THIERRY"]
["139487X","DE GRYSE","GERARD"]
["140113Z","DE HAAN","PATRICK"]
["163348C","DE LOOSE","FELIX"]
["159371E","DE LUCA","JEREMY"]
["127655V","DE RIGAL","DANIEL"]
["151535M","DE ROOY","PETER"]
["022009N","DEBOS","CHARLES"]
["119889D","DEFFE","MICHEL"]
["020635R","DEFRETIN","JOEL"]
["016772C","DEL MEDICO","JEAN"]
["152184S","DELAIRE","SYLVAIN"]
["166003N","DELAIRE","JEAN PIERRE"]
["022014S","DELATTRE","RAYMOND"]
["166346L","DELUC","BERNARD"]
["168662D","DEMARCQ","JEAN FRANCOIS"]
["159076J","DEMERLIAC","BRUNO"]
["142358I","DESMERO","RAYMOND"]
["115051B","DESWAZIERE","MICHEL"]
["163923C","DETAND","CHRISTIAN"]
["022033L","DHAINAUT","JEAN FRANCOIS"]
["135014W","DI BIN","JEAN MARIE"]
["160331Y","DION","JEAN LOUIS"]
["142363N","DONABEDIAN","DANIEL"]
["022039R","DOS SANTOS","FRANCIS"]
["169123E","DUBOC","BERTRAND"]
["152038J","DUBOURDEAUX","ROBERT"]
["013022W","DUBREUIL","FRANCK"]
["154651Z","DUCA","ALFONSO"]
["138116E","DUFLOT","ALAIN"]
["013037L","DUMET","BRUNO"]
["105621J","DUPUIS","MICHEL"]
["022049B","DURAND","FREDERIC"]
["022050C","DURAND","HERVE"]
["022052E","DUSFOUR","RENE"]
["102285B","DUSSAULE","PIERRE"]
["140809T","EL MEGHARY","MAROUANE"]
["163467G","ELEOUET","DANIEL"]
["162984G","FAISSOLLE","CHRISTELLE"]
["022066S","FAVARIO","CHRISTIAN"]
["022067T","FERAUD","GERARD"]
["129036Y","FERHAT","ACHOUR"]
["013111H","FERNANDEZ","MARC"]
["122658Q","FERRO","PHILIPPE"]
["114481D","FLORENT","CEDRIC"]
["101139Z","FONTAINE","DANY"]
["127035Z","FOREL","PHILIPPE"]
["152014H","FORGET","LIONEL"]
["022082I","FOSSATI","BRUNO"]
["022084K","FRANCO","GILBERT"]
["118688Y","FRANCO","HENRY"]
["167290M","FROMEYER","CORINNE"]
["159060R","FURNON","ROGER"]
["103216W","GABETTO","STEPHANE"]
["142316S","GALARDINI","RICHARD"]
["145236A","GAMBINO","NATHAN"]
["147288W","GAMEN","ANDRE"]
["022097X","GATTO","ANTOINE"]
["112833T","GAUCHER","JULIEN"]
["116278G","GAVALDA","PIERRE"]
["125944A","GAVANON","ANDRE"]
["163279C","GELAS","BERNARD"]
["150065P","GENDRAUD","PHILIPPE"]
["022103D","GERARD","PASCAL"]
["167330F","GERARD","THOMAS"]
["022104E","GERVAIS","GUILLAUME"]
["101282M","GHU","GERARD"]
["022108I","GIANNATTASIO","LUCIEN"]
["118661X","GIBARROUX","CHRISTOPHE"]
["149390F","GIFFARD","PHILIPPE"]
["022113N","GIMENEZ","SERGE"]
["022115P","GIOVANNETTI","DAMIEN"]
["129718E","GIRARD","JACQUES"]
["159240M","GLEISES","CHRISTIAN"]
["022120U","GLEIZES","JEAN"]
["157852D","GODARD","PASCAL"]
["131925B","GOUDENECHE","BERNARD"]
["022129D","GOUIRAN","GEORGES"]
["104054C","GOURSEAUD","YVES"]
["101259P","GOUZIEN","RENAUD"]
["166216V","GOUZIEN","YANN"]
["144636Y","GOUZOUGUEN","CHRISTIAN"]
["163514H","GRANDMAIRE","ROLAND"]
["149576H","GREGOIRE","J CLAUDE"]
["022132G","GRIFFON","JEAN JACQUES"]
["101403D","GROS","ROLAND"]
["107059R","GROS","MARIE PAULE"]
["135013V","GUERI","ROBERT"]
["103615F","GUERIN","RAYMOND"]
["022135J","GUERINEAU","THIERRY"]
["144796C","GUERINEAU","BRUNO"]
["104475H","GUEUG","PIERRE"]
["022137L","GUIBERT","JEAN MARIE"]
["109714U","HAEBERLE","JEAN"]
["011966G","HAHN","DANIEL"]
["022141P","HAROUTUNIAN","PIERRE"]
["166328R","HARTENSTEIN","BRUNO"]
["137523J","HAZE","PATRICK"]
["119933V","HERREMAN","SERGE"]
["137004K","HEURTAULT","JACKY"]
["163015Q","HUREL","JACQUES"]
["148913M","HURSTEL","BERNARD"]
["169266K","JANNOT","FREDERIC"]
["120276A","JAVEY","JEAN FRANCOIS"]
["022163L","JOB","GEORGES"]
["120814S","JONNARD","FREDERIC"]
["109412E","JUIGNET","CHRISTIAN"]
["162905W","JUMEL","RENE"]
["125930M","LABBE","CLAUDE"]
["109977X","LACOSSE","JEAN PAUL"]
["168708D","LACROIX","JEAN MARC"]
["168256M","LAFON","CHARLES"]
["016084Q","LANDE","GERARD"]
["168288X","LANNURIEN","THIERRY"]
["022190M","LAPLANCHE","YVON"]
["022195R","LAVASTROU","ROGER"]
["163278B","LE FAUCHEUR","LAURENT"]
["125949F","LE GUENNEC","CHRISTIAN"]
["120278C","LE MEUR","CLAUDE"]
["013510Q","LE RAY","JEAN CLAUDE"]
["141504M","LECOQ","ARNAUD"]
["117411V","LEFAUX","JEAN JACQUES"]
["110379J","LEMARTINET","ROBERT"]
["022205B","LEMESLE","FABRICE"]
["104233Z","LEMIERE","JEAN NOEL"]
["022209F","LIEGEOIS","DOMINIQUE"]
["159203X","LINA","SERGE"]
["146375V","LISI","ROGER"]
["168722T","LISSAJOUX","JEAN CLAUDE"]
["166755F","LOPEZ","TONY"]
["169129L","LORION","PHILIPPE"]
["022217N","LORKOVIC","JOSEPH"]
["168030R","LOSTAO","DOMINIQUE"]
["162076V","LUCENET","PAUL"]
["022221R","LUVISON","JEAN"]
["022223T","MACQUET","PATRICK"]
["165843P","MAGNIER","PIERRE"]
["114884Q","MAGNIEZ","JACQUES"]
["100910E","MALLEVAL","GERARD"]
["159667B","MALPAUX","GUY"]
["022229Z","MANZOLI","ANGELO"]
["101260Q","MARIOTTI","JEAN MICHEL"]
["159950J","MARME","HANS"]
["103581X","MASSERAN","PHILIPPE"]
["129498S","MATHIEU","CLAUDE"]
["017615N","MAUDUIT","DIDIER"]
["149391G","MAURON","BERNARD"]
[112015,"MAYNARD","ALEXANDRE"]
["163410V","MEALLIER","LOLA"]
["165932L","MEALLIER","RAPHAEL"]
["128466A","MEGUIN","ERIC"]
["144802I","MELLET","PIERRE"]
["152604Z","METAIS","ALBAN"]
["022260E","MEYER","LUC"]
["144792Y","MISRAKI","ROMAIN"]
["022266K","MOGLIA","EMILE"]
["167147G","MOLINA","MARIE"]
["022270O","MOLINAS","ROBERT"]
["022271P","MONNET","JEAN CLAUDE"]
["147624L","MOREELS","BERNARD"]
["151456B","MOUSSIER","PATRICK"]
["109063T","MUNOS","JEAN"]
["141788K","N GUYEN VAN DUC","MAX"]
["123392W","NARDI","LOUIS"]
["107263N","NASICA","PATRICK"]
["101269Z","NATALI","MICHEL"]
["154572N","NATELLA","ROGER"]
["154573P","NATELLA","IDA"]
["168689H","NAVARRO","BERNARD"]
["132345F","NEICHTHAUSER","GERARD"]
["128204Y","NICOLAS","JOEL"]
["146143X","NICOLE","CLAUDE"]
["154378C","ORSAL","SERGE"]
["128468C","OUDOUX","GERARD"]
["150400D","PACZESNY","FABRICE"]
["141673Z","PELLAT","FRANCIS"]
["144779L","PELOUIN","JEAN FRANCOIS"]
["103577T","PENEDO","MANUEL"]
["102907Z","PERDICARO","CAMILLE"]
["013896M","PEREIRA","CHARLES"]
["130773T","PEREZ","CHRISTIAN"]
["159241N","PEREZ","JEAN PIERRE"]
["022321N","PERIS","MICHEL"]
["150544K","PERRE","OLIVIER"]
["166927S","PEYRAN","PATRICE"]
["151709B","PIATEK","JEAN CLAUDE"]
["135135N","PICCHI","GERARD"]
["022330W","PIELIN","PASCAL"]
["112316W","PIGNATEL","FLORENT"]
["105404A","PINARD","PATRICE"]
["022336C","PIQUET","VICTOR"]
["111987F","PLAQUEVENT","ROMUALD"]
["108010G","POIRIER","DOMINIQUE"]
["022347N","POUJOL","JEAN PAUL"]
["144719D","POULAIN","FREDERIC"]
["022349P","POZNANSKI","JEAN MICHEL"]
["136544S","QUEZEL","ANDRE"]
["101290U","RANIERI","JEAN ANDRE"]
["163826X","RATON","PATRICE"]
["159200T","REGNOUARD","MICHEL"]
["133622I","RENAUD","JEAN PAUL"]
["119696S","REVALOR","MICHEL"]
["022366G","RIBOLLA","PATRICE"]
["022367H","RICHARD","GUY"]
["169268M","RIETTE","MARJORIE"]
["125943Z","RIFFET","BERNARD"]
["022372M","RIGNOLS","PHILIPPE"]
["134183X","ROBBE","RAYMOND"]
["022376Q","ROBERT","DOMINIQUE"]
["022450M","ROBERT","DIDIER"]
["169274T","ROCA","STEPHANIE"]
["103608Y","RODRIGUEZ","STEPHAN"]
["163945B","RODRIGUEZ","RONNIE"]
["134843H","ROGER","GERARD"]
["166175A","RONSSAIN","JEAN JACQUES"]
["166176B","ROTH","ALAIN"]
["101518O","ROUGON","ROBERT"]
["163989Z","ROUSSEL","ALAIN"]
["022384Y","ROUX","CLAUDE"]
["122208I","SABLON","ROGER"]
["169318R","SAFI","AZIZ"]
["136546U","SALAMA","ALAIN"]
["120008S","SAMUEL","CHRISTIAN"]
["163352G","SANCHEZ PEREZ","FRANCISCO"]
["167423G","SANTANA","ELOY"]
["022391F","SANTIAGO","JEAN JOSEPH"]
["022393H","SANTORO","ROBERT"]
["014138U","SARRALDE","LOUIS"]
["164008V","SAUVAN","HENRY"]
["144798E","SAUZE","DENIS"]
["113222S","SAVOIA","PATRICK"]
["149694L","SCHAEFER","ERNEST ROBERT"]
["136540O","SCHENK","ROBERT"]
["167170G","SEJOURNE","LAURENT"]
["022406U","SELLIER","MICHEL"]
["155543T","SEREAULT","CLAUDE"]
["149899J","SERMON","FABIO"]
["148608F","SEYNHAEVE","BAUDOUIN"]
["163238H","SICARD","GEORGES"]
["168834Q","SIEGLER","JEAN PIERRE"]
["165933M","SIMANTOB","JEAN LUC"]
["156378B","SIMIAN","FABIENNE"]
["010203L","SIMON","GERARD"]
["022412A","SINANIAN","JEAN PAUL"]
["151274D","SOLARI","ANNICK"]
["151275E","SOLARI","GERARD"]
["103578U","SOLTANI","OMAR"]
["162906X","SOUCHERE","JEAN JACQUES"]
["149696N","SOUTEYRAND","CHRISTIAN"]
["165931K","SPINNLER","JEAN LUC"]
["020790Q","STEINMANN","SEBASTIEN"]
["156278S","STRAUDO","MICHEL"]
["165039Q","SUEUR","PASCAL"]
["143055D","TABUADA","FRANCOIS"]
["022429R","TARDIEUX","LUC"]
["133907H","TARDY","JEAN CLAUDE"]
["143024Y","TARDY","PIERRE YVES"]
["123701T","TELOT","DOMINIQUE"]
["168687F","THOMAS","PHILIPPE"]
["148252T","TIMSIT","SERGE"]
["131820A","TONINI BOSSI","LAURENT"]
["132786E","TONNELIER","JEAN PIERRE"]
["135554Q","TORES","JEAN LUC"]
["014256I","TOURE","MADOU"]
["139062O","TOUREILLE","ALAIN"]
["022441D","TOURET","THIERRY"]
["022443F","TRAN","KEVIN"]
["131929F","TRAN DINH","VUONG"]
["138277J","TRAPPE","JEAN MARIE"]
["022446I","TRIVINO","RENE"]
["107282G","VAHE","GUILLAUME"]
["139591X","VAN HACK","DIDIER"]
["022456S","VASCONE","JOHNY"]
["129880K","VASSE","JEAN PIERRE"]
["022459V","VAUTRIN","JEAN"]
["022466C","VIALATTE","ANDRE"]
["166670N","VIAN","MORGAN"]
["022467D","VIBOUREL","ETIENNE"]
["147412F","VICTOR","DANIEL"]
["148051A","VIERA MAIA","ARLINDO"]
["164317F","VILLARD","PATRICE"]
["101485H","VILLASEVIL","ANTONIO"]
["153007M","VILLEMAIN","SYLVAIN"]
["147607S","VIOU","GERARD"]
["138731V","VISCONTI","JEAN"]
["119674W","VITALIEN","PIERRE"]
["022476M","VIVALDI","ANDRE"]
["154571M","VUILLAUME","JEAN CLAUDE"]
["014349X","WEINER","GUY"]
["143308W","YORAC","ARNOLF"]
["166159H","YUNG","NADEGE"]
["134311V","ZANDRINO","ALAIN"]
["125457H","ZOPPI","CEDRIC"]
["144788U","ZOPPI","AIME"]

{"sheet":"Saisie des joueurs","index":4,"n_rows":42,"n_cols":15,"rows_kept":42,"cut":false,"hidden":false,"merged":[[0,2,1,6],[2,2,2,6],[14,10,14,14],[4,4,8,6],[15,2,15,6],[15,10,15,14],[10,3,10,4],[12,2,12,6],[14,2,14,6]]}
[null,null,"LIGUE MEDITERRANEENNE DE BILLARD"]
[null,null,null,null,null,null,null,"Mis à jour le 02/04/2024"]
[null,null,"Saisir ici les informations concernant le tournoi."]
[]
[null,null,"Date    (jj/mm/aa)"]
[]
[null,null,"Nom de la compétition","T1"]
[]
[null,null,"Mode de jeu","3 BANDES"]
[]
[null,null,"Club organisateur",null,null,"Directeur de jeu"]
[]
[null,null,"TOURNOI 2KO A 20 JOUEURS - 4 BILLARDS"]
[]
[null,null,"Dans cet onglet \"Saisir dans la liste déroulante les NOMS  des joueurs de cette Colonne\", l'ordre à saisir n'est pas important :\nMettre JOUEUR \"ABSENT\" sur les cases vides restantes, ensuite cliquer sur le \"BOUTON TRI \"",null,null,null,null,null,null,null,"RESULTAT DU TRI"]
[null,null,"Ne Pas toucher au cellules ci-dessous",null,null,null,null,null,null,null,"Ne Pas toucher au cellules ci-dessous"]
["N°","Liste déroulante NOM ","N° Licence","NOM PRENOM","Catégorie","Moyenne 3,10","Club",null,null,"N°","Licences","NOM PRENOM","Catégorie","Moyenne 3,10","Club"]
[{"$f":"ROW(A1)","v":1},null,{"$f":"IF(B18<>\"\",VLOOKUP(B18,DONNEES!$B$4:$F$428,2,FALSE),\"\")","v":""},{"$f":"IF(B18<>\"\",VLOOKUP(B18,DONNEES!$B$4:$F$428,1,FALSE),\"\")","v":""},{"$f":"IF(B18<>\"\",VLOOKUP(B18,DONNEES!$B$4:$F$428,3,FALSE),\"z\")","v":"z"},{"$f":"IF(B18<>\"\",VLOOKUP(B18,DONNEES!$B$4:$F$428,4,FALSE),\"\")","v":""},{"$f":"IF(B18<>\"\",VLOOKUP(B18,DONNEES!$B$4:$F$428,5,FALSE),\"\")","v":""},null,null,{"$f":"ROW(J1)","v":1},"",null,"z","",""]
[{"$f":"ROW(A2)","v":2},null,{"$f":"IF(B19<>\"\",VLOOKUP(B19,DONNEES!$B$4:$F$428,2,FALSE),\"\")","v":""},{"$f":"IF(B19<>\"\",VLOOKUP(B19,DONNEES!$B$4:$F$428,1,FALSE),\"\")","v":""},{"$f":"IF(B19<>\"\",VLOOKUP(B19,DONNEES!$B$4:$F$428,3,FALSE),\"z\")","v":"z"},{"$f":"IF(B19<>\"\",VLOOKUP(B19,DONNEES!$B$4:$F$428,4,FALSE),\"\")","v":""},{"$f":"IF(B19<>\"\",VLOOKUP(B19,DONNEES!$B$4:$F$428,5,FALSE),\"\")","v":""},null,null,{"$f":"ROW(J2)","v":2},"",null,"z","",""]
[3,null,{"$f":"IF(B20<>\"\",VLOOKUP(B20,DONNEES!$B$4:$F$428,2,FALSE),\"\")","v":""},{"$f":"IF(B20<>\"\",VLOOKUP(B20,DONNEES!$B$4:$F$428,1,FALSE),\"\")","v":""},{"$f":"IF(B20<>\"\",VLOOKUP(B20,DONNEES!$B$4:$F$428,3,FALSE),\"z\")","v":"z"},{"$f":"IF(B20<>\"\",VLOOKUP(B20,DONNEES!$B$4:$F$428,4,FALSE),\"\")","v":""},{"$f":"IF(B20<>\"\",VLOOKUP(B20,DONNEES!$B$4:$F$428,5,FALSE),\"\")","v":""},null,null,3,"",null,"z","",""]
[4,null,{"$f":"IF(B21<>\"\",VLOOKUP(B21,DONNEES!$B$4:$F$428,2,FALSE),\"\")","v":""},{"$f":"IF(B21<>\"\",VLOOKUP(B21,DONNEES!$B$4:$F$428,1,FALSE),\"\")","v":""},{"$f":"IF(B21<>\"\",VLOOKUP(B21,DONNEES!$B$4:$F$428,3,FALSE),\"z\")","v":"z"},{"$f":"IF(B21<>\"\",VLOOKUP(B21,DONNEES!$B$4:$F$428,4,FALSE),\"\")","v":""},{"$f":"IF(B21<>\"\",VLOOKUP(B21,DONNEES!$B$4:$F$428,5,FALSE),\"\")","v":""},null,null,4,"",null,"z","",""]
[5,null,{"$f":"IF(B22<>\"\",VLOOKUP(B22,DONNEES!$B$4:$F$428,2,FALSE),\"\")","v":""},{"$f":"IF(B22<>\"\",VLOOKUP(B22,DONNEES!$B$4:$F$428,1,FALSE),\"\")","v":""},{"$f":"IF(B22<>\"\",VLOOKUP(B22,DONNEES!$B$4:$F$428,3,FALSE),\"z\")","v":"z"},{"$f":"IF(B22<>\"\",VLOOKUP(B22,DONNEES!$B$4:$F$428,4,FALSE),\"\")","v":""},{"$f":"IF(B22<>\"\",VLOOKUP(B22,DONNEES!$B$4:$F$428,5,FALSE),\"\")","v":""},null,null,5,"",null,"z","",""]
[6,null,{"$f":"IF(B23<>\"\",VLOOKUP(B23,DONNEES!$B$4:$F$428,2,FALSE),\"\")","v":""},{"$f":"IF(B23<>\"\",VLOOKUP(B23,DONNEES!$B$4:$F$428,1,FALSE),\"\")","v":""},{"$f":"IF(B23<>\"\",VLOOKUP(B23,DONNEES!$B$4:$F$428,3,FALSE),\"z\")","v":"z"},{"$f":"IF(B23<>\"\",VLOOKUP(B23,DONNEES!$B$4:$F$428,4,FALSE),\"\")","v":""},{"$f":"IF(B23<>\"\",VLOOKUP(B23,DONNEES!$B$4:$F$428,5,FALSE),\"\")","v":""},null,null,6,"",null,"z","",""]
[7,null,{"$f":"IF(B24<>\"\",VLOOKUP(B24,DONNEES!$B$4:$F$428,2,FALSE),\"\")","v":""},{"$f":"IF(B24<>\"\",VLOOKUP(B24,DONNEES!$B$4:$F$428,1,FALSE),\"\")","v":""},{"$f":"IF(B24<>\"\",VLOOKUP(B24,DONNEES!$B$4:$F$428,3,FALSE),\"z\")","v":"z"},{"$f":"IF(B24<>\"\",VLOOKUP(B24,DONNEES!$B$4:$F$428,4,FALSE),\"\")","v":""},{"$f":"IF(B24<>\"\",VLOOKUP(B24,DONNEES!$B$4:$F$428,5,FALSE),\"\")","v":""},null,null,7,"",null,"z","",""]
[8,null,{"$f":"IF(B25<>\"\",VLOOKUP(B25,DONNEES!$B$4:$F$428,2,FALSE),\"\")","v":""},{"$f":"IF(B25<>\"\",VLOOKUP(B25,DONNEES!$B$4:$F$428,1,FALSE),\"\")","v":""},{"$f":"IF(B25<>\"\",VLOOKUP(B25,DONNEES!$B$4:$F$428,3,FALSE),\"z\")","v":"z"},{"$f":"IF(B25<>\"\",VLOOKUP(B25,DONNEES!$B$4:$F$428,4,FALSE),\"\")","v":""},{"$f":"IF(B25<>\"\",VLOOKUP(B25,DONNEES!$B$4:$F$428,5,FALSE),\"\")","v":""},null,null,8,"",null,"z","",""]
[9,null,{"$f":"IF(B26<>\"\",VLOOKUP(B26,DONNEES!$B$4:$F$428,2,FALSE),\"\")","v":""},{"$f":"IF(B26<>\"\",VLOOKUP(B26,DONNEES!$B$4:$F$428,1,FALSE),\"\")","v":""},{"$f":"IF(B26<>\"\",VLOOKUP(B26,DONNEES!$B$4:$F$428,3,FALSE),\"z\")","v":"z"},{"$f":"IF(B26<>\"\",VLOOKUP(B26,DONNEES!$B$4:$F$428,4,FALSE),\"\")","v":""},{"$f":"IF(B26<>\"\",VLOOKUP(B26,DONNEES!$B$4:$F$428,5,FALSE),\"\")","v":""},null,null,9,"",null,"z","",""]
[10,null,{"$f":"IF(B27<>\"\",VLOOKUP(B27,DONNEES!$B$4:$F$428,2,FALSE),\"\")","v":""},{"$f":"IF(B27<>\"\",VLOOKUP(B27,DONNEES!$B$4:$F$428,1,FALSE),\"\")","v":""},{"$f":"IF(B27<>\"\",VLOOKUP(B27,DONNEES!$B$4:$F$428,3,FALSE),\"z\")","v":"z"},{"$f":"IF(B27<>\"\",VLOOKUP(B27,DONNEES!$B$4:$F$428,4,FALSE),\"\")","v":""},{"$f":"IF(B27<>\"\",VLOOKUP(B27,DONNEES!$B$4:$F$428,5,FALSE),\"\")","v":""},null,null,10,"",null,"z","",""]
[11,null,{"$f":"IF(B28<>\"\",VLOOKUP(B28,DONNEES!$B$4:$F$428,2,FALSE),\"\")","v":""},{"$f":"IF(B28<>\"\",VLOOKUP(B28,DONNEES!$B$4:$F$428,1,FALSE),\"\")","v":""},{"$f":"IF(B28<>\"\",VLOOKUP(B28,DONNEES!$B$4:$F$428,3,FALSE),\"z\")","v":"z"},{"$f":"IF(B28<>\"\",VLOOKUP(B28,DONNEES!$B$4:$F$428,4,FALSE),\"\")","v":""},{"$f":"IF(B28<>\"\",VLOOKUP(B28,DONNEES!$B$4:$F$428,5,FALSE),\"\")","v":""},null,null,11,"",null,"z","",""]
[12,null,{"$f":"IF(B29<>\"\",VLOOKUP(B29,DONNEES!$B$4:$F$428,2,FALSE),\"\")","v":""},{"$f":"IF(B29<>\"\",VLOOKUP(B29,DONNEES!$B$4:$F$428,1,FALSE),\"\")","v":""},{"$f":"IF(B29<>\"\",VLOOKUP(B29,DONNEES!$B$4:$F$428,3,FALSE),\"z\")","v":"z"},{"$f":"IF(B29<>\"\",VLOOKUP(B29,DONNEES!$B$4:$F$428,4,FALSE),\"\")","v":""},{"$f":"IF(B29<>\"\",VLOOKUP(B29,DONNEES!$B$4:$F$428,5,FALSE),\"\")","v":""},null,null,12,"",null,"z","",""]
[13,null,{"$f":"IF(B30<>\"\",VLOOKUP(B30,DONNEES!$B$4:$F$428,2,FALSE),\"\")","v":""},{"$f":"IF(B30<>\"\",VLOOKUP(B30,DONNEES!$B$4:$F$428,1,FALSE),\"\")","v":""},{"$f":"IF(B30<>\"\",VLOOKUP(B30,DONNEES!$B$4:$F$428,3,FALSE),\"z\")","v":"z"},{"$f":"IF(B30<>\"\",VLOOKUP(B30,DONNEES!$B$4:$F$428,4,FALSE),\"\")","v":""},{"$f":"IF(B30<>\"\",VLOOKUP(B30,DONNEES!$B$4:$F$428,5,FALSE),\"\")","v":""},null,null,13,"",null,"z","",""]
[14,null,{"$f":"IF(B31<>\"\",VLOOKUP(B31,DONNEES!$B$4:$F$428,2,FALSE),\"\")","v":""},{"$f":"IF(B31<>\"\",VLOOKUP(B31,DONNEES!$B$4:$F$428,1,FALSE),\"\")","v":""},{"$f":"IF(B31<>\"\",VLOOKUP(B31,DONNEES!$B$4:$F$428,3,FALSE),\"z\")","v":"z"},{"$f":"IF(B31<>\"\",VLOOKUP(B31,DONNEES!$B$4:$F$428,4,FALSE),\"\")","v":""},{"$f":"IF(B31<>\"\",VLOOKUP(B31,DONNEES!$B$4:$F$428,5,FALSE),\"\")","v":""},null,null,14,"",null,"z","",""]
[15,null,{"$f":"IF(B32<>\"\",VLOOKUP(B32,DONNEES!$B$4:$F$428,2,FALSE),\"\")","v":""},{"$f":"IF(B32<>\"\",VLOOKUP(B32,DONNEES!$B$4:$F$428,1,FALSE),\"\")","v":""},{"$f":"IF(B32<>\"\",VLOOKUP(B32,DONNEES!$B$4:$F$428,3,FALSE),\"z\")","v":"z"},{"$f":"IF(B32<>\"\",VLOOKUP(B32,DONNEES!$B$4:$F$428,4,FALSE),\"\")","v":""},{"$f":"IF(B32<>\"\",VLOOKUP(B32,DONNEES!$B$4:$F$428,5,FALSE),\"\")","v":""},null,null,15,"",null,"z","",""]
[16,null,{"$f":"IF(B33<>\"\",VLOOKUP(B33,DONNEES!$B$4:$F$428,2,FALSE),\"\")","v":""},{"$f":"IF(B33<>\"\",VLOOKUP(B33,DONNEES!$B$4:$F$428,1,FALSE),\"\")","v":""},{"$f":"IF(B33<>\"\",VLOOKUP(B33,DONNEES!$B$4:$F$428,3,FALSE),\"z\")","v":"z"},{"$f":"IF(B33<>\"\",VLOOKUP(B33,DONNEES!$B$4:$F$428,4,FALSE),\"\")","v":""},{"$f":"IF(B33<>\"\",VLOOKUP(B33,DONNEES!$B$4:$F$428,5,FALSE),\"\")","v":""},null,null,16,"",null,"z","",""]
[17,null,{"$f":"IF(B34<>\"\",VLOOKUP(B34,DONNEES!$B$4:$F$428,2,FALSE),\"\")","v":""},{"$f":"IF(B34<>\"\",VLOOKUP(B34,DONNEES!$B$4:$F$428,1,FALSE),\"\")","v":""},{"$f":"IF(B34<>\"\",VLOOKUP(B34,DONNEES!$B$4:$F$428,3,FALSE),\"z\")","v":"z"},{"$f":"IF(B34<>\"\",VLOOKUP(B34,DONNEES!$B$4:$F$428,4,FALSE),\"\")","v":""},{"$f":"IF(B34<>\"\",VLOOKUP(B34,DONNEES!$B$4:$F$428,5,FALSE),\"\")","v":""},null,null,17,"",null,"z","",""]
[18,null,{"$f":"IF(B35<>\"\",VLOOKUP(B35,DONNEES!$B$4:$F$428,2,FALSE),\"\")","v":""},{"$f":"IF(B35<>\"\",VLOOKUP(B35,DONNEES!$B$4:$F$428,1,FALSE),\"\")","v":""},{"$f":"IF(B35<>\"\",VLOOKUP(B35,DONNEES!$B$4:$F$428,3,FALSE),\"z\")","v":"z"},{"$f":"IF(B35<>\"\",VLOOKUP(B35,DONNEES!$B$4:$F$428,4,FALSE),\"\")","v":""},{"$f":"IF(B35<>\"\",VLOOKUP(B35,DONNEES!$B$4:$F$428,5,FALSE),\"\")","v":""},null,null,18,"",null,"z","",""]
[19,null,{"$f":"IF(B36<>\"\",VLOOKUP(B36,DONNEES!$B$4:$F$428,2,FALSE),\"\")","v":""},{"$f":"IF(B36<>\"\",VLOOKUP(B36,DONNEES!$B$4:$F$428,1,FALSE),\"\")","v":""},{"$f":"IF(B36<>\"\",VLOOKUP(B36,DONNEES!$B$4:$F$428,3,FALSE),\"z\")","v":"z"},{"$f":"IF(B36<>\"\",VLOOKUP(B36,DONNEES!$B$4:$F$428,4,FALSE),\"\")","v":""},{"$f":"IF(B36<>\"\",VLOOKUP(B36,DONNEES!$B$4:$F$428,5,FALSE),\"\")","v":""},null,null,19,"",null,"z","",""]
[20,null,{"$f":"IF(B37<>\"\",VLOOKUP(B37,DONNEES!$B$4:$F$428,2,FALSE),\"\")","v":""},{"$f":"IF(B37<>\"\",VLOOKUP(B37,DONNEES!$B$4:$F$428,1,FALSE),\"\")","v":""},{"$f":"IF(B37<>\"\",VLOOKUP(B37,DONNEES!$B$4:$F$428,3,FALSE),\"z\")","v":"z"},{"$f":"IF(B37<>\"\",VLOOKUP(B37,DONNEES!$B$4:$F$428,4,FALSE),\"\")","v":""},{"$f":"IF(B37<>\"\",VLOOKUP(B37,DONNEES!$B$4:$F$428,5,FALSE),\"\")","v":""},null,null,20,"",null,"z","",""]
[21,null,{"$f":"IF(B38<>\"\",VLOOKUP(B38,DONNEES!$B$4:$F$428,2,FALSE),\"\")","v":""},{"$f":"IF(B38<>\"\",VLOOKUP(B38,DONNEES!$B$4:$F$428,1,FALSE),\"\")","v":""},{"$f":"IF(B38<>\"\",VLOOKUP(B38,DONNEES!$B$4:$F$428,3,FALSE),\"z\")","v":"z"},{"$f":"IF(B38<>\"\",VLOOKUP(B38,DONNEES!$B$4:$F$428,4,FALSE),\"\")","v":""},{"$f":"IF(B38<>\"\",VLOOKUP(B38,DONNEES!$B$4:$F$428,5,FALSE),\"\")","v":""},null,null,21,"",null,"z","",""]
[22,null,{"$f":"IF(B39<>\"\",VLOOKUP(B39,DONNEES!$B$4:$F$428,2,FALSE),\"\")","v":""},{"$f":"IF(B39<>\"\",VLOOKUP(B39,DONNEES!$B$4:$F$428,1,FALSE),\"\")","v":""},{"$f":"IF(B39<>\"\",VLOOKUP(B39,DONNEES!$B$4:$F$428,3,FALSE),\"z\")","v":"z"},{"$f":"IF(B39<>\"\",VLOOKUP(B39,DONNEES!$B$4:$F$428,4,FALSE),\"\")","v":""},{"$f":"IF(B39<>\"\",VLOOKUP(B39,DONNEES!$B$4:$F$428,5,FALSE),\"\")","v":""},null,null,22,"",null,"z","",""]
[23,null,{"$f":"IF(B40<>\"\",VLOOKUP(B40,DONNEES!$B$4:$F$428,2,FALSE),\"\")","v":""},{"$f":"IF(B40<>\"\",VLOOKUP(B40,DONNEES!$B$4:$F$428,1,FALSE),\"\")","v":""},{"$f":"IF(B40<>\"\",VLOOKUP(B40,DONNEES!$B$4:$F$428,3,FALSE),\"z\")","v":"z"},{"$f":"IF(B40<>\"\",VLOOKUP(B40,DONNEES!$B$4:$F$428,4,FALSE),\"\")","v":""},{"$f":"IF(B40<>\"\",VLOOKUP(B40,DONNEES!$B$4:$F$428,5,FALSE),\"\")","v":""},null,null,23,"",null,"z","",""]
[24,null,{"$f":"IF(B41<>\"\",VLOOKUP(B41,DONNEES!$B$4:$F$428,2,FALSE),\"\")","v":""},{"$f":"IF(B41<>\"\",VLOOKUP(B41,DONNEES!$B$4:$F$428,1,FALSE),\"\")","v":""},{"$f":"IF(B41<>\"\",VLOOKUP(B41,DONNEES!$B$4:$F$428,3,FALSE),\"z\")","v":"z"},{"$f":"IF(B41<>\"\",VLOOKUP(B41,DONNEES!$B$4:$F$428,4,FALSE),\"\")","v":""},{"$f":"IF(B41<>\"\",VLOOKUP(B41,DONNEES!$B$4:$F$428,5,FALSE),\"\")","v":""},null,null,24,"",null,"z","",""]
[null,null,"™A.FERHAT ™ C.PEREZ",null,null,null,null,null,null,null,"™A.FERHAT ™ C.PEREZ"]

{"sheet":"GRAPHIQUE 32J","index":5,"n_rows":60,"n_cols":93,"rows_kept":60,"cut":false,"hidden":true,"merged":[[53,4,53,8],[53,10,53,12],[53,16,59,28],[53,30,54,42],[55,30,55,42],[56,30,56,42],[57,30,57,42],[58,30,58,42],[59,30,59,42],[51,18,51,20],[51,28,51,30],[51,38,51,40],[51,46,51,48],[51,56,51,58],[51,66,51,68],[45,46,45,48],[45,56,45,58],[45,73,45,75],[48,1,49,6],[49,19,50,19],[49,39,50,39],[49,57,50,57],[39,81,39,83],[43,4,44,4],[43,19,44,19],[43,39,44,39],[43,57,44,57],[45,3,45,5],[45,10,45,12],[45,18,45,20],[45,28,45,30],[45,38,45,40],[39,18,39,20],[39,28,39,30],[39,38,39,40],[39,46,39,48],[39,56,39,58],[39,66,39,68],[33,56,33,58],[33,73,33,75],[35,90,35,92],[37,19,38,19],[37,39,38,39],[37,57,38,57],[33,3,33,5],[33,10,33,12],[33,18,33,20],[33,28,33,30],[33,38,33,40],[33,46,33,48],[27,66,27,68],[31,4,32,4],[31,11,32,11],[31,19,32,19],[31,39,32,39],[31,57,32,57],[21,56,21,58],[21,73,21,75],[25,19,26,19],[25,39,26,39],[25,57,26,57],[27,18,27,20],[27,28,27,30],[27,38,27,40],[27,46,27,48],[27,56,27,58],[21,3,21,5],[21,10,21,12],[21,18,21,20],[21,28,21,30],[21,38,21,40],[21,46,21,48],[19,19,20,19],[19,39,20,39],[19,57,20,57],[19,90,19,92],[9,73,9,75],[13,19,14,19],[13,39,14,39],[13,57,14,57],[13,67,14,67],[15,18,15,20],[15,28,15,30],[15,38,15,40],[15,46,15,48],[15,56,15,58],[9,3,9,5],[9,10,9,12],[9,18,9,20],[9,28,9,30],[9,38,9,40],[9,46,9,48],[9,56,9,58],[15,66,15,68],[15,81,15,83],[4,54,4,58],[4,64,4,68],[4,71,4,75],[4,79,4,83],[4,88,4,92],[7,4,8,4],[7,11,8,11],[7,19,8,19],[7,29,8,29],[7,39,8,39],[4,1,4,5],[4,8,4,12],[4,16,4,20],[4,26,4,30],[4,36,4,40],[4,44,4,48],[7,47,8,47],[7,57,8,57]]}
[]
[]
[]
[]
[null,"TOUR 1",null,null,null,null,null,null,"TOUR 2",null,null,null,null,null,null,null,"TOUR 3",null,null,null,null,null,null,null,null,null,"TOUR 4",null,null,null,null,null,null,null,null,null,"TOUR 5",null,null,null,null,null,null,null,"TOUR 6",null,null,null,null,null,null,null,null,null,"TOUR 7",null,null,null,null,null,null,null,null,null,"TOUR 8",null,null,null,null,null,null,"TOUR 9",null,null,null,null,null,null,null,"TOUR 10",null,null,null,null,null,null,null,null,"TOUR 11"]
[null,null,"J 32",null,null,null,null,null,null,"J 24",null,null,null,null,null,null,null,"J17",null,null,null,null,null,null,null,null,null,"J 16",null,null,null,null,null,null,null,null,null,"J9",null,null,null,null,null,null,null,"J 8",null,null,null,null,null,null,null,null,null,"J3"]
[null,"PHASE 1","JOUEUR","Pts","Rep","Ser",null,null,"PHASE 2","JOUEUR","Pts","Rep","Ser",null,null,null,"PHASE 3","JOUEUR","Pts","Rep","Ser",null,null,null,null,null,"PHASE 4","JOUEUR","Pts","Rep","Ser",null,null,null,null,null,"PHASE 5","JOUEUR","Pts","Rep","Ser",null,null,null,"PHASE 6","JOUEUR","Pts","Rep","Ser",null,null,null,null,null,"PHASE 7","JOUEUR","Pts","Rep","Ser",null,null,null,null,null,null,null,null,null,null,null,null,"PHASE 9","JOUEUR","Pts","Rep","Ser"]
[null,"éliminatoire",{"$f":"'Saisie des joueurs'!#REF!","v":{"$error":"#REF!"}},null,null,null,null,null,"éliminatoire",{"$f":"'Saisie des joueurs'!#REF!","v":{"$error":"#REF!"}},null,null,null,null,null,null,"éliminatoire",{"$f":"'Saisie des joueurs'!L38","v":0},null,null,null,null,null,null,null,null,"éliminatoire",{"$f":"'Saisie des joueurs'!L37","v":0},null,null,null,null,null,null,null,null,"éliminatoire",{"$f":"'Saisie des joueurs'!L26","v":0},null,null,null,null,null,null,"éliminatoire",{"$f":"'Saisie des joueurs'!L25","v":0},null,null,null,null,null,null,null,null,"éliminatoire",{"$f":"'Saisie des joueurs'!L20","v":0},null,null,null,null,null,null,null,null,null,null,null,null,null,null,null,"1/4  Finale",{"$f":"IF(BE8=BE9,\"\",IF(BE8>BE9,BD8,BD9))","v":""}]
[null,null,{"$f":"'Saisie des joueurs'!#REF!","v":{"$error":"#REF!"}},null,null,null,null,null,null,{"$f":"IF(D8=D9,\"\",IF(D8>D9,C8,C9))","v":""},null,null,null,null,null,null,null,{"$f":"IF(K8=K9,\"\",IF(K8>K9,J8,J9))","v":""},null,null,null,null,null,null,null,null,null,{"$f":"IF(S8=S9,\"\",IF(S8>S9,R8,R9))","v":""},null,null,null,null,null,null,null,null,null,{"$f":"IF(AC8=AC9,\"\",IF(AC8>AC9,AB8,AB9))","v":""},null,null,null,null,null,null,null,{"$f":"IF(AM8=AM9,\"\",IF(AM8>AM9,AL8,AL9))","v":""},null,null,null,null,null,null,null,null,null,{"$f":"IF(AU8=AU9,\"\",IF(AU8>AU9,AT8,AT9))","v":""},null,null,null,null,null,null,null,null,null,null,null,null,null,null,null,null,{"$f":"IF(BO14=BO15,\"\",IF(BO14>BO15,BN14,BN15))","v":""}]
[null,"F.Billard","J25",{"$f":"J8","v":{"$error":"#REF!"}},null,null,null,null,"F.Billard",null,{"$f":"IF(D8=D9,\"\",IF(D8<D9,C8,C9))","v":""},null,null,null,null,null,"F.Billard",null,"Arbitre du Club",null,null,null,null,null,null,null,"F.Billard",null,{"$f":"IF(S14=S15,\"\",IF(S14<S15,R14,R15))","v":""},null,null,null,null,null,null,null,"F.Billard",null,{"$f":"IF(AC14=AC15,\"\",IF(AC14<AC15,AB14,AB15))","v":""},null,null,null,null,null,"F.Billard",null,{"$f":"IF(AM14=AM15,\"\",IF(AM14<AM15,AL14,AL15))","v":""},null,null,null,null,null,null,null,"F.Billard",null,{"$f":"IF(AU14=AU15,\"\",IF(AU14<AU15,AT14,AT15))","v":""},null,null,null,null,null,null,null,null,null,null,null,null,null,null,"F.Billard",null,{"$f":"IF(BO14=BO15,\"\",IF(BO14<BO15,BN14,BN15))","v":""}]
[]
[null,null,"Arbitre"]
[null,null,null,null,null,null,null,null,null,null,null,null,null,null,null,null,"PHASE 3","JOUEUR","Pts","Rep","Ser",null,null,null,null,null,"PHASE 4","JOUEUR","Pts","Rep","Ser",null,null,null,null,null,"PHASE 5","JOUEUR","Pts","Rep","Ser",null,null,null,"PHASE 6","JOUEUR","Pts","Rep","Ser",null,null,null,null,null,"PHASE 7","JOUEUR","Pts","Rep","Ser",null,null,null,null,null,"PHASE 8","JOUEUR","Pts","Rep","Ser",null,null,null,null,null,null,null,null,null,null,"PHASE 10","JOUEUR","Pts","Rep","Ser"]
[null,null,null,null,null,null,null,null,null,null,null,null,null,null,null,null,"éliminatoire",{"$f":"IF(D8=D9,\"\",IF(D8<D9,C8,C9))","v":""},null,null,null,null,null,null,null,null,"éliminatoire",{"$f":"IF(S14=S15,\"\",IF(S14>S15,R14,R15))","v":""},null,null,null,null,null,null,null,null,"éliminatoire",{"$f":"IF(AC14=AC15,\"\",IF(AC14>AC15,AB14,AB15))","v":""},null,null,null,null,null,null,"éliminatoire",{"$f":"IF(AM14=AM15,\"\",IF(AM14>AM15,AL14,AL15))","v":""},null,null,null,null,null,null,null,null,"éliminatoire",{"$f":"IF(AU14=AU15,\"\",IF(AU14>AU15,AT14,AT15))","v":""},null,null,null,null,null,null,null,null,"repêchage",{"$f":"IF(BE14=BE15,\"\",IF(BE14>BE15,BD14,BD15))","v":""},null,null,null,null,null,null,null,null,null,null,null,null,null,"1/2  Finale",{"$f":"IF(BV8=BV9,\"\",IF(BV8>BV9,BU8,BU9))","v":""}]
[null,null,null,null,null,null,null,null,null,null,null,null,null,null,null,null,null,{"$f":"IF(K20=K21,\"\",IF(K20<K21,J20,J21))","v":""},null,null,null,null,null,null,null,null,null,{"$f":"IF(S44=S45,\"\",IF(S44<S45,R44,R45))","v":""},null,null,null,null,null,null,null,null,null,{"$f":"IF(AC32=AC33,\"\",IF(AC32<AC33,AB32,AB33))","v":""},null,null,null,null,null,null,null,{"$f":"IF(AM8=AM9,\"\",IF(A294<AM9,AL8,AL9))","v":""},null,null,null,null,null,null,null,null,null,{"$f":"IF(AU44=AU45,\"\",IF(AU44<AU45,AT44,AT45))","v":""},null,null,null,null,null,null,null,null,null,{"$f":"IF(BE32=BE33,\"\",IF(BE32<BE33,BD32,BD33))","v":""},null,null,null,null,null,null,null,null,null,null,null,null,null,null,{"$f":"IF(BV20=BV21,\"\",IF(BV20>BV21,BU20,BU21))","v":""}]
[null,null,null,null,null,null,null,null,null,null,null,null,null,null,null,null,"F.Billard",null,{"$f":"AB8","v":0},null,null,null,null,null,null,null,"F.Billard",null,{"$f":"AL8","v":0},null,null,null,null,null,null,null,"F.Billard",null,{"$f":"AT8","v":0},null,null,null,null,null,"F.Billard",null,{"$f":"BD8","v":0},null,null,null,null,null,null,null,"F.Billard",null,{"$f":"S10","v":"Arbitre du Club"},null,null,null,null,null,null,null,"F.Billard",null,{"$f":"IF(BE8=BE9,\"\",IF(BE8>BE9,BD8,BD9))","v":""},null,null,null,null,null,null,null,null,null,null,null,null,"F.Billard",null,{"$f":"IF(BV8=BV9,\"\",IF(BV8<BV9,BU8,BU9))","v":""}]
[null,null,null,null,null,null,null,null,null,null,null,null,null,null,null,null,null,null,null,null,null,null,null,null,null,null,null,null,null,null,null,null,null,null,null,null,null,null,null,null,null,null,null,null,null,null,null,null,null,null,null,null,null,null,null,null,null,null,null,null,null,null,null,null,null,null,null,null,null,null,null,null,null,null,null,null,null,null,null,null,null,null,null,null,null,null,null,null,"PHASE 11","JOUEUR","Pts","Rep","Ser"]
[null,null,"J 31",null,null,null,null,null,null,"J 23",null,null,null,null,null,null,null,"J18",null,null,null,null,null,null,null,null,null,"J 15",null,null,null,null,null,null,null,null,null,"J10",null,null,null,null,null,null,null,"J 7",null,null,null,null,null,null,null,null,null,"J2",null,null,null,null,null,null,null,null,null,null,null,null,null,null,null,null,null,null,null,null,null,null,null,null,null,null,null,null,null,null,null,null,"3/4 Places",{"$f":"IF(CD14=CD15,\"\",IF(CD14<CD15,CC14,CC15))","v":""}]
[null,"PHASE 1","JOUEUR","Pts","Rep","Ser",null,null,"PHASE 2","JOUEUR","Pts","Rep","Ser",null,null,null,"PHASE 3","JOUEUR","Pts","Rep","Ser",null,null,null,null,null,"PHASE 4","JOUEUR","Pts","Rep","Ser",null,null,null,null,null,"PHASE 5","JOUEUR","Pts","Rep","Ser",null,null,null,"PHASE 6","JOUEUR","Pts","Rep","Ser",null,null,null,null,null,"PHASE 7","JOUEUR","Pts","Rep","Ser",null,null,null,null,null,null,null,null,null,null,null,null,"PHASE 9","JOUEUR","Pts","Rep","Ser",null,null,null,null,null,null,null,null,null,null,null,null,null,{"$f":"IF(CD38=CD39,\"\",IF(CD38<CD39,CC38,CC39))","v":""}]
[null,"éliminatoire",{"$f":"'Saisie des joueurs'!#REF!","v":{"$error":"#REF!"}},null,null,null,null,null,"éliminatoire",{"$f":"'Saisie des joueurs'!#REF!","v":{"$error":"#REF!"}},null,null,null,null,null,null,"éliminatoire",{"$f":"'Saisie des joueurs'!L39","v":0},null,null,null,null,null,null,null,null,"éliminatoire",{"$f":"'Saisie des joueurs'!L36","v":0},null,null,null,null,null,null,null,null,"éliminatoire",{"$f":"'Saisie des joueurs'!L27","v":0},null,null,null,null,null,null,"éliminatoire",{"$f":"'Saisie des joueurs'!L24","v":0},null,null,null,null,null,null,null,null,"éliminatoire",{"$f":"'Saisie des joueurs'!L19","v":0},null,null,null,null,null,null,null,null,null,null,null,null,null,null,null,"1/4  Finale",{"$f":"IF(BE20=BE21,\"\",IF(BE20>BE21,BD20,BD21))","v":""},null,null,null,null,null,null,null,null,null,null,null,null,null,null,null,"F.Billard",null,{"$f":"IF(BV44=BV45,\"\",IF(BV44<BV45,BU44,BU45))","v":""}]
[null,null,{"$f":"'Saisie des joueurs'!#REF!","v":{"$error":"#REF!"}},null,null,null,null,null,null,{"$f":"IF(D20=D21,\"\",IF(D20>D21,C20,C21))","v":""},null,null,null,null,null,null,null,{"$f":"IF(K20=K21,\"\",IF(K20>K21,J20,J21))","v":""},null,null,null,null,null,null,null,null,null,{"$f":"IF(S20=S21,\"\",IF(S20>S21,R20,R21))","v":""},null,null,null,null,null,null,null,null,null,{"$f":"IF(AC20=AC21,\"\",IF(AC20>AC21,AB20,AB21))","v":""},null,null,null,null,null,null,null,{"$f":"IF(AM20=AM21,\"\",IF(AM20>AM21,AL20,AL21))","v":""},null,null,null,null,null,null,null,null,null,{"$f":"IF(AU20=AU21,\"\",IF(AU20>AU21,AT20,AT21))","v":""},null,null,null,null,null,null,null,null,null,null,null,null,null,null,null,null,{"$f":"IF(BO26=BO27,\"\",IF(BO26>BO27,BN26,BN27))","v":""}]
[null,"F.Billard","J26",{"$f":"J20","v":{"$error":"#REF!"}},null,null,null,null,"F.Billard",null,{"$f":"IF(D20=D21,\"\",IF(D20<D21,C20,C21))","v":""},null,null,null,null,null,"F.Billard",null,{"$f":"S10","v":"Arbitre du Club"},null,null,null,null,null,null,null,"F.Billard",null,{"$f":"IF(S26=S27,\"\",IF(S26<S27,R26,R27))","v":""},null,null,null,null,null,null,null,"F.Billard",null,{"$f":"IF(AC26=AC27,\"\",IF(AC26<AC27,AB26,AB27))","v":""},null,null,null,null,null,"F.Billard",null,{"$f":"IF(AM26=AM27,\"\",IF(AM26<AM27,AL26,AL27))","v":""},null,null,null,null,null,null,null,"F.Billard",null,{"$f":"IF(AU26=AU27,\"\",IF(AU26<AU27,AT26,AT27))","v":""},null,null,null,null,null,null,null,null,null,null,null,null,null,null,"F.Billard",null,{"$f":"IF(BO26=BO27,\"\",IF(BO26<BO27,BN26,BN27))","v":""}]
[]
[]
[null,null,null,null,null,null,null,null,null,null,null,null,null,null,null,null,"PHASE 3","JOUEUR","Pts","Rep","Ser",null,null,null,null,null,"PHASE 4","JOUEUR","Pts","Rep","Ser",null,null,null,null,null,"PHASE 5","JOUEUR","Pts","Rep","Ser",null,null,null,"PHASE 6","JOUEUR","Pts","Rep","Ser",null,null,null,null,null,"PHASE 7","JOUEUR","Pts","Rep","Ser",null,null,null,null,null,"PHASE 8","JOUEUR","Pts","Rep","Ser"]
[null,null,null,null,null,null,null,null,null,null,null,null,null,null,null,null,"éliminatoire",{"$f":"IF(K8=K9,\"\",IF(K8<K9,J8,J9))","v":""},null,null,null,null,null,null,null,null,"éliminatoire",{"$f":"IF(S26=S27,\"\",IF(S26>S27,R26,R27))","v":""},null,null,null,null,null,null,null,null,"éliminatoire",{"$f":"IF(AC26=AC27,\"\",IF(AC26>AC27,AB26,AB27))","v":""},null,null,null,null,null,null,"éliminatoire",{"$f":"IF(AM26=AM27,\"\",IF(AM26>AM27,AL26,AL27))","v":""},null,null,null,null,null,null,null,null,"éliminatoire",{"$f":"IF(AU26=AU27,\"\",IF(AU26>AU27,AT26,AT27))","v":""},null,null,null,null,null,null,null,null,"repêchage",{"$f":"IF(BE26=BE27,\"\",IF(BE26>BE27,BD26,BD27))","v":""}]
[null,null,null,null,null,null,null,null,null,null,null,null,null,null,null,null,null,{"$f":"IF(D20=D21,\"\",IF(D20<D21,C20,C21))","v":""},null,null,null,null,null,null,null,null,null,{"$f":"IF(S32=S33,\"\",IF(S32<S33,R32,R33))","v":""},null,null,null,null,null,null,null,null,null,{"$f":"IF(AC44=AC45,\"\",IF(AC44<AC45,AB44,AB45))","v":""},null,null,null,null,null,null,null,{"$f":"IF(AM20=AM21,\"\",IF(A310<AM21,AL20,AL21))","v":""},null,null,null,null,null,null,null,null,null,{"$f":"IF(AU32=AU33,\"\",IF(AU32<AU33,AT32,AT33))","v":""},null,null,null,null,null,null,null,null,null,{"$f":"IF(BE44=BE45,\"\",IF(BE44<BE45,BD44,BD45))","v":""}]
[null,null,null,null,null,null,null,null,null,null,null,null,null,null,null,null,"F.Billard",null,{"$f":"AB20","v":0},null,null,null,null,null,null,null,"F.Billard",null,{"$f":"AL20","v":0},null,null,null,null,null,null,null,"F.Billard",null,{"$f":"AT20","v":0},null,null,null,null,null,"F.Billard",null,{"$f":"BD20","v":0},null,null,null,null,null,null,null,"F.Billard",null,{"$f":"S22","v":"Arbitre du Club"},null,null,null,null,null,null,null,"F.Billard",null,{"$f":"IF(BE20=BE21,\"\",IF(BE20>BE21,BD20,BD21))","v":""}]
[]
[null,null,"J 30",null,null,null,null,null,null,"J 22",null,null,null,null,null,null,null,"J19",null,null,null,null,null,null,null,null,null,"J 14",null,null,null,null,null,null,null,null,null,"J11",null,null,null,null,null,null,null,"J 6",null,null,null,null,null,null,null,null,null,"J1"]
[null,"PHASE 1","JOUEUR","Pts","Rep","Ser",null,null,"PHASE 2","JOUEUR","Pts","Rep","Ser",null,null,null,"PHASE 3","JOUEUR","Pts","Rep","Ser",null,null,null,null,null,"PHASE 4","JOUEUR","Pts","Rep","Ser",null,null,null,null,null,"PHASE 5","JOUEUR","Pts","Rep","Ser",null,null,null,"PHASE 6","JOUEUR","Pts","Rep","Ser",null,null,null,null,null,"PHASE 7","JOUEUR","Pts","Rep","Ser",null,null,null,null,null,null,null,null,null,null,null,null,"PHASE 9","JOUEUR","Pts","Rep","Ser"]
[null,"éliminatoire",{"$f":"'Saisie des joueurs'!#REF!","v":{"$error":"#REF!"}},null,null,null,null,null,"éliminatoire",{"$f":"'Saisie des joueurs'!#REF!","v":{"$error":"#REF!"}},null,null,null,null,null,null,"éliminatoire",{"$f":"'Saisie des joueurs'!L40","v":0},null,null,null,null,null,null,null,null,"éliminatoire",{"$f":"'Saisie des joueurs'!L35","v":0},null,null,null,null,null,null,null,null,"éliminatoire",{"$f":"'Saisie des joueurs'!L28","v":0},null,null,null,null,null,null,"éliminatoire",{"$f":"'Saisie des joueurs'!L23","v":0},null,null,null,null,null,null,null,null,"éliminatoire",{"$f":"'Saisie des joueurs'!L18","v":0},null,null,null,null,null,null,null,null,null,null,null,null,null,null,null,"1/4  Finale",{"$f":"IF(BE32=BE33,\"\",IF(BE32>BE33,BD32,BD33))","v":""}]
[null,null,{"$f":"'Saisie des joueurs'!#REF!","v":{"$error":"#REF!"}},null,null,null,null,null,null,{"$f":"IF(D32=D33,\"\",IF(D32>D33,C32,C33))","v":""},null,null,null,null,null,null,null,{"$f":"IF(K32=K33,\"\",IF(K32>K33,J32,J33))","v":""},null,null,null,null,null,null,null,null,null,{"$f":"IF(S32=S33,\"\",IF(S32>S33,R32,R33))","v":""},null,null,null,null,null,null,null,null,null,{"$f":"IF(AC32=AC33,\"\",IF(AC32>AC33,AB32,AB33))","v":""},null,null,null,null,null,null,null,{"$f":"IF(AM32=AM33,\"\",IF(AM32>AM33,AL32,AL33))","v":""},null,null,null,null,null,null,null,null,null,{"$f":"IF(AU32=AU33,\"\",IF(AU32>AU33,AT32,AT33))","v":""},null,null,null,null,null,null,null,null,null,null,null,null,null,null,null,null,{"$f":"IF(BO38=BO39,\"\",IF(BO38>BO39,BN38,BN39))","v":""},null,null,null,null,null,null,null,null,null,null,null,null,null,null,null,"PHASE 12","JOUEUR","Pts","Rep","Ser"]
[null,"F.Billard","J27",{"$f":"J32","v":{"$error":"#REF!"}},null,null,null,null,"F.Billard",null,{"$f":"IF(D32=D33,\"\",IF(D32<D33,C32,C33))","v":""},null,null,null,null,null,"F.Billard",null,{"$f":"S22","v":"Arbitre du Club"},null,null,null,null,null,null,null,"F.Billard",null,{"$f":"IF(S38=S39,\"\",IF(S38<S39,R38,R39))","v":""},null,null,null,null,null,null,null,"F.Billard",null,{"$f":"IF(AC38=AC39,\"\",IF(AC38<AC39,AB38,AB39))","v":""},null,null,null,null,null,"F.Billard",null,{"$f":"IF(AM38=AM39,\"\",IF(AM38<AM39,AL38,AL39))","v":""},null,null,null,null,null,null,null,"F.Billard",null,{"$f":"IF(AU38=AU39,\"\",IF(AU38<AU39,AT38,AT39))","v":""},null,null,null,null,null,null,null,null,null,null,null,null,null,null,"F.Billard",null,{"$f":"IF(BO38=BO39,\"\",IF(BO38<BO39,BN38,BN39))","v":""},null,null,null,null,null,null,null,null,null,null,null,null,null,null,"FINALE",{"$f":"IF(CD14=CD15,\"\",IF(CD14>CD15,CC14,CC15))","v":""}]
[null,null,null,null,null,null,null,null,null,null,null,null,null,null,null,null,null,null,null,null,null,null,null,null,null,null,null,null,null,null,null,null,null,null,null,null,null,null,null,null,null,null,null,null,null,null,null,null,null,null,null,null,null,null,null,null,null,null,null,null,null,null,null,null,null,null,null,null,null,null,null,null,null,null,null,null,null,null,null,null,null,null,null,null,null,null,null,null,null,{"$f":"IF(CD38=CD39,\"\",IF(CD38>CD39,CC38,CC39))","v":""}]
[null,null,null,null,null,null,null,null,null,null,null,null,null,null,null,null,null,null,null,null,null,null,null,null,null,null,null,null,null,null,null,null,null,null,null,null,null,null,null,null,null,null,null,null,null,null,null,null,null,null,null,null,null,null,null,null,null,null,null,null,null,null,null,null,null,null,null,null,null,null,null,null,null,null,null,null,null,null,null,null,null,null,null,null,null,null,null,null,"F.Billard",null,{"$f":"IF(BV20=BV21,\"\",IF(BV20<BV21,BU20,BU21))","v":""}]
[null,null,null,null,null,null,null,null,null,null,null,null,null,null,null,null,"PHASE 3","JOUEUR","Pts","Rep","Ser",null,null,null,null,null,"PHASE 4","JOUEUR","Pts","Rep","Ser",null,null,null,null,null,"PHASE 5","JOUEUR","Pts","Rep","Ser",null,null,null,"PHASE 6","JOUEUR","Pts","Rep","Ser",null,null,null,null,null,"PHASE 7","JOUEUR","Pts","Rep","Ser",null,null,null,null,null,"PHASE 8","JOUEUR","Pts","Rep","Ser",null,null,null,null,null,null,null,null,null,null,"PHASE 10","JOUEUR","Pts","Rep","Ser"]
[null,null,null,null,null,null,null,null,null,null,null,null,null,null,null,null,"éliminatoire",{"$f":"IF(D32=D33,\"\",IF(D32<D33,C32,C33))","v":""},null,null,null,null,null,null,null,null,"éliminatoire",{"$f":"IF(S38=S39,\"\",IF(S38>S39,R38,R39))","v":""},null,null,null,null,null,null,null,null,"éliminatoire",{"$f":"IF(AC38=AC39,\"\",IF(AC38>AC39,AB38,AB39))","v":""},null,null,null,null,null,null,"éliminatoire",{"$f":"IF(AM38=AM39,\"\",IF(AM38>AM39,AL38,AL39))","v":""},null,null,null,null,null,null,null,null,"éliminatoire",{"$f":"IF(AU38=AU39,\"\",IF(AU38>AU39,AT38,AT39))","v":""},null,null,null,null,null,null,null,null,"repêchage",{"$f":"IF(BE38=BE39,\"\",IF(BE38>BE39,BD38,BD39))","v":""},null,null,null,null,null,null,null,null,null,null,null,null,null,"1/2  Finale",{"$f":"IF(BV32=BV33,\"\",IF(BV32>BV33,BU32,BU33))","v":""}]
[null,null,null,null,null,null,null,null,null,null,null,null,null,null,null,null,null,{"$f":"IF(K44=K45,\"\",IF(K44<K45,J44,J45))","v":""},null,null,null,null,null,null,null,null,null,{"$f":"IF(S20=S21,\"\",IF(S20<S21,R20,R21))","v":""},null,null,null,null,null,null,null,null,null,{"$f":"IF(AC8=AC9,\"\",IF(AC8<AC9,AB8,AB9))","v":""},null,null,null,null,null,null,null,{"$f":"IF(AM32=AM33,\"\",IF(A326<AM33,AL32,AL33))","v":""},null,null,null,null,null,null,null,null,null,{"$f":"IF(AU20=AU21,\"\",IF(AU20<AU21,AT20,AT21))","v":""},null,null,null,null,null,null,null,null,null,{"$f":"IF(BE8=BE9,\"\",IF(BE8<BE9,BD8,BD9))","v":""},null,null,null,null,null,null,null,null,null,null,null,null,null,null,{"$f":"IF(BV44=BV45,\"\",IF(BV44>BV45,BU44,BU45))","v":""}]
[null,null,null,null,null,null,null,null,null,null,null,null,null,null,null,null,"F.Billard",null,{"$f":"AB32","v":0},null,null,null,null,null,null,null,"F.Billard",null,{"$f":"AL32","v":0},null,null,null,null,null,null,null,"F.Billard",null,{"$f":"AT32","v":0},null,null,null,null,null,"F.Billard",null,{"$f":"BD32","v":0},null,null,null,null,null,null,null,"F.Billard",null,{"$f":"S34","v":"Arbitre du Club"},null,null,null,null,null,null,null,"F.Billard",null,{"$f":"IF(BE32=BE33,\"\",IF(BE32>BE33,BD32,BD33))","v":""},null,null,null,null,null,null,null,null,null,null,null,null,"F.Billard",null,{"$f":"IF(BV32=BV33,\"\",IF(BV32<BV33,BU32,BU33))","v":""}]
[]
[null,null,"J 29",null,null,null,null,null,null,"J21",null,null,null,null,null,null,null,"J20",null,null,null,null,null,null,null,null,null,"J 13",null,null,null,null,null,null,null,null,null,"J12",null,null,null,null,null,null,null,"J 5",null,null,null,null,null,null,null,null,null,"J4"]
[null,"PHASE 1","JOUEUR","Pts","Rep","Ser",null,null,"PHASE 2","JOUEUR","Pts","Rep","Ser",null,null,null,"PHASE 3","JOUEUR","Pts","Rep","Ser",null,null,null,null,null,"PHASE 4","JOUEUR","Pts","Rep","Ser",null,null,null,null,null,"PHASE 5","JOUEUR","Pts","Rep","Ser",null,null,null,"PHASE 6","JOUEUR","Pts","Rep","Ser",null,null,null,null,null,"PHASE 7","JOUEUR","Pts","Rep","Ser",null,null,null,null,null,null,null,null,null,null,null,null,"PHASE 9","JOUEUR","Pts","Rep","Ser"]
[null,"éliminatoire",{"$f":"'Saisie des joueurs'!#REF!","v":{"$error":"#REF!"}},null,null,null,null,null,"éliminatoire",{"$f":"'Saisie des joueurs'!#REF!","v":{"$error":"#REF!"}},null,null,null,null,null,null,"éliminatoire",{"$f":"'Saisie des joueurs'!L41","v":0},null,null,null,null,null,null,null,null,"éliminatoire",{"$f":"'Saisie des joueurs'!L34","v":0},null,null,null,null,null,null,null,null,"éliminatoire",{"$f":"'Saisie des joueurs'!L33","v":0},null,null,null,null,null,null,"éliminatoire",{"$f":"'Saisie des joueurs'!L22","v":0},null,null,null,null,null,null,null,null,"éliminatoire",{"$f":"'Saisie des joueurs'!L21","v":0},null,null,null,null,null,null,null,null,null,null,null,null,null,null,null,"1/4  Finale",{"$f":"IF(BE44=BE45,\"\",IF(BE44>BE45,BD44,BD45))","v":""}]
[null,null,{"$f":"'Saisie des joueurs'!#REF!","v":{"$error":"#REF!"}},null,null,null,null,null,null,{"$f":"IF(D44=D45,\"\",IF(D44>D45,C44,C45))","v":""},null,null,null,null,null,null,null,{"$f":"IF(K44=K45,\"\",IF(K44>K45,J44,J45))","v":""},null,null,null,null,null,null,null,null,null,{"$f":"IF(S44=S45,\"\",IF(S44>S45,R44,R45))","v":""},null,null,null,null,null,null,null,null,null,{"$f":"IF(AC44=AC45,\"\",IF(AC44>AC45,AB44,AB45))","v":""},null,null,null,null,null,null,null,{"$f":"IF(AM44=AM45,\"\",IF(AM44>AM45,AL44,AL45))","v":""},null,null,null,null,null,null,null,null,null,{"$f":"IF(AU44=AU45,\"\",IF(AU44>AU45,AT44,AT45))","v":""},null,null,null,null,null,null,null,null,null,null,null,null,null,null,null,null,{"$f":"IF(BO50=BO51,\"\",IF(BO50>BO51,BN50,BN51))","v":""}]
[null,"F.Billard","J28",{"$f":"J44","v":{"$error":"#REF!"}},null,null,null,null,"F.Billard",null,{"$f":"IF(D44=D45,\"\",IF(D44<D45,C44,C45))","v":""},null,null,null,null,null,"F.Billard",null,{"$f":"S34","v":"Arbitre du Club"},null,null,null,null,null,null,null,"F.Billard",null,{"$f":"IF(S50=S51,\"\",IF(S50<S51,R50,R51))","v":""},null,null,null,null,null,null,null,"F.Billard",null,{"$f":"IF(AC50=AC51,\"\",IF(AC50<AC51,AB50,AB51))","v":""},null,null,null,null,null,"F.Billard",null,{"$f":"IF(AM50=AM51,\"\",IF(AM50<AM51,AL50,AL51))","v":""},null,null,null,null,null,null,null,"F.Billard",null,{"$f":"IF(AU50=AU51,\"\",IF(AU50<AU51,AT50,AT51))","v":""},null,null,null,null,null,null,null,null,null,null,null,null,null,null,"F.Billard",null,{"$f":"IF(BO50=BO51,\"\",IF(BO50<BO51,BN50,BN51))","v":""}]
[]
[]
[null,"Format de Billard : chiffre 1 pour 2,80 et chiffre 2 pour 3,10",null,null,null,null,null,null,null,null,null,null,null,null,null,null,"PHASE 3","JOUEUR","Pts","Rep","Ser",null,null,null,null,null,"PHASE 4","JOUEUR","Pts","Rep","Ser",null,null,null,null,null,"PHASE 5","JOUEUR","Pts","Rep","Ser",null,null,null,"PHASE 6","JOUEUR","Pts","Rep","Ser",null,null,null,null,null,"PHASE 7","JOUEUR","Pts","Rep","Ser",null,null,null,null,null,"PHASE 8","JOUEUR","Pts","Rep","Ser"]
[null,null,null,null,null,null,null,null,null,null,null,null,null,null,null,null,"éliminatoire",{"$f":"IF(K32=K33,\"\",IF(K32<K33,J32,J33))","v":""},null,null,null,null,null,null,null,null,"éliminatoire",{"$f":"IF(S50=S51,\"\",IF(S50>S51,R50,R51))","v":""},null,null,null,null,null,null,null,null,"éliminatoire",{"$f":"IF(AC50=AC51,\"\",IF(AC50>AC51,AB50,AB51))","v":""},null,null,null,null,null,null,"éliminatoire",{"$f":"IF(AM50=AM51,\"\",IF(AM50>AM51,AL50,AL51))","v":""},null,null,null,null,null,null,null,null,"éliminatoire",{"$f":"IF(AU50=AU51,\"\",IF(AU50>AU51,AT50,AT51))","v":""},null,null,null,null,null,null,null,null,"repêchage",{"$f":"IF(BE50=BE51,\"\",IF(BE50>BE51,BD50,BD51))","v":""}]
[null,null,null,null,null,null,null,null,null,null,null,null,null,null,null,null,null,{"$f":"IF(D44=D45,\"\",IF(D44<D45,C44,C45))","v":""},null,null,null,null,null,null,null,null,null,{"$f":"IF(S8=S9,\"\",IF(S8<S9,R8,R9))","v":""},null,null,null,null,null,null,null,null,null,{"$f":"IF(AC20=AC21,\"\",IF(AC20<AC21,AB20,AB21))","v":""},null,null,null,null,null,null,null,{"$f":"IF(AM44=AM45,\"\",IF(A342<AM45,AL44,AL45))","v":""},null,null,null,null,null,null,null,null,null,{"$f":"IF(AU8=AU9,\"\",IF(AU8<AU9,AT8,AT9))","v":""},null,null,null,null,null,null,null,null,null,{"$f":"IF(BE20=BE21,\"\",IF(BE20<BE21,BD20,BD21))","v":""}]
[null,null,null,null,null,null,null,null,null,null,null,null,null,null,null,null,"F.Billard",null,{"$f":"AB44","v":0},null,null,null,null,null,null,null,"F.Billard",null,{"$f":"AL44","v":0},null,null,null,null,null,null,null,"F.Billard",null,{"$f":"AT44","v":0},null,null,null,null,null,"F.Billard",null,{"$f":"BD44","v":0},null,null,null,null,null,null,null,"F.Billard",null,{"$f":"S46","v":"Arbitre du Club"},null,null,null,null,null,null,null,"F.Billard",null,{"$f":"IF(BE44=BE45,\"\",IF(BE44>BE45,BD44,BD45))","v":""}]
[null,null,null,null,null,null,null,null,null,"32 joueurs sur 8 billards"]
[null,null,0,0,0,null,null,null,null,0,"00:00:00",null,null,null,null,null,"Dans ces matchs, il n'y a pas d'égalité de scores entre les joueurs.\n Appliquer la règle des prolongations définie dans le Règlement Sportif Art.4-03… Dans les points saisis sur cette feuille, mettre 1 point de plus sur le score du joueur remportant les prolongations pour les départager.\n\nPar contre sur la saisie FFB, mettre le même nombre de points aux deux joueurs, mais mettre 2 points gagnants au 1er et 0 point au 2ème et forcer ce choix.",null,null,null,null,null,null,null,null,null,null,null,null,null,"Si égalité de points : prolongations.\nIL NE PEUT Y AVOIR DE MATCH NUL.",null,null,null,null,null,null,null,null,null,null,null,null,null,"Format de Billard : chiffre 1 pour 2,80 et chiffre 2 pour 3,10",null,null,null,null,null,null,null,null,null,null,null,null,null,null,null,null,null,null,null,"Format de Billard : chiffre 1 pour 2,80 et chiffre 2 pour 3,10"]
[]
[null,null,"C. Perez",null,null,null,null,null,null,null,null,null,null,null,null,null,null,null,null,null,null,null,null,null,null,null,null,null,null,null,"10% de la distance normale. Non limitée au 3B."]
[null,null,null,null,null,null,null,null,null,null,null,null,null,null,null,null,null,null,null,null,null,null,null,null,null,null,null,null,null,null,"Joueur A débute, une seule reprise sur point de départ."]
[null,null,null,null,null,null,null,null,null,null,null,null,null,null,null,null,null,null,null,null,null,null,null,null,null,null,null,null,null,null,"Joueur B débute, une seule reprise sur point de départ."]
[null,null,null,null,null,null,null,null,null,null,null,null,null,null,null,null,null,null,null,null,null,null,null,null,null,null,null,null,null,null,"Si égalité nouvelle prolongation selon le même principe..."]
[null,null,null,null,null,null,null,null,null,null,null,null,null,null,null,null,null,null,null,null,null,null,null,null,null,null,null,null,null,null,"Jusqu'à élimination d'un joueur."]

{"sheet":"GRAPHIQUE 28J","index":6,"n_rows":69,"n_cols":106,"rows_kept":69,"cut":false,"hidden":true,"merged":[[47,4,47,8],[47,10,47,12],[48,24,54,36],[48,38,49,50],[48,52,49,57],[50,38,50,50],[51,38,51,50],[52,38,52,50],[53,38,53,50],[54,38,54,50],[40,63,40,65],[40,86,40,88],[43,1,44,6],[43,19,44,19],[43,47,44,47],[45,18,45,20],[45,26,45,28],[45,46,45,48],[45,54,45,56],[45,76,45,78],[38,4,39,4],[38,11,39,11],[38,27,39,27],[38,37,39,37],[38,47,39,47],[40,3,40,5],[40,10,40,12],[40,26,40,28],[40,36,40,38],[40,46,40,48],[30,86,30,88],[31,103,31,105],[33,19,34,19],[33,47,34,47],[35,18,35,20],[35,26,35,28],[35,46,35,48],[35,54,35,56],[35,76,35,78],[35,94,35,96],[30,3,30,5],[30,10,30,12],[30,26,30,28],[30,36,30,38],[30,46,30,48],[30,63,30,65],[25,76,25,78],[28,4,29,4],[28,11,29,11],[28,27,29,27],[28,37,29,37],[28,47,29,47],[23,19,24,19],[23,47,24,47],[25,18,25,20],[25,36,25,38],[25,46,25,48],[25,54,25,56],[18,103,18,105],[19,3,19,5],[19,10,19,12],[19,18,19,20],[19,26,19,28],[19,36,19,38],[19,63,19,65],[19,86,19,88],[14,94,14,96],[17,4,18,4],[17,11,18,11],[17,19,18,19],[17,27,18,27],[17,37,18,37],[9,86,9,88],[12,19,13,19],[12,47,13,47],[12,77,13,77],[14,18,14,20],[14,36,14,38],[14,46,14,48],[14,54,14,56],[14,76,14,78],[9,3,9,5],[9,10,9,12],[9,18,9,20],[9,26,9,28],[9,36,9,38],[9,63,9,65],[7,4,8,4],[7,11,8,11],[7,19,8,19],[7,27,8,27],[7,37,8,37],[7,64,8,64],[4,52,4,56],[4,61,4,65],[4,74,4,78],[4,84,4,88],[4,92,4,96],[4,101,4,105],[4,1,4,5],[4,8,4,12],[4,16,4,20],[4,24,4,28],[4,34,4,38],[4,44,4,48]]}
[]
[]
[]
[]
[null,"TOUR 1",null,null,null,null,null,null,"TOUR 2",null,null,null,null,null,null,null,"TOUR 3",null,null,null,null,null,null,null,"TOUR 4",null,null,null,null,null,null,null,null,null,"TOUR 5",null,null,null,null,null,null,null,null,null,"TOUR 6",null,null,null,null,null,null,null,"TOUR 7",null,null,null,null,null,null,null,null,"TOUR 8",null,null,null,null,null,null,null,null,null,null,null,null,"TOUR 9",null,null,null,null,null,null,null,null,null,"TOUR 10",null,null,null,null,null,null,null,"TOUR 11",null,null,null,null,null,null,null,null,"TOUR 12"]
[null,null,"J 28",null,null,null,null,null,null,"J 20",null,null,null,null,null,null,null,"J13",null,null,null,null,null,null,null,"J12",null,null,null,null,null,null,null,null,null,"J5",null,null,null,null,null,null,null,null,null,null,null,null,null,null,null,null,null,null,null,null,null,null,null,null,null,null,"J 4"]
[null,"PHASE 1 élim","JOUEUR","Pts","Rep","Ser",null,null,"PHASE 2 élim","JOUEUR","Pts","Rep","Ser",null,null,null,"PHASE 4 élim","JOUEUR","Pts","Rep","Ser",null,null,null,"PHASE 6 élim","JOUEUR","Pts","Rep","Ser",null,null,null,null,null,"PHASE 8 élim","JOUEUR","Pts","Rep","Ser",null,null,null,null,null,null,null,null,null,null,null,null,null,null,null,null,null,null,null,null,null,null,"PHASE 10 élim","JOUEUR","Pts","Rep","Ser",null,null,null,null,null,null,null,null,null,null,null,null,null,null,null,null,null,null,"PHASE 12","JOUEUR","Pts","Rep","Ser"]
[null,"Match 1",{"$f":"'Saisie des joueurs'!#REF!","v":{"$error":"#REF!"}},null,null,null,null,null,"Match 5",{"$f":"'Saisie des joueurs'!L41","v":0},null,null,null,null,null,null,"Match 13",{"$f":"'Saisie des joueurs'!L34","v":0},null,null,null,null,null,null,"Match 21",{"$f":"'Saisie des joueurs'!L33","v":0},null,null,null,null,null,null,null,null,"Match 29",{"$f":"'Saisie des joueurs'!L22","v":0},null,null,null,null,null,null,null,null,null,null,null,null,null,null,null,null,null,null,null,null,null,null,null,null,null,"Match 37",{"$f":"'Saisie des joueurs'!L20","v":0},null,null,null,null,null,null,null,null,null,null,null,null,null,null,null,null,null,null,null,null,null,"1/4  Finale",{"$f":"IF(BL8=BL9,\"\",IF(BL8>BL9,BK8,BK9))","v":""}]
[null,null,{"$f":"'Saisie des joueurs'!#REF!","v":{"$error":"#REF!"}},null,null,null,null,null,null,{"$f":"IF(D8=D9,\"\",IF(D8>D9,C8,C9))","v":""},null,null,null,null,null,null,null,{"$f":"IF(K8=K9,\"\",IF(K8>K9,J8,J9))","v":""},null,null,null,null,null,null,null,{"$f":"IF(S8=S9,\"\",IF(S8>S9,R8,R9))","v":""},null,null,null,null,null,null,null,null,null,{"$f":"IF(AA8=AA9,\"\",IF(AA8>AA9,Z8,Z9))","v":""},null,null,null,null,null,null,null,null,null,null,null,null,null,null,null,null,null,null,null,null,null,null,null,null,null,null,{"$f":"IF(AK8=AK9,\"\",IF(AK8>AK9,AJ8,AJ9))","v":""},null,null,null,null,null,null,null,null,null,null,null,null,null,null,null,null,null,null,null,null,null,null,{"$f":"IF(BY34=BY35,\"\",IF(BY34>BY35,BX34,BX35))","v":""}]
[null,"F.Billard","J21",{"$f":"J8","v":0},null,null,null,null,"F.Billard",null,{"$f":"IF(D8=D9,\"\",IF(D8<D9,C8,C9))","v":""},null,null,null,null,null,"F.Billard",null,{"$f":"Z29","v":0},null,null,null,null,null,"F.Billard",null,{"$f":"IF(S13=S14,\"\",IF(S13<S14,R13,R14))","v":""},null,null,null,null,null,null,null,"F.Billard",null,{"$f":"IF(AA8=AA9,\"\",IF(AA8<AA9,Z8,Z9))","v":""},null,null,null,null,null,null,null,null,null,null,null,null,null,null,null,null,null,null,null,null,null,null,null,null,"F.Billard",null,{"$f":"IF(BC13=BC14,\"\",IF(BC13<BC14,BB13,BB14))","v":""},null,null,null,null,null,null,null,null,null,null,null,null,null,null,null,null,null,null,null,null,"F.Billard",null,{"$f":"IF(BY13=BY14,\"\",IF(BY13<BY14,BX13,BX14))","v":""}]
[]
[null,null,"Arbitre",null,null,null,null,null,null,null,null,null,null,null,null,null,"PHASE 3 élim","JOUEUR","Pts","Rep","Ser",null,null,null,null,null,null,null,null,null,null,null,null,null,"PHASE 5 élim","JOUEUR","Pts","Rep","Ser",null,null,null,null,null,"PHASE 7 élim","JOUEUR","Pts","Rep","Ser",null,null,null,"PHASE 9 élim","JOUEUR","Pts","Rep","Ser",null,null,null,null,null,null,null,null,null,null,null,null,null,null,null,null,null,"PHASE 11","JOUEUR","Pts","Rep","Ser",null,null,null,null,null,null,null,null,null,null,null,null,null,"PHASE 13","JOUEUR","Pts","Rep","Ser"]
[null,null,null,null,null,null,null,null,null,null,null,null,null,null,null,null,"Match 9",{"$f":"IF(D8=D9,\"\",IF(D8<D9,C8,C9))","v":""},null,null,null,null,null,null,null,null,null,null,null,null,null,null,null,null,"Match 17",{"$f":"IF(S13=S14,\"\",IF(S13>S14,R13,R14))","v":""},null,null,null,null,null,null,null,null,"Match 25",{"$f":"IF(AK13=AK14,\"\",IF(AK13>AK14,AJ13,AJ14))","v":""},null,null,null,null,null,null,"Match 33",{"$f":"IF(AU13=AU14,\"\",IF(AU13>AU14,AT13,AT14))","v":""},null,null,null,null,null,null,null,null,null,null,null,null,null,null,null,null,null,null,null,null,"repêchage",{"$f":"IF(BC13=BC14,\"\",IF(BC13>BC14,BB13,BB14))","v":""},null,null,null,null,null,null,null,null,null,null,null,null,null,null,null,null,"1/2  Finale",{"$f":"IF(CI8=CI9,\"\",IF(CI8>CI9,CH8,CH9))","v":""}]
[null,null,null,null,null,null,null,null,null,null,null,null,null,null,null,null,null,{"$f":"IF(K18=K19,\"\",IF(K18<K19,J18,J19))","v":""},null,null,null,null,null,null,null,null,null,null,null,null,null,null,null,null,null,{"$f":"IF(AA39=AA40,\"\",IF(AA39<AA40,Z39,Z40))","v":""},null,null,null,null,null,null,null,null,null,{"$f":"IF(AK29=AK30,\"\",IF(AK29<AK30,AJ29,AJ30))","v":""},null,null,null,null,null,null,null,{"$f":"IF(AK18=AK19,\"\",IF(AK18<AK19,AJ18,AJ19))","v":""},null,null,null,null,null,null,null,null,null,null,null,null,null,null,null,null,null,null,null,null,null,{"$f":"IF(BL39=BL40,\"\",IF(BL39<BL40,BK39,BK40))","v":""},null,null,null,null,null,null,null,null,null,null,null,null,null,null,null,null,null,{"$f":"IF(CI18=CI19,\"\",IF(CI18>CI19,CH18,CH19))","v":""}]
[null,null,null,null,null,null,null,null,null,null,null,null,null,null,null,null,"F.Billard",null,{"$f":"Z39","v":0},null,null,null,null,null,null,null,null,null,null,null,null,null,null,null,"F.Billard",null,{"$f":"AT29","v":0},null,null,null,null,null,null,null,"F.Billard",null,{"$f":"IF(AK13=AK14,\"\",IF(AK13<AK14,AJ13,AJ14))","v":""},null,null,null,null,null,"F.Billard",null,{"$f":"IF(AU24=AU25,\"\",IF(AU24<AU25,AT24,AT25))","v":""},null,null,null,null,null,null,null,null,null,null,null,null,null,null,null,null,null,null,null,"F.Billard",null,{"$f":"IF(BL8=BL9,\"\",IF(BL8>BL9,BK8,BK9))","v":""},null,null,null,null,null,null,null,null,null,null,null,null,null,null,null,"F.Billard",null,{"$f":"IF(CI29=CI30,\"\",IF(CI29<CI30,CH29,CH30))","v":""}]
[null,null,"J 27",null,null,null,null,null,null,"J 19",null,null,null,null,null,null,null,"J14",null,null,null,null,null,null,null,"J11",null,null,null,null,null,null,null,null,null,"J6",null,null,null,null,null,null,null,null,null,null,null,null,null,null,null,null,null,null,null,null,null,null,null,null,null,null,"J 1",null,null,null,null,null,null,null,null,null,null,null,null,null,null,null,null,null,null,null,null,null,null,null,null,null,null,null,null,null,null,null,null,null,null,null,null,null,null,"PHASE 14","JOUEUR","Pts","Rep","Ser"]
[null,"PHASE 1 élim","JOUEUR","Pts","Rep","Ser",null,null,"PHASE 2 élim","JOUEUR","Pts","Rep","Ser",null,null,null,"PHASE 4 élim","JOUEUR","Pts","Rep","Ser",null,null,null,"PHASE 6 élim","JOUEUR","Pts","Rep","Ser",null,null,null,null,null,"PHASE 8 élim","JOUEUR","Pts","Rep","Ser",null,null,null,null,null,null,null,null,null,null,null,null,null,null,null,null,null,null,null,null,null,null,"PHASE 10 élim","JOUEUR","Pts","Rep","Ser",null,null,null,null,null,null,null,null,null,null,null,null,null,null,null,null,null,null,"PHASE 12","JOUEUR","Pts","Rep","Ser",null,null,null,null,null,null,null,null,null,null,null,null,"3è/4è Places",{"$f":"IF(CQ13=CQ14,\"\",IF(CQ13<CQ14,CP13,CP14))","v":""}]
[null,"Match 2","J27",null,null,null,null,null,"Match 6",{"$f":"'Saisie des joueurs'!L40","v":0},null,null,null,null,null,null,"Match 14",{"$f":"'Saisie des joueurs'!L35","v":0},null,null,null,null,null,null,"Match 22",{"$f":"'Saisie des joueurs'!L28","v":0},null,null,null,null,null,null,null,null,"Match 30",{"$f":"'Saisie des joueurs'!L23","v":0},null,null,null,null,null,null,null,null,null,null,null,null,null,null,null,null,null,null,null,null,null,null,null,null,null,"Match 38",{"$f":"'Saisie des joueurs'!L18","v":0},null,null,null,null,null,null,null,null,null,null,null,null,null,null,null,null,null,null,null,null,null,"1/4  Finale",{"$f":"IF(BL18=BL19,\"\",IF(BL18>BL19,BK18,BK19))","v":""},null,null,null,null,null,null,null,null,null,null,null,null,null,null,null,null,{"$f":"IF(CQ34=CQ35,\"\",IF(CQ34<CQ35,CP34,CP35))","v":""}]
[null,null,"J22",null,null,null,null,null,null,{"$f":"IF(D18=D19,\"\",IF(D18>D19,C18,C19))","v":""},null,null,null,null,null,null,null,{"$f":"IF(K18=K19,\"\",IF(K18>K19,J18,J19))","v":""},null,null,null,null,null,null,null,{"$f":"IF(S18=S19,\"\",IF(S18>S19,R18,R19))","v":""},null,null,null,null,null,null,null,null,null,{"$f":"IF(AA18=AA19,\"\",IF(AA18>AA19,Z18,Z19))","v":""},null,null,null,null,null,null,null,null,null,null,null,null,null,null,null,null,null,null,null,null,null,null,null,null,null,null,{"$f":"IF(AK18=AK19,\"\",IF(AK18>AK19,AJ18,AJ19))","v":""},null,null,null,null,null,null,null,null,null,null,null,null,null,null,null,null,null,null,null,null,null,null,{"$f":"IF(BY44=BY45,\"\",IF(BY44>BY45,BX44,BX45))","v":""},null,null,null,null,null,null,null,null,null,null,null,null,null,null,null,"F.Billard",null,{"$f":"IF(CI18=CI19,\"\",IF(CI18<CI19,CH18,CH19))","v":""}]
[null,"F.Billard","J22",{"$f":"J18","v":0},null,null,null,null,"F.Billard",null,{"$f":"IF(D18=D19,\"\",IF(D18<D19,C18,C19))","v":""},null,null,null,null,null,"F.Billard",null,{"$f":"Z8","v":0},null,null,null,null,null,"F.Billard",null,{"$f":"IF(S24=S25,\"\",IF(S24<S25,R24,R25))","v":""},null,null,null,null,null,null,null,"F.Billard",null,{"$f":"IF(AA18=AA19,\"\",IF(AA18<AA19,Z18,Z19))","v":""},null,null,null,null,null,null,null,null,null,null,null,null,null,null,null,null,null,null,null,null,null,null,null,null,"F.Billard",null,{"$f":"IF(BC24=BC25,\"\",IF(BC24<BC25,BB24,BB25))","v":""},null,null,null,null,null,null,null,null,null,null,null,null,null,null,null,null,null,null,null,null,"F.Billard",null,{"$f":"IF(BY24=BY25,\"\",IF(BY24<BY25,BX24,BX25))","v":""}]
[]
[]
[null,null,null,null,null,null,null,null,null,null,null,null,null,null,null,null,"PHASE 3 élim","JOUEUR","Pts","Rep","Ser",null,null,null,null,null,null,null,null,null,null,null,null,null,"PHASE 5 élim","JOUEUR","Pts","Rep","Ser",null,null,null,null,null,"PHASE 7 élim","JOUEUR","Pts","Rep","Ser",null,null,null,"PHASE 9 élim","JOUEUR","Pts","Rep","Ser",null,null,null,null,null,null,null,null,null,null,null,null,null,null,null,null,null,"PHASE 11","JOUEUR","Pts","Rep","Ser"]
[null,null,null,null,null,null,null,null,null,null,null,null,null,null,null,null,"Match 10",{"$f":"IF(K8=K9,\"\",IF(K8<K9,J8,J9))","v":""},null,null,null,null,null,null,null,null,null,null,null,null,null,null,null,null,"Match 18",{"$f":"IF(S24=S25,\"\",IF(S24>S25,R24,R25))","v":""},null,null,null,null,null,null,null,null,"Match 26",{"$f":"IF(AK24=AK25,\"\",IF(AK24>AK25,AJ24,AJ25))","v":""},null,null,null,null,null,null,"Match 34",{"$f":"IF(AU24=AU25,\"\",IF(AU24>AU25,AT24,AT25))","v":""},null,null,null,null,null,null,null,null,null,null,null,null,null,null,null,null,null,null,null,null,"repêchage",{"$f":"IF(BC24=BC25,\"\",IF(BC24>BC25,BB24,BB25))","v":""}]
[null,null,null,null,null,null,null,null,null,null,null,null,null,null,null,null,null,{"$f":"IF(D18=D19,\"\",IF(D18<D19,C18,C19))","v":""},null,null,null,null,null,null,null,null,null,null,null,null,null,null,null,null,null,{"$f":"IF(AA29=AA30,\"\",IF(AA29<AA30,Z29,Z30))","v":""},null,null,null,null,null,null,null,null,null,{"$f":"IF(AK39=AK40,\"\",IF(AK39<AK40,AJ39,AJ40))","v":""},null,null,null,null,null,null,null,{"$f":"IF(AK8=AK9,\"\",IF(AK8<AK9,AJ8,AJ9))","v":""},null,null,null,null,null,null,null,null,null,null,null,null,null,null,null,null,null,null,null,null,null,{"$f":"IF(BL29=BL30,\"\",IF(BL29<BL30,BK29,BK30))","v":""}]
[null,null,null,null,null,null,null,null,null,null,null,null,null,null,null,null,"F.Billard",null,{"$f":"Z18","v":0},null,null,null,null,null,null,null,null,null,null,null,null,null,null,null,"F.Billard",null,{"$f":"AT39","v":0},null,null,null,null,null,null,null,"F.Billard",null,{"$f":"IF(AK24=AK25,\"\",IF(AK24<AK25,AJ24,AJ25))","v":""},null,null,null,null,null,"F.Billard",null,{"$f":"IF(AU13=AU14,\"\",IF(AU13<AU14,AT13,AT14))","v":""},null,null,null,null,null,null,null,null,null,null,null,null,null,null,null,null,null,null,null,"F.Billard",null,{"$f":"IF(BL18=BL19,\"\",IF(BL18>BL19,BK18,BK19))","v":""}]
[null,null,"J 26",null,null,null,null,null,null,"J 18",null,null,null,null,null,null,null,null,null,null,null,null,null,null,null,"J15",null,null,null,null,null,null,null,null,null,"J 10",null,null,null,null,null,null,null,null,null,"J7",null,null,null,null,null,null,null,null,null,null,null,null,null,null,null,null,"J 2"]
[null,"PHASE 1 élim","JOUEUR","Pts","Rep","Ser",null,null,"PHASE 2 élim","JOUEUR","Pts","Rep","Ser",null,null,null,null,null,null,null,null,null,null,null,"PHASE 4 élim","JOUEUR","Pts","Rep","Ser",null,null,null,null,null,"PHASE 6 élim","JOUEUR","Pts","Rep","Ser",null,null,null,null,null,"PHASE 8 élim","JOUEUR","Pts","Rep","Ser",null,null,null,null,null,null,null,null,null,null,null,null,"PHASE 10 élim","JOUEUR","Pts","Rep","Ser",null,null,null,null,null,null,null,null,null,null,null,null,null,null,null,null,null,null,"PHASE 12","JOUEUR","Pts","Rep","Ser"]
[null,"Match 3","J26",null,null,null,null,null,"Match 7",{"$f":"'Saisie des joueurs'!L39","v":0},null,null,null,null,null,null,null,null,null,null,null,null,null,null,"Match 15",{"$f":"'Saisie des joueurs'!L36","v":0},null,null,null,null,null,null,null,null,"Match 23",{"$f":"'Saisie des joueurs'!L27","v":0},null,null,null,null,null,null,null,null,"Match 31",{"$f":"'Saisie des joueurs'!L24","v":0},null,null,null,null,null,null,null,null,null,null,null,null,null,null,null,"Match 39",{"$f":"'Saisie des joueurs'!L19","v":0},null,null,null,null,null,null,null,null,null,null,null,null,null,null,null,null,null,null,null,null,null,"1/4  Finale",{"$f":"IF(BL29=BL30,\"\",IF(BL29>BL30,BK29,BK30))","v":""},null,null,null,null,null,null,null,null,null,null,null,null,null,null,null,"PHASE 15","JOUEUR","Pts","Rep","Ser"]
[null,null,"J23",null,null,null,null,null,null,{"$f":"IF(D29=D30,\"\",IF(D29>D30,C29,C30))","v":""},null,null,null,null,null,null,null,null,null,null,null,null,null,null,null,{"$f":"IF(K29=K30,\"\",IF(K29>K30,J29,J30))","v":""},null,null,null,null,null,null,null,null,null,{"$f":"IF(AA29=AA30,\"\",IF(AA29>AA30,Z29,Z30))","v":""},null,null,null,null,null,null,null,null,null,{"$f":"IF(AK29=AK30,\"\",IF(AK29>AK30,AJ29,AJ30))","v":""},null,null,null,null,null,null,null,null,null,null,null,null,null,null,null,null,{"$f":"IF(AU29=AU30,\"\",IF(AU29>AU30,AT29,AT30))","v":""},null,null,null,null,null,null,null,null,null,null,null,null,null,null,null,null,null,null,null,null,null,null,{"$f":"IF(BY13=BY14,\"\",IF(BY13>BY14,BX13,BX14))","v":""},null,null,null,null,null,null,null,null,null,null,null,null,null,null,null,"FINALE",{"$f":"IF(CQ13=CQ14,\"\",IF(CQ13>CQ14,CP13,CP14))","v":""}]
[null,"F.Billard","J23",{"$f":"J29","v":0},null,null,null,null,"F.Billard",null,{"$f":"IF(D29=D30,\"\",IF(D29<D30,C29,C30))","v":""},null,null,null,null,null,null,null,null,null,null,null,null,null,"F.Billard",null,{"$f":"IF(S34=S35,\"\",IF(S34<S35,R34,R35))","v":""},null,null,null,null,null,null,null,"F.Billard",null,{"$f":"IF(AA34=AA35,\"\",IF(AA34<AA35,Z34,Z35))","v":""},null,null,null,null,null,null,null,"F.Billard",null,{"$f":"BK8","v":0},null,null,null,null,null,null,null,null,null,null,null,null,null,null,"F.Billard",null,{"$f":"IF(BC34=BC35,\"\",IF(BC34<BC35,BB34,BB35))","v":""},null,null,null,null,null,null,null,null,null,null,null,null,null,null,null,null,null,null,null,null,"F.Billard",null,{"$f":"IF(BY34=BY35,\"\",IF(BY34<BY35,BX34,BX35))","v":""},null,null,null,null,null,null,null,null,null,null,null,null,null,null,null,{"$f":"IF(CQ34=CQ35,\"\",IF(CQ34>CQ35,CP34,CP35))","v":""}]
[null,null,null,null,null,null,null,null,null,null,null,null,null,null,null,null,null,null,null,null,null,null,null,null,null,null,null,null,null,null,null,null,null,null,null,null,null,null,null,null,null,null,null,null,null,null,null,null,null,null,null,null,null,null,null,null,null,null,null,null,null,null,null,null,null,null,null,null,null,null,null,null,null,null,null,null,null,null,null,null,null,null,null,null,null,null,null,null,null,null,null,null,null,null,null,null,null,null,null,null,null,"F.Billard",null,{"$f":"IF(CI8=CI9,\"\",IF(CI8<CI9,CH8,CH9))","v":""}]
[null,null,null,null,null,null,null,null,null,null,null,null,null,null,null,null,"PHASE 3 élim","JOUEUR","Pts","Rep","Ser",null,null,null,"PHASE 5 élim","JOUEUR","Pts","Rep","Ser",null,null,null,null,null,null,null,null,null,null,null,null,null,null,null,"PHASE 7 élim","JOUEUR","Pts","Rep","Ser",null,null,null,"PHASE 9 élim","JOUEUR","Pts","Rep","Ser",null,null,null,null,null,null,null,null,null,null,null,null,null,null,null,null,null,"PHASE 11","JOUEUR","Pts","Rep","Ser",null,null,null,null,null,null,null,null,null,null,null,null,null,"PHASE 13","JOUEUR","Pts","Rep","Ser"]
[null,null,null,null,null,null,null,null,null,null,null,null,null,null,null,null,"Match 11",{"$f":"IF(D29=D30,\"\",IF(D29<D30,C29,C30))","v":""},null,null,null,null,null,null,"Match 19",{"$f":"IF(S34=S35,\"\",IF(S34>S35,R34,R35))","v":""},null,null,null,null,null,null,null,null,null,null,null,null,null,null,null,null,null,null,"Match 27",{"$f":"IF(AA34=AA35,\"\",IF(AA34>AA35,Z34,Z35))","v":""},null,null,null,null,null,null,"Match 35",{"$f":"IF(AU34=AU35,\"\",IF(AU34>AU35,AT34,AT35))","v":""},null,null,null,null,null,null,null,null,null,null,null,null,null,null,null,null,null,null,null,null,"repêchage",{"$f":"IF(BC34=BC35,\"\",IF(BC34>BC35,BB34,BB35))","v":""},null,null,null,null,null,null,null,null,null,null,null,null,null,null,null,null,"1/2  Finale",{"$f":"IF(CI29=CI30,\"\",IF(CI29>CI30,CH29,CH30))","v":""}]
[null,null,null,null,null,null,null,null,null,null,null,null,null,null,null,null,null,{"$f":"IF(K39=K40,\"\",IF(K39<K40,J39,J40))","v":""},null,null,null,null,null,null,null,{"$f":"IF(S18=S19,\"\",IF(S18<S19,R18,R19))","v":""},null,null,null,null,null,null,null,null,null,null,null,null,null,null,null,null,null,null,null,{"$f":"IF(AA8=AA9,\"\",IF(AA8<AA9,Z8,Z9))","v":""},null,null,null,null,null,null,null,{"$f":"IF(AU39=AU40,\"\",IF(A39<AU40,AT39,AT40))","v":""},null,null,null,null,null,null,null,null,null,null,null,null,null,null,null,null,null,null,null,null,null,{"$f":"IF(BL18=BL19,\"\",IF(BL18<BL19,BK18,BK19))","v":""},null,null,null,null,null,null,null,null,null,null,null,null,null,null,null,null,null,{"$f":"IF(CI39=CI40,\"\",IF(CI39>CI40,CH39,CH40))","v":""}]
[null,null,null,null,null,null,null,null,null,null,null,null,null,null,null,null,"F.Billard",null,{"$f":"AJ29","v":0},null,null,null,null,null,"F.Billard",null,{"$f":"AJ8","v":0},null,null,null,null,null,null,null,null,null,null,null,null,null,null,null,null,null,"F.Billard",null,{"$f":"BK39","v":0},null,null,null,null,null,"F.Billard",null,{"$f":"IF(AU44=AU45,\"\",IF(AU44<AU45,AT44,AT45))","v":""},null,null,null,null,null,null,null,null,null,null,null,null,null,null,null,null,null,null,null,"F.Billard",null,{"$f":"IF(BL29=BL30,\"\",IF(BL29>BL30,BK29,BK30))","v":""},null,null,null,null,null,null,null,null,null,null,null,null,null,null,null,"F.Billard",null,{"$f":"IF(CI39=CI40,\"\",IF(CI39<CI40,CH39,CH40))","v":""}]
[null,null,"J 25",null,null,null,null,null,null,"J17",null,null,null,null,null,null,null,null,null,null,null,null,null,null,null,"J16",null,null,null,null,null,null,null,null,null,"J 9",null,null,null,null,null,null,null,null,null,"J8",null,null,null,null,null,null,null,null,null,null,null,null,null,null,null,null,"J 3"]
[null,"PHASE 1 élim","JOUEUR","Pts","Rep","Ser",null,null,"PHASE 2 élim","JOUEUR","Pts","Rep","Ser",null,null,null,null,null,null,null,null,null,null,null,"PHASE 4 élim","JOUEUR","Pts","Rep","Ser",null,null,null,null,null,"PHASE 6 élim","JOUEUR","Pts","Rep","Ser",null,null,null,null,null,"PHASE 8 élim","JOUEUR","Pts","Rep","Ser",null,null,null,null,null,null,null,null,null,null,null,null,"PHASE 10 élim","JOUEUR","Pts","Rep","Ser",null,null,null,null,null,null,null,null,null,null,null,null,null,null,null,null,null,null,"PHASE 12","JOUEUR","Pts","Rep","Ser"]
[null,"Match 4",{"$f":"'Saisie des joueurs'!#REF!","v":{"$error":"#REF!"}},null,null,null,null,null,"Match 8",{"$f":"'Saisie des joueurs'!L38","v":0},null,null,null,null,null,null,null,null,null,null,null,null,null,null,"Match 16",{"$f":"'Saisie des joueurs'!L37","v":0},null,null,null,null,null,null,null,null,"Match 24",{"$f":"'Saisie des joueurs'!L26","v":0},null,null,null,null,null,null,null,null,"Match 32",{"$f":"'Saisie des joueurs'!L25","v":0},null,null,null,null,null,null,null,null,null,null,null,null,null,null,null,"Match 40",{"$f":"'Saisie des joueurs'!L21","v":0},null,null,null,null,null,null,null,null,null,null,null,null,null,null,null,null,null,null,null,null,null,"1/4  Finale",{"$f":"IF(BL39=BL40,\"\",IF(BL39>BL40,BK39,BK40))","v":""}]
[null,null,{"$f":"'Saisie des joueurs'!#REF!","v":{"$error":"#REF!"}},null,null,null,null,null,null,{"$f":"IF(D39=D40,\"\",IF(D39>D40,C39,C40))","v":""},null,null,null,null,null,null,null,null,null,null,null,null,null,null,null,{"$f":"IF(K39=K40,\"\",IF(K39>K40,J39,J40))","v":""},null,null,null,null,null,null,null,null,null,{"$f":"IF(AA39=AA40,\"\",IF(AA39>AA40,Z39,Z40))","v":""},null,null,null,null,null,null,null,null,null,{"$f":"IF(AK39=AK40,\"\",IF(AK39>AK40,AJ39,AJ40))","v":""},null,null,null,null,null,null,null,null,null,null,null,null,null,null,null,null,{"$f":"IF(AU39=AU40,\"\",IF(AU39>AU40,AT39,AT40))","v":""},null,null,null,null,null,null,null,null,null,null,null,null,null,null,null,null,null,null,null,null,null,null,{"$f":"IF(BY24=BY25,\"\",IF(BY24>BY25,BX24,BX25))","v":""}]
[null,"F.Billard","J24",{"$f":"J39","v":0},null,null,null,null,"F.Billard",null,{"$f":"IF(D39=D40,\"\",IF(D39<D40,C39,C40))","v":""},null,null,null,null,null,null,null,null,null,null,null,null,null,"F.Billard",null,{"$f":"IF(S44=S45,\"\",IF(S44<S45,R44,R45))","v":""},null,null,null,null,null,null,null,"F.Billard",null,{"$f":"IF(AA44=AA45,\"\",IF(AA44<AA45,Z44,Z45))","v":""},null,null,null,null,null,null,null,"F.Billard",null,{"$f":"BK18","v":0},null,null,null,null,null,null,null,null,null,null,null,null,null,null,"F.Billard",null,{"$f":"IF(BC44=BC45,\"\",IF(BC44<BC45,BB44,BB45))","v":""},null,null,null,null,null,null,null,null,null,null,null,null,null,null,null,null,null,null,null,null,"F.Billard",null,{"$f":"IF(BY44=BY45,\"\",IF(BY44<BY45,BX44,BX45))","v":""}]
[]
[null,null,null,null,null,null,null,null,null,null,null,null,null,null,null,null,"PHASE 3 élim","JOUEUR","Pts","Rep","Ser",null,null,null,"PHASE 5 élim","JOUEUR","Pts","Rep","Ser",null,null,null,null,null,null,null,null,null,null,null,null,null,null,null,"PHASE 7 élim","JOUEUR","Pts","Rep","Ser",null,null,null,"PHASE 9 élim","JOUEUR","Pts","Rep","Ser",null,null,null,null,null,null,null,null,null,null,null,null,null,null,null,null,null,"PHASE 11","JOUEUR","Pts","Rep","Ser"]
[null,"Format de Billard : chiffre 1 pour 2,80 et chiffre 2 pour 3,10",null,null,null,null,null,null,null,null,null,null,null,null,null,null,"Match 12",{"$f":"IF(K29=K30,\"\",IF(K29<K30,J29,J30))","v":""},null,null,null,null,null,null,"Match 20",{"$f":"IF(S44=S45,\"\",IF(S44>S45,R44,R45))","v":""},null,null,null,null,null,null,null,null,null,null,null,null,null,null,null,null,null,null,"Match 28",{"$f":"IF(AA44=AA45,\"\",IF(AA44>AA45,Z44,Z45))","v":""},null,null,null,null,null,null,"Match 36",{"$f":"IF(AU44=AU45,\"\",IF(AU44>AU45,AT44,AT45))","v":""},null,null,null,null,null,null,null,null,null,null,null,null,null,null,null,null,null,null,null,null,"repêchage",{"$f":"IF(BC44=BC45,\"\",IF(BC44>BC45,BB44,BB45))","v":""}]
[null,null,null,null,null,null,null,null,null,null,null,null,null,null,null,null,null,{"$f":"IF(D39=D40,\"\",IF(D39<D40,C39,C40))","v":""},null,null,null,null,null,null,null,{"$f":"IF(S8=S9,\"\",IF(S8<S9,R8,R9))","v":""},null,null,null,null,null,null,null,null,null,null,null,null,null,null,null,null,null,null,null,{"$f":"IF(AA18=AA19,\"\",IF(AA18<AA19,Z18,Z19))","v":""},null,null,null,null,null,null,null,{"$f":"IF(AU29=AU30,\"\",IF(AU29<AU30,AT29,AT30))","v":""},null,null,null,null,null,null,null,null,null,null,null,null,null,null,null,null,null,null,null,null,null,{"$f":"IF(BL8=BL9,\"\",IF(BL8<BL9,BK8,BK9))","v":""}]
[null,null,null,null,null,null,null,null,null,null,null,null,null,null,null,null,"F.Billard",null,{"$f":"AJ39","v":0},null,null,null,null,null,"F.Billard",null,{"$f":"AJ18","v":0},null,null,null,null,null,null,null,null,null,null,null,null,null,null,null,null,null,"F.Billard",null,{"$f":"BK29","v":0},null,null,null,null,null,"F.Billard",null,{"$f":"IF(AU34=AU35,\"\",IF(AU34<AU35,AT34,AT35))","v":""},null,null,null,null,null,null,null,null,null,null,null,null,null,null,null,null,null,null,null,"F.Billard",null,{"$f":"IF(BL39=BL40,\"\",IF(BL39>BL40,BK39,BK40))","v":""}]
[null,null,null,null,null,null,null,null,null,"28 joueurs sur 6 billards"]
[null,null,0,0,0,null,null,null,null,0,"00:00:00"]
[null,null,null,null,null,null,null,null,null,null,null,null,null,null,null,null,null,null,null,null,null,null,null,null,"Dans ces matchs, il n'y a pas d'égalité de scores entre les joueurs.\n Appliquer la règle des prolongations définie dans le Règlement Sportif Art.4-03… Dans les points saisis sur cette feuille, mettre 1 point de plus sur le score du joueur remportant les prolongations pour les départager.\n\nPar contre sur la saisie FFB, mettre le même nombre de points aux deux joueurs, mais mettre 2 points gagnants au 1er et 0 point au 2ème et forcer ce choix.",null,null,null,null,null,null,null,null,null,null,null,null,null,"Si égalité de points : prolongations.\nIL NE PEUT Y AVOIR DE MATCH NUL.",null,null,null,null,null,null,null,null,null,null,null,null,null,"Format de Billard : chiffre 1 pour 2,80 et chiffre 2 pour 3,10"]
[null,null,"C. Perez"]
[null,null,null,null,null,null,null,null,null,null,null,null,null,null,null,null,null,null,null,null,null,null,null,null,null,null,null,null,null,null,null,null,null,null,null,null,null,null,"10% de la distance normale. Non limitée au 3B."]
[null,null,"ATTENTION :","La saisie sur FFB doit respecter les phases ; Le tournoi se fait sur 12 tours de jeu, puisque sur 6 billards, MAIS EN 15 PHASES.",null,null,null,null,null,null,null,null,null,null,null,null,null,null,null,null,null,null,null,null,null,null,null,null,null,null,null,null,null,null,null,null,null,null,"Joueur A débute, une seule reprise sur point de départ."]
[null,null,null,null,null,null,null,null,null,null,null,null,null,null,null,null,null,null,null,null,null,null,null,null,null,null,null,null,null,null,null,null,null,null,null,null,null,null,"Joueur B débute, une seule reprise sur point de départ."]
[null,null,null,"Saisir les matchs indiqués dans chaque PHASE, bien qu'ils aient été joués sur des tours différents : ",null,null,null,null,null,null,null,null,null,null,null,null,null,null,null,null,null,null,null,null,null,null,null,null,null,null,null,null,null,null,null,null,null,null,"Si égalité nouvelle prolongation selon le même principe..."]
[null,null,null,null,"Les 4 matchs de la PHASE 1   éliminatoire matchs 1 à 4",null,null,null,null,null,null,null,null,null,null,null,null,null,null,null,null,null,null,null,null,null,null,null,null,null,null,null,null,null,null,null,null,null,"Jusqu'à élimination d'un joueur."]
[null,null,null,null,"Les 4 matchs de la PHASE 2   éliminatoire matchs 5 à 8"]
[null,null,null,null,"Les 4 matchs de la PHASE 3   éliminatoire matchs 9 à 12"]
[null,null,null,null,"Les 4 matchs de la PHASE 4   éliminatoire matchs 13 à 16"]
[null,null,null,null,"Les 4 matchs de la PHASE 5   éliminatoire matchs 17 à 20"]
[null,null,null,null,"Les 4 matchs de la PHASE 6   éliminatoire matchs 21 à 24"]
[null,null,null,null,"Les 4 matchs de la PHASE 7   éliminatoire matchs 25 à 28"]
[null,null,null,null,"Les 4 matchs de la PHASE 8   éliminatoire matchs 29 à 32"]
[null,null,null,null,"Les 4 matchs de la PHASE 9   éliminatoire matchs 33 à 36"]
[null,null,null,null,"Les 4 matchs de la PHASE 10   éliminatoire matchs 37 à 40"]
[null,null,null,null,"Les 4 matchs de la PHASE 11   Repêchage"]
[null,null,null,null,"Les 4 matchs de la PHASE 12   1/4 de finale"]
[null,null,null,null,"Les 2 matchs de la PHASE 13   1/2 finale"]
[null,null,null,null,"Le match de la PHASE 14   3è et 4è places"]
[null,null,null,null,"Et enfin le match de la PHASE 15  FINALE"]

{"sheet":"Distances","index":7,"n_rows":24,"n_cols":7,"rows_kept":24,"cut":false,"hidden":false,"merged":[[4,1,10,3],[12,1,18,3],[23,1,23,2],[0,1,0,5],[1,1,1,5],[2,1,2,5]]}
[null,"ANNEXE 1 au RS Carambole 2023-2024"]
[null,"LIGUE MEDITERANNEE BILLARD"]
[null,"Catégories et Distances"]
[]
[null,"DISTANCES 1\n3 BANDES 2KO\nPhases jusqu'aux\nrepêchages",null,null,"N 1","30 Pts / 50 r"]
[null,null,null,null,"N 2","25 Pts / 50 r"]
[]
[null,null,null,null,null,"2,80 m","3,10 m"]
[null,null,null,null,"N 3","15 Pts / 40 r","12 Pts / 40 r"]
[null,null,null,null,"R 1","12 Pts / 40 r","10 Pts / 40 r"]
[null,null,null,null,"R 2","8 Pts / 40 r"]
[]
[null,"DISTANCES 2\n3 BANDES 2KO\nPhases finales",null,null,"N 1","35 Pts / 50 r"]
[null,null,null,null,"N 2","30 Pts / 50 r"]
[]
[null,null,null,null,null,"2,80 m","3,10 m"]
[null,null,null,null,"N 3","20 Pts / 40 r","15 Pts / 40 r"]
[null,null,null,null,"R 1","15 Pts / 40 r","13 Pts / 40 r"]
[null,null,null,null,"R 2","11 Pts / 40 r"]
[]
[]
[]
[]
[null,"™A.FERHAT ™ C.PEREZ"]

{"sheet":"GRAPHIQUE 16J","index":8,"n_rows":54,"n_cols":63,"rows_kept":54,"cut":false,"hidden":false,"merged":[[23,45,24,45],[25,44,25,46],[27,37,28,37],[29,3,29,5],[29,9,29,12],[29,19,29,21],[29,25,29,28],[29,36,29,38],[29,42,29,46],[25,2,25,5],[25,10,25,12],[25,17,25,21],[25,26,25,28],[25,34,25,38],[22,1,23,2],[22,8,23,8],[22,24,23,24],[22,42,23,42],[23,3,23,5],[23,11,24,11],[23,27,24,27],[2,1,2,61],[4,26,5,34],[7,1,7,28],[7,29,7,33],[7,34,7,61],[9,1,9,21],[9,24,9,28],[9,34,9,38],[9,42,9,46],[9,49,9,53],[11,42,11,46],[11,49,11,53],[11,57,11,61],[13,9,13,12],[13,25,13,28],[13,42,13,46],[11,1,11,5],[11,8,11,12],[11,17,11,21],[11,24,11,28],[11,34,11,38],[14,57,15,61],[15,11,16,11],[15,27,16,27],[15,45,16,45],[17,2,17,5],[17,10,17,12],[17,17,17,21],[17,26,17,28],[17,34,17,38],[17,44,17,46],[17,49,17,53],[17,57,17,61],[14,8,15,8],[14,24,15,24],[14,42,15,42],[18,1,19,1],[18,17,19,17],[18,34,19,34],[18,49,19,49],[18,57,19,57],[19,4,20,4],[19,20,20,20],[19,37,20,37],[19,52,20,52],[19,60,20,60],[21,3,21,5],[21,9,21,12],[21,19,21,21],[21,25,21,28],[21,36,21,38],[21,42,21,46],[21,51,21,53],[21,59,21,61],[30,24,31,24],[30,42,31,42],[30,57,31,61],[31,11,32,11],[31,27,32,27],[31,45,32,45],[30,8,31,8],[33,44,33,46],[26,1,27,1],[26,17,27,17],[26,34,27,34],[27,4,28,4],[27,20,28,20],[33,49,33,53],[33,57,33,61],[33,2,33,5],[33,10,33,12],[33,17,33,21],[33,26,33,28],[33,34,33,38],[35,60,36,60],[37,9,37,12],[37,19,37,21],[37,25,37,28],[37,36,37,38],[34,1,35,1],[34,17,35,17],[34,34,35,34],[34,49,35,49],[34,57,35,57],[35,4,36,4],[35,20,36,20],[35,37,36,37],[35,52,36,52],[37,42,37,46],[37,3,37,5],[41,2,41,5],[41,10,41,12],[41,17,41,21],[41,26,41,28],[41,34,41,38],[37,51,37,53],[37,59,37,61],[38,8,39,8],[38,24,39,24],[38,42,39,42],[39,11,40,11],[39,27,40,27],[39,45,40,45],[0,1,1,23],[45,19,45,21],[45,36,45,38],[47,19,53,28],[47,33,48,44],[49,1,49,2],[49,4,49,8],[49,10,49,12],[49,33,49,44],[50,33,50,44],[51,33,51,44],[52,33,52,44],[53,1,55,17],[53,33,53,44],[45,3,45,5],[45,8,46,13],[41,44,41,46],[42,1,43,1],[42,17,43,17],[42,34,43,34],[43,4,44,4],[43,20,44,20],[43,37,44,37],[43,42,44,45]]}
[null,"GRAPHIQUE 2KO : 16 joueurs sur 4 billards"]
[""]
["","SAMEDI ou DIMANCHE sur une seule journée"]
[]
[null,null,null,null,null,null,null,null,null,null,null,null,null,null,null,null,null,null,null,null,null,null,null,null,null,null,"OU"]
[]
[]
[null,"SAMEDI",null,null,null,null,null,null,null,null,null,null,null,null,null,null,null,null,null,null,null,null,null,null,null,null,null,null,null,"ET",null,null,null,null,"DIMANCHE"]
[]
[null,"PHASE 1  DISTANCES 1",null,null,null,null,null,null,null,null,null,null,null,null,null,null,null,null,null,null,null,null,null,null,"PHASE 2  DISTANCES 1",null,null,null,null,null,null,null,null,null,"PHASE 2  DISTANCES 1",null,null,null,null,null,null,null,"PHASE 3  DISTANCES 2",null,null,null,null,null,null,"PHASE 4  DISTANCES 2"]
[]
[null,"TOUR 1",null,null,null,null,null,null,"TOUR 2",null,null,null,null,null,null,null,null,"TOUR 3",null,null,null,null,null,null,"TOUR 4",null,null,null,null,null,null,null,null,null,"TOUR 5",null,null,null,null,null,null,null,"TOUR 6",null,null,null,null,null,null,"TOUR 7",null,null,null,null,null,null,null,"TOUR 8"]
[]
[null,null,null,null,null,null,null,null,"j8","ELIMINATOIRE 1",null,null,null,null,null,null,null,null,null,null,null,null,null,null,"j3","ELIMINATOIRE 2",null,null,null,null,null,null,null,null,null,null,null,null,null,null,null,null,"1/4 DE FINALE"]
[null,null,null,null,null,null,null,null,"Match 5","JOUEUR","Pts","Rep","Ser",null,null,null,null,null,null,null,null,null,null,null,"Match 13","JOUEUR","Pts","Rep","Ser",null,null,null,null,null,null,null,null,null,null,null,null,null,"Match 21","JOUEUR","Pts","Rep","Ser",null,null,null,null,null,null,null,null,null,null,"PHASE 5  DISTANCES 2"]
[null,null,null,null,null,null,null,null,null,{"$f":"'Saisie des joueurs'!L25","v":0},null,null,null,{"$f":"IF(K16>K17,2,0)","v":0},null,null,null,null,null,null,null,null,null,null,null,{"$f":"'Saisie des joueurs'!L20","v":0},null,null,null,{"$f":"IF(AA16>AA17,2,0)","v":0},null,null,null,null,null,null,null,null,null,null,null,null,null,{"$f":"IF(AA16=AA17,\"\",IF(AA16>AA17,Z16,Z17))","v":""},null,null,null,{"$f":"IF(AS16>AS17,2,0)","v":0}]
[null,null,null,null,null,null,null,null,"Format Billard",{"$f":"IF(D20=D21,\"\",IF(D20>D21,C20,C21))","v":""},null,null,null,{"$f":"IF(K17>K16,2,0)","v":0},null,null,null,null,null,null,null,null,null,null,"Format Billard",{"$f":"IF(K16=K17,\"\",IF(K16>K17,J16,J17))","v":""},null,null,null,{"$f":"IF(AA17>AA16,2,0)","v":0},null,null,null,null,null,null,null,null,null,null,null,null,"Format Billard",{"$f":"IF(AK20=AK21,\"\",IF(AK20>AK21,AJ20,AJ21))","v":""},null,null,null,{"$f":"IF(AS17>AS16,2,0)","v":0}]
[null,"j16","ELIMINATOIRE 1",null,null,null,null,null,null,null,{"$f":"IF(D20=D21,\"\",IF(D20<D21,C20,C21))","v":""},null,null,null,null,null,null,"ELIMINATOIRE 1",null,null,null,null,null,null,null,null,{"$f":"IF(T20=T21,\"\",IF(T20<T21,S20,S21))","v":""},null,null,null,null,null,null,null,"REPÊCHAGE",null,null,null,null,null,null,null,null,null,{"$f":"IF(AK20=AK21,\"\",IF(AK20<AK21,AJ20,AJ21))","v":""},null,null,null,null,"1/2 FINALE",null,null,null,null,null,null,null,"3éme et 4éme PLACES"]
[null,"Match 1","JOUEUR","Pts","Rep","Ser",null,null,null,null,null,null,null,null,null,null,null,"Match 9","JOUEUR","Pts","Rep","Ser",null,null,null,null,null,null,null,null,null,null,null,null,"Match 17","JOUEUR","Pts","Rep","Ser",null,null,null,null,null,null,null,null,null,null,"Match 25","JOUEUR","Pts","Rep","Ser",null,null,null,"Match 27","JOUEUR",30,"Rep",5]
[null,null,{"$f":"'Saisie des joueurs'!L33","v":0},null,null,null,{"$f":"IF(D20>D21,2,0)","v":0},null,null,null,null,null,null,null,null,null,null,null,{"$f":"IF(D20=D21,\"\",IF(D20>D21,C21,C20))","v":""},null,null,null,{"$f":"IF(T20>T21,2,0)","v":0},null,null,null,null,null,null,null,null,null,null,null,null,{"$f":"IF(T20=T21,\"\",IF(T20>T21,S20,S21))","v":""},null,null,null,{"$f":"IF(AK20>AK21,2,0)","v":0},null,null,null,null,null,null,null,null,null,null,{"$f":"IF(AS16=AS17,\"\",IF(AS16>AS17,AR16,AR17))","v":""},null,null,null,{"$f":"IF(AZ20>AZ21,2,0)","v":0},null,null,null,{"$f":"IF(AZ20=AZ21,\"\",IF(AZ20<AZ21,AY20,AY21))","v":""},null,null,null,{"$f":"IF(BH20>BH21,2,0)","v":0}]
[null,"Format Billard",{"$f":"'Saisie des joueurs'!L26","v":0},null,null,null,{"$f":"IF(D21>D20,2,0)","v":0},null,null,null,null,null,null,null,null,null,null,"Format Billard",{"$f":"IF(K24=K25,\"\",IF(K24>K25,J25,J24))","v":""},null,null,null,{"$f":"IF(T21>T20,2,0)","v":0},null,null,null,null,null,null,null,null,null,null,null,"Format Billard",{"$f":"IF(AA40=AA41,\"\",IF(AA40<AA41,Z40,Z41))","v":""},null,null,null,{"$f":"IF(AK21>AK20,2,0)","v":0},null,null,null,null,null,null,null,null,null,"Format Billard",{"$f":"IF(AS24=AS25,\"\",IF(AS24>AS25,AR24,AR25))","v":""},null,null,null,{"$f":"IF(AZ21>AZ20,2,0)","v":0},null,null,"Format Billard",{"$f":"IF(AZ36=AZ37,\"\",IF(AZ36<AZ37,AY36,AY37))","v":""},null,null,null,{"$f":"IF(BH21>BH20,2,0)","v":0}]
[null,null,"J 9",{"$f":"J16","v":0},null,null,null,null,"j7","ELIMINATOIRE 1",null,null,null,null,null,null,null,null,null,{"$f":"Z16","v":0},null,null,null,null,"j2","ELIMINATOIRE 2",null,null,null,null,null,null,null,null,null,null,{"$f":"IF(AA16=AA17,\"\",IF(AA16>AA17,Z16,Z17))","v":""},null,null,null,null,null,"1/4 DE FINALE",null,null,null,null,null,null,null,null,{"$f":"IF(AS16=AS17,\"\",IF(AS16<AS17,AR16,AR17))","v":""},null,null,null,null,null,null,null,{"$f":"IF(AS40=AS41,\"\",IF(AS40<AS41,AR40,AR41))","v":""}]
[null,"Format de Billard : mettre 3,10\nsi match joué sur ces billards",null,null,null,null,null,null,"Match 6","JOUEUR","Pts","Rep","Ser",null,null,null,null,null,null,null,null,null,null,null,"Match 14","JOUEUR","Pts","Rep","Ser",null,null,null,null,null,null,null,null,null,null,null,null,null,"Match 22","JOUEUR","Pts","Rep","Ser"]
[null,null,null,"Arbitre",null,null,null,null,null,{"$f":"'Saisie des joueurs'!L24","v":0},null,null,null,{"$f":"IF(K24>K25,2,0)","v":0},null,null,null,null,null,null,null,null,null,null,null,{"$f":"'Saisie des joueurs'!L19","v":0},null,null,null,{"$f":"IF(AA24>AA25,2,0)","v":0},null,null,null,null,null,null,null,null,null,null,null,null,null,{"$f":"IF(AA24=AA25,\"\",IF(AA24>AA25,Z24,Z25))","v":""},null,null,null,{"$f":"IF(AS24>AS25,2,0)","v":0}]
[null,null,null,null,null,null,null,null,"Format Billard",{"$f":"IF(D28=D29,\"\",IF(D28>D29,C28,C29))","v":""},null,null,null,{"$f":"IF(K25>K24,2,0)","v":0},null,null,null,null,null,null,null,null,null,null,"Format Billard",{"$f":"IF(K24=K25,\"\",IF(K24>K25,J24,J25))","v":""},null,null,null,{"$f":"IF(AA25>AA24,2,0)","v":0},null,null,null,null,null,null,null,null,null,null,null,null,"Format Billard",{"$f":"IF(AK28=AK29,\"\",IF(AK28>AK29,AJ28,AJ29))","v":""},null,null,null,{"$f":"IF(AS25>AS24,2,0)","v":0}]
[null,"j15","ELIMINATOIRE 1",null,null,null,null,null,null,null,{"$f":"IF(D28=D29,\"\",IF(D28<D29,C28,C29))","v":""},null,null,null,null,null,null,"ELIMINATOIRE 1",null,null,null,null,null,null,null,null,{"$f":"IF(T28=T29,\"\",IF(T28<T29,S28,S29))","v":""},null,null,null,null,null,null,null,"REPÊCHAGE",null,null,null,null,null,null,null,null,null,{"$f":"IF(AK28=AK29,\"\",IF(AK28<AK29,AJ28,AJ29))","v":""}]
[null,"Match 2","JOUEUR","Pts","Rep","Ser",null,null,null,null,null,null,null,null,null,null,null,"Match 10","JOUEUR","Pts","Rep","Ser",null,null,null,null,null,null,null,null,null,null,null,null,"Match 18","JOUEUR","Pts","Rep","Ser"]
[null,null,{"$f":"'Saisie des joueurs'!L32","v":0},null,null,null,{"$f":"IF(D28>D29,2,0)","v":0},null,null,null,null,null,null,null,null,null,null,null,{"$f":"IF(D28=D29,\"\",IF(D28>D29,C29,C28))","v":""},null,null,null,{"$f":"IF(T28>T29,2,0)","v":0},null,null,null,null,null,null,null,null,null,null,null,null,{"$f":"IF(T28=T29,\"\",IF(T28>T29,S28,S29))","v":""},null,null,null,{"$f":"IF(AK28>AK29,2,0)","v":0}]
[null,"Format Billard",{"$f":"'Saisie des joueurs'!L27","v":0},null,null,null,{"$f":"IF(D29>D28,2,0)","v":0},null,null,null,null,null,null,null,null,null,null,"Format Billard",{"$f":"IF(K16=K17,\"\",IF(K16>K17,J17,J16))","v":""},null,null,null,{"$f":"IF(T29>T28,2,0)","v":0},null,null,null,null,null,null,null,null,null,null,null,"Format Billard",{"$f":"IF(AA32=AA33,\"\",IF(AA32<AA33,Z32,Z33))","v":""},null,null,null,{"$f":"IF(AK29>AK28,2,0)","v":0}]
[null,null,"J 10",{"$f":"J24","v":0},null,null,null,null,"j6","ELIMINATOIRE 1",null,null,null,null,null,null,null,null,null,{"$f":"Z24","v":0},null,null,null,null,"j1","ELIMINATOIRE 2",null,null,null,null,null,null,null,null,null,null,{"$f":"IF(AA24=AA25,\"\",IF(AA24>AA25,Z24,Z25))","v":""},null,null,null,null,null,"1/4 DE FINALE"]
[null,null,null,null,null,null,null,null,"Match 7","JOUEUR","Pts","Rep","Ser",null,null,null,null,null,null,null,null,null,null,null,"Match 15","JOUEUR","Pts","Rep","Ser",null,null,null,null,null,null,null,null,null,null,null,null,null,"Match 23","JOUEUR","Pts","Rep","Ser",null,null,null,null,null,null,null,null,null,null,"PHASE 6  DISTANCES 2"]
[null,null,null,null,null,null,null,null,null,{"$f":"'Saisie des joueurs'!L23","v":0},null,null,null,null,null,null,null,null,null,null,null,null,null,null,null,{"$f":"'Saisie des joueurs'!L18","v":0},null,null,null,{"$f":"IF(AA32>AA33,2,0)","v":0},null,null,null,null,null,null,null,null,null,null,null,null,null,{"$f":"IF(AA32=AA33,\"\",IF(AA32>AA33,Z32,Z33))","v":""},null,null,null,{"$f":"IF(AS32>AS33,2,0)","v":0}]
[null,null,null,null,null,null,null,null,"Format Billard",{"$f":"IF(D36=D37,\"\",IF(D36>D37,C36,C37))","v":""},null,null,null,{"$f":"IF(K33>K34,2,0)","v":0},null,null,null,null,null,null,null,null,null,null,"Format Billard",{"$f":"IF(K32=K33,\"\",IF(K32>K33,J32,J33))","v":""},null,null,null,{"$f":"IF(AA33>AA32,2,0)","v":0},null,null,null,null,null,null,null,null,null,null,null,null,"Format Billard",{"$f":"IF(AK36=AK37,\"\",IF(AK36>AK37,AJ36,AJ37))","v":""},null,null,null,{"$f":"IF(AS33>AS32,2,0)","v":0}]
[null,"j14","ELIMINATOIRE 1",null,null,null,null,null,null,null,{"$f":"IF(D36=D37,\"\",IF(D36<D37,C36,C37))","v":""},null,null,{"$f":"IF(K34>K33,2,0)","v":0},null,null,null,"ELIMINATOIRE 1",null,null,null,null,null,null,null,null,{"$f":"IF(T36=T37,\"\",IF(T36<T37,S36,S37))","v":""},null,null,null,null,null,null,null,"REPÊCHAGE",null,null,null,null,null,null,null,null,null,{"$f":"IF(AK36=AK37,\"\",IF(AK36<AK37,AJ36,AJ37))","v":""},null,null,null,null,"1/2 FINALE",null,null,null,null,null,null,null,"FINALE"]
[null,"Match 3","JOUEUR","Pts","Rep","Ser",null,null,null,null,null,null,null,null,null,null,null,"Match 11","JOUEUR","Pts","Rep","Ser",null,null,null,null,null,null,null,null,null,null,null,null,"Match 19","JOUEUR","Pts","Rep","Ser",null,null,null,null,null,null,null,null,null,null,"Match 26","JOUEUR","Pts","Rep","Ser",null,null,null,"Match 28","JOUEUR","Pts","Rep","Ser"]
[null,null,{"$f":"'Saisie des joueurs'!L31","v":0},null,null,null,{"$f":"IF(D36>D37,2,0)","v":0},null,null,null,null,null,null,null,null,null,null,null,{"$f":"IF(D36=D37,\"\",IF(D36>D37,C37,C36))","v":""},null,null,null,{"$f":"IF(T36>T37,2,0)","v":0},null,null,null,null,null,null,null,null,null,null,null,null,{"$f":"IF(T36=T37,\"\",IF(T36>T37,S36,S37))","v":""},null,null,null,{"$f":"IF(AK36>AK37,2,0)","v":0},null,null,null,null,null,null,null,null,null,null,{"$f":"IF(AS32=AS33,\"\",IF(AS32>AS33,AR32,AR33))","v":""},null,null,null,{"$f":"IF(AZ36>AZ37,2,0)","v":0},null,null,null,{"$f":"IF(AZ20=AZ21,\"\",IF(AZ20>AZ21,AY20,AY21))","v":""},null,null,null,{"$f":"IF(BH36>BH37,2,0)","v":0}]
[null,"Format Billard",{"$f":"'Saisie des joueurs'!L28","v":0},null,null,null,{"$f":"IF(D37>D36,2,0)","v":0},null,null,null,null,null,null,null,null,null,null,"Format Billard",{"$f":"IF(K40=K41,\"\",IF(K40>K41,J41,J40))","v":""},null,null,null,{"$f":"IF(T37>T36,2,0)","v":0},null,null,null,null,null,null,null,null,null,null,null,"Format Billard",{"$f":"IF(AA24=AA25,\"\",IF(AA24<AA25,Z24,Z25))","v":""},null,null,null,{"$f":"IF(AK37>AK36,2,0)","v":0},null,null,null,null,null,null,null,null,null,"Format Billard",{"$f":"IF(AS40=AS41,\"\",IF(AS40>AS41,AR40,AR41))","v":""},null,null,null,{"$f":"IF(AZ37>AZ36,2,0)","v":0},null,null,"Format Billard",{"$f":"IF(AZ36=AZ37,\"\",IF(AZ36>AZ37,AY36,AY37))","v":""},null,null,null,{"$f":"IF(BH37>BH36,2,0)","v":0}]
[null,null,"J 11",{"$f":"J32","v":0},null,null,null,null,"j5","ELIMINATOIRE1",null,null,null,null,null,null,null,null,null,{"$f":"Z32","v":0},null,null,null,null,"j4","ELIMINATOIRE 2",null,null,null,null,null,null,null,null,null,null,{"$f":"IF(AA32=AA33,\"\",IF(AA32>AA33,Z32,Z33))","v":""},null,null,null,null,null,"1/4 DE FINALE",null,null,null,null,null,null,null,null,{"$f":"IF(AS32=AS33,\"\",IF(AS32<AS33,AR32,AR33))","v":""},null,null,null,null,null,null,null,{"$f":"IF(AS24=AS25,\"\",IF(AS24<AS25,AR24,AR25))","v":""}]
[null,null,null,null,null,null,null,null,"Match 8","JOUEUR","Pts","Rep","Ser",null,null,null,null,null,null,null,null,null,null,null,"Match 16","JOUEUR","Pts","Rep","Ser",null,null,null,null,null,null,null,null,null,null,null,null,null,"Match 24","JOUEUR","Pts","Rep","Ser"]
[null,null,null,null,null,null,null,null,null,{"$f":"'Saisie des joueurs'!L22","v":0},null,null,null,{"$f":"IF(K40>K41,2,0)","v":0},null,null,null,null,null,null,null,null,null,null,null,{"$f":"'Saisie des joueurs'!L21","v":0},null,null,null,{"$f":"IF(AA40>AA41,2,0)","v":0},null,null,null,null,null,null,null,null,null,null,null,null,null,{"$f":"IF(AA40=AA41,\"\",IF(AA40>AA41,Z40,Z41))","v":""},null,null,null,{"$f":"IF(AS40>AS41,2,0)","v":0}]
[null,null,null,null,null,null,null,null,"Format Billard",{"$f":"IF(D44=D45,\"\",IF(D44>D45,C44,C45))","v":""},null,null,null,{"$f":"IF(K41>K40,2,0)","v":0},null,null,null,null,null,null,null,null,null,null,"Format Billard",{"$f":"IF(K40=K41,\"\",IF(K40>K41,J40,J41))","v":""},null,null,null,{"$f":"IF(AA41>AA40,2,0)","v":0},null,null,null,null,null,null,null,null,null,null,null,null,"Format Billard",{"$f":"IF(AK44=AK45,\"\",IF(AK44>AK45,AJ44,AJ45))","v":""},null,null,null,{"$f":"IF(AS41>AS40,2,0)","v":0}]
[null,"j13","ELIMINATOIRE 1",null,null,null,null,null,null,null,{"$f":"IF(D44=D45,\"\",IF(D44<D45,C44,C45))","v":""},null,null,null,null,null,null,"ELIMINATOIRE 1",null,null,null,null,null,null,null,null,{"$f":"IF(T44=T45,\"\",IF(T44<T45,S44,S45))","v":""},null,null,null,null,null,null,null,"REPÊCHAGE",null,null,null,null,null,null,null,null,null,{"$f":"IF(AK44=AK45,\"\",IF(AK44<AK45,AJ44,AJ45))","v":""}]
[null,"Match 4","JOUEUR","Pts","Rep","Ser",null,null,null,null,null,null,null,null,null,null,null,"Match 12","JOUEUR","Pts","Rep","Ser",null,null,null,null,null,null,null,null,null,null,null,null,"Match 20","JOUEUR","Pts","Rep","Ser"]
[null,null,{"$f":"'Saisie des joueurs'!L30","v":0},null,null,null,{"$f":"IF(D44>D45,2,0)","v":0},null,null,null,null,null,null,null,null,null,null,null,{"$f":"IF(D44=D45,\"\",IF(D44>D45,C45,C44))","v":""},null,null,null,{"$f":"IF(T44>T45,2,0)","v":0},null,null,null,null,null,null,null,null,null,null,null,null,{"$f":"IF(T44=T45,\"\",IF(T44>T45,S44,S45))","v":""},null,null,null,{"$f":"IF(AK44>AK45,2,0)","v":0},null,null,"Rappel : Format de Billard : mettre 3,10\nsi match joué sur ces billards"]
[null,"Format Billard",{"$f":"'Saisie des joueurs'!L29","v":0},null,null,null,{"$f":"IF(D45>D44,2,0)","v":0},null,null,null,null,null,null,null,null,null,null,"Format Billard",{"$f":"IF(K32=K33,\"\",IF(K32>K33,J33,J32))","v":""},null,null,null,{"$f":"IF(T45>T44,2,0)","v":0},null,null,null,null,null,null,null,null,null,null,null,"Format Billard",{"$f":"IF(AA16=AA17,\"\",IF(AA16<AA17,Z16,Z17))","v":""},null,null,null,{"$f":"IF(AK45>AK44,2,0)","v":0}]
[null,null,"J 12",{"$f":"J40","v":0},null,null,null,null,null,null,null,null,null,null,null,null,null,null,null,{"$f":"Z40","v":0},null,null,null,null,null,null,null,null,null,null,null,null,null,null,null,null,{"$f":"IF(AA40=AA41,\"\",IF(AA40>AA41,Z40,Z41))","v":""}]
[]
[null,null,null,null,null,null,null,null,null,null,null,null,null,null,null,null,null,null,null,"Dans ces matchs, il n'y a pas d'égalité de scores entre les joueurs.\n Appliquer la règle des prolongations définie dans le Règlement Sportif Art.4-03… Dans les points saisis sur cette feuille, mettre 1 point de plus sur le score du joueur remportant les prolongations pour les départager.\n\nPar contre sur la saisie FFB, mettre le même nombre de points aux deux joueurs, mais mettre 2 points gagnants au 1er et 0 point au 2ème et forcer ce choix.",null,null,null,null,null,null,null,null,null,null,null,null,null,"Si égalité de points : prolongations.\nIL NE PEUT Y AVOIR DE MATCH NUL."]
[]
[null,{"$f":"'Saisie des joueurs'!D11","v":0},null,{"$f":"'Saisie des joueurs'!D7","v":"T1"},{"$f":"'Saisie des joueurs'!D9","v":"3 BANDES"},null,null,null,null,{"$f":"'Saisie des joueurs'!G11","v":0},{"$f":"'Saisie des joueurs'!D5","v":"00:00:00"},null,null,null,null,null,null,null,null,null,null,null,null,null,null,null,null,null,null,null,null,null,null,"Distance non limitée au 3B."]
[null,null,null,null,null,null,null,null,null,null,null,null,null,null,null,null,null,null,null,null,null,null,null,null,null,null,null,null,null,null,null,null,null,"Joueur A débute, une seule reprise sur point de départ."]
[null,null,"™A.FERHAT ™ C.PEREZ",null,null,null,null,null,null,null,null,null,null,null,null,null,null,null,null,null,null,null,null,null,null,null,null,null,null,null,null,null,null,"Joueur B débute, une seule reprise sur point de départ."]
[null,null,null,null,null,null,null,null,null,null,null,null,null,null,null,null,null,null,null,null,null,null,null,null,null,null,null,null,null,null,null,null,null,"Si égalité nouvelle prolongation selon le même principe..."]
[null,"SI JOUEUR EST \"ABSENT\", METTRE 1 POINT AU JOUEUR QUI EST SUR LE BILLARD POUR FAIRE AVANCER LE GRAPHIQUE.\n NE PAS SAISIR CES MATCHS NON JOUES.",null,null,null,null,null,null,null,null,null,null,null,null,null,null,null,null,null,null,null,null,null,null,null,null,null,null,null,null,null,null,null,"Jusqu'à élimination d'un joueur."]

{"sheet":"Heures convocations 16J","index":9,"n_rows":24,"n_cols":7,"rows_kept":24,"cut":false,"hidden":false,"merged":[[15,0,21,0],[15,1,16,1],[15,2,16,2],[20,2,21,2],[0,0,0,6],[3,0,3,4],[5,3,5,5],[7,0,7,6],[9,0,12,6],[14,3,14,6],[8,0,8,6]]}
["LIGUE MEDITERRANEENNE DE BILLARD"]
[]
[]
["TOURNOI HOMOLOGUE  16 JOUEURS",null,null,null,null,{"$f":"+'Saisie des joueurs'!D7","v":"T1"},{"$f":"'Saisie des joueurs'!D9","v":"3 BANDES"}]
[]
[null,null,null,{"$f":"'Saisie des joueurs'!D11","v":0},null,null,{"$f":"'Saisie des joueurs'!D5","v":"00:00:00"}]
[]
["HORAIRES DES CONVOCATIONS JOUEURS ET ARBITRES POUR UN TOURNOI SUR UN JOUR\nSUR UN SEUL JOUR."]
["LES NOMS DES ARBITRES CONVOQUES SONT EN ITALIQUE"]
["POUR UN TOURNOI SUR DEUX JOURS, MODIFIER L'HEURE DE CONVOCATION  (Ex : TOUR 1... 9h30...)\nET CONVOQUER LES JOUEURS DU DIMANCHE MATIN\nSELON LES NOMS DONNES PAR LE GRAPHIQUE, POUR JOUER ET POUR ARBITRER."]
[]
[]
[]
[]
["JOUR","N° TOUR HORAIRE ","HEURE CONVOC","NOMS"]
["SAMEDI",1,"8 H 00",{"$f":"'GRAPHIQUE 16J'!C20","v":0},{"$f":"'GRAPHIQUE 16J'!C28","v":0},{"$f":"'GRAPHIQUE 16J'!C36","v":0},{"$f":"'GRAPHIQUE 16J'!C44","v":0}]
[null,null,null,{"$f":"'GRAPHIQUE 16J'!C21","v":0},{"$f":"'GRAPHIQUE 16J'!C29","v":0},{"$f":"'GRAPHIQUE 16J'!C37","v":0},{"$f":"'GRAPHIQUE 16J'!C45","v":0}]
[null,"08 H 30","8 H 15",{"$f":"'GRAPHIQUE 16J'!J16","v":0},{"$f":"'GRAPHIQUE 16J'!J24","v":0},{"$f":"'GRAPHIQUE 16J'!J32","v":0},{"$f":"'GRAPHIQUE 16J'!J40","v":0}]
[null,2]
[null,"09 H 45"]
[null,3,"10 h 30",{"$f":"'GRAPHIQUE 16J'!Z16","v":0},{"$f":"'GRAPHIQUE 16J'!Z24","v":0},{"$f":"'GRAPHIQUE 16J'!Z32","v":0},{"$f":"'GRAPHIQUE 16J'!Z40","v":0}]
[null,"11 H 00"]
[]
[null,"™A.FERHAT ™ C.PEREZ"]

{"sheet":"GRAPHIQUE 20J","index":10,"n_rows":50,"n_cols":80,"rows_kept":50,"cut":false,"hidden":false,"merged":[[5,66,5,70],[10,74,11,78],[26,74,27,78],[13,74,13,78],[5,1,5,20],[7,74,7,78],[7,59,7,63],[7,66,7,70],[38,16,39,16],[14,1,15,1],[22,1,23,1],[30,1,31,1],[38,1,39,1],[34,8,35,8],[26,8,27,8],[18,8,19,8],[19,3,19,5],[25,3,25,5],[19,11,20,11],[17,3,17,5],[25,53,25,55],[31,4,32,4],[15,4,16,4],[10,8,11,8],[5,23,5,37],[17,59,17,63],[7,40,7,44],[7,23,7,27],[7,33,7,37],[7,51,7,55],[10,40,11,40],[13,25,13,27],[13,42,13,44],[13,61,13,63],[5,40,5,44],[5,51,5,55],[5,59,5,63],[13,51,13,55],[10,23,11,23],[13,33,13,37],[9,24,9,27],[10,59,11,59],[11,26,12,26],[11,43,12,43],[31,77,32,77],[29,74,29,78],[29,66,29,70],[30,74,31,74],[31,69,32,69],[37,42,37,44],[42,40,43,43],[39,54,40,54],[38,51,39,51],[40,59,41,62],[30,51,31,51],[30,66,31,66],[29,61,29,63],[29,51,29,55],[29,42,29,44],[41,35,41,37],[41,53,41,55],[37,33,37,37],[31,54,32,54],[48,1,50,17],[41,3,41,5],[27,26,28,26],[27,43,28,43],[41,8,42,13],[41,18,41,20],[29,16,29,20],[29,33,29,37],[26,23,27,23],[26,40,27,40],[29,2,29,5],[37,25,37,27],[43,19,49,29],[49,30,49,39],[46,30,46,39],[47,30,47,39],[48,30,48,39],[44,10,44,12],[44,1,44,3],[43,30,44,39],[45,30,45,39],[38,33,39,33],[14,74,15,74],[34,59,35,59],[37,61,37,63],[21,16,21,20],[21,33,21,37],[17,24,17,27],[18,23,19,23],[14,33,15,33],[18,40,19,40],[14,51,15,51],[21,61,21,63],[35,26,36,26],[35,43,36,43],[34,23,35,23],[14,66,15,66],[21,42,21,44],[29,25,29,27],[33,59,33,63],[21,25,21,27],[25,24,25,27],[22,33,23,33],[33,24,33,27],[15,77,16,77],[27,11,28,11],[2,1,3,44],[2,51,3,78],[9,9,9,12],[37,2,37,5],[33,9,33,12],[17,76,17,78],[33,76,33,78],[33,68,33,70],[17,35,17,37],[17,53,17,55],[17,68,17,70],[34,40,35,40],[37,10,37,12],[30,16,31,16],[18,1,19,2],[13,66,13,70],[9,59,9,63],[37,16,37,20],[33,35,33,37],[33,53,33,55],[37,51,37,55],[15,69,16,69],[0,1,1,23],[44,5,44,8],[7,1,7,5],[7,8,7,12],[7,16,7,20],[13,10,13,12],[21,10,21,12],[23,4,24,4],[29,10,29,12],[33,3,33,5],[33,18,33,20],[35,11,36,11],[39,4,40,4],[13,2,13,5],[25,9,25,12],[13,16,13,20],[17,9,17,12],[22,16,23,16],[25,18,25,20],[21,2,21,5],[14,16,15,16],[11,11,12,11],[17,18,17,20],[15,19,16,19],[23,19,24,19],[31,19,32,19],[39,19,40,19],[15,36,16,36],[23,36,24,36],[31,36,32,36],[39,36,40,36],[11,62,12,62],[19,62,20,62],[27,62,28,62],[35,62,36,62],[15,54,16,54],[21,51,21,55],[23,54,24,54],[22,51,23,51],[30,33,31,33],[25,35,25,37],[25,59,25,63],[26,59,27,59],[19,26,20,26],[19,43,20,43],[18,59,19,59]]}
[null,"GRAPHIQUE 2KO : 20 joueurs sur 4 billards"]
[]
[null,"SAMEDI",null,null,null,null,null,null,null,null,null,null,null,null,null,null,null,null,null,null,null,null,null,null,null,null,null,null,null,null,null,null,null,null,null,null,null,null,null,null,null,null,null,null,null,null,null,null,null,null,null,"DIMANCHE"]
[]
[]
[null,"PHASE 1  DISTANCES 1",null,null,null,null,null,null,null,null,null,null,null,null,null,null,null,null,null,null,null,null,null,"PHASE 2  DISTANCES 1",null,null,null,null,null,null,null,null,null,null,null,null,null,null,null,null,"PHASE 3  DISTANCES 1",null,null,null,null,null,null,null,null,null,null,"PHASE 3  DISTANCES 1",null,null,null,null,null,null,null,"PHASE 4  DISTANCES 2",null,null,null,null,null,null,"PHASE 5  DISTANCES 2"]
[]
[null,"TOUR 1",null,null,null,null,null,null,"TOUR 2",null,null,null,null,null,null,null,"TOUR 3",null,null,null,null,null,null,"TOUR 4",null,null,null,null,null,null,null,null,null,"TOUR 5",null,null,null,null,null,null,"TOUR 6",null,null,null,null,null,null,null,null,null,null,"TOUR 7",null,null,null,null,null,null,null,"TOUR 8",null,null,null,null,null,null,"TOUR 9",null,null,null,null,null,null,null,"TOUR 10"]
[]
[null,null,null,null,null,null,null,null,"J 12","ELIMINATOIRE 1",null,null,null,null,null,null,null,null,null,null,null,null,null,"J 5","ELIMINATOIRE 2",null,null,null,null,null,null,null,null,null,null,null,null,null,null,null,"J 4","ELIMINATOIRE 3",null,null,null,null,null,null,null,null,null,null,null,null,null,null,null,null,null,"1/4 DE FINALE"]
[null,null,null,null,null,null,null,null,"Match 5","JOUEUR","Pts","Rep","Ser",null,null,null,null,null,null,null,null,null,null,"Match 13","JOUEUR","Pts","Rep","Ser",null,null,null,null,null,null,null,null,null,null,null,null,"Match 21","JOUEUR","Pts","Rep","Ser",null,null,null,null,null,null,null,null,null,null,null,null,null,null,"Match 29","JOUEUR","Pts","Rep","Ser",null,null,null,null,null,null,null,null,null,null,"PHASE 6  DISTANCES 2"]
[null,null,null,null,null,null,null,null,null,{"$f":"'Saisie des joueurs'!L29","v":0},null,null,null,{"$f":"IF(K12>K13,2,0)","v":0},null,null,null,null,null,null,null,null,null,null,{"$f":"'Saisie des joueurs'!L22","v":0},null,null,null,{"$f":"IF(Z12>Z13,2,0)","v":0},null,null,null,null,null,null,null,null,null,null,null,null,{"$f":"'Saisie des joueurs'!L21","v":0},null,null,null,{"$f":"IF(AQ12>AQ13,2,0)","v":0},null,null,null,null,null,null,null,null,null,null,null,null,null,null,{"$f":"IF(AQ12=AQ13,\"\",IF(AQ12>AQ13,AP12,AP13))","v":""},null,null,null,{"$f":"IF(BJ12>BJ13,2,0)","v":0}]
[null,null,null,null,null,null,null,null,"Format Billard",{"$f":"IF(D16=D17,\"\",IF(D16>D17,C16,C17))","v":""},null,null,null,{"$f":"IF(K13>K12,2,0)","v":0},null,null,null,null,null,null,null,null,null,"Format Billard",{"$f":"IF(K12=K13,\"\",IF(K12>K13,J12,J13))","v":""},null,null,null,{"$f":"IF(Z13>Z12,2,0)","v":0},null,null,null,null,null,null,null,null,null,null,null,"Format Billard",{"$f":"IF(Z12=Z13,\"\",IF(Z12>Z13,Y12,Y13))","v":""},null,null,null,{"$f":"IF(AQ13>AQ12,2,0)","v":0},null,null,null,null,null,null,null,null,null,null,null,null,null,"Format Billard",{"$f":"IF(BB16=BB17,\"\",IF(BB16>BB17,BA16,BA17))","v":""},null,null,null,{"$f":"IF(BJ13>BJ12,2,0)","v":0}]
[null,"J 20","ELIMINATOIRE 1",null,null,null,null,null,null,null,{"$f":"IF(D16=D17,\"\",IF(D16<D17,C16,C17))","v":""},null,null,null,null,null,"ELIMINATOIRE 1",null,null,null,null,null,null,null,null,{"$f":"IF(S16=S17,\"\",IF(S16<S17,R16,R17))","v":""},null,null,null,null,null,null,null,"ELIMINATOIRE 2",null,null,null,null,null,null,null,null,{"$f":"IF(AJ16=AJ17,\"\",IF(AJ16<AJ17,AI16,AI17))","v":""},null,null,null,null,null,null,null,null,"REPÊCHAGE",null,null,null,null,null,null,null,null,null,{"$f":"IF(BB16=BB17,\"\",IF(BB16<BB17,BA16,BA17))","v":""},null,null,null,null,"1/2 FINALE",null,null,null,null,null,null,null,"3ème et 4ème PLACES"]
[null,"Match 1","JOUEUR","Pts","Rep","Ser",null,null,null,null,null,null,null,null,null,null,"Match 9","JOUEUR","Pts","Rep","Ser",null,null,null,null,null,null,null,null,null,null,null,null,"Match 17","JOUEUR","Pts","Rep","Ser",null,null,null,null,null,null,null,null,null,null,null,null,null,"Match 25","JOUEUR","Pts","Rep","Ser",null,null,null,null,null,null,null,null,null,null,"Match 33","JOUEUR","Pts","Rep","Ser",null,null,null,"Match 35","JOUEUR","Pts","Rep","Ser"]
[null,null,{"$f":"'Saisie des joueurs'!L37","v":0},null,null,null,{"$f":"IF(D16>D17,2,0)","v":0},null,null,null,null,null,null,null,null,null,null,{"$f":"IF(D16=D17,\"\",IF(D16<D17,C16,C17))","v":""},null,null,null,{"$f":"IF(S16>S17,2,0)","v":0},null,null,null,null,null,null,null,null,null,null,null,null,{"$f":"IF(S16=S17,\"\",IF(S16>S17,R16,R17))","v":""},null,null,null,{"$f":"IF(AJ16>AJ17,2,0)","v":0},null,null,null,null,null,null,null,null,null,null,null,null,null,{"$f":"IF(AJ16=AJ17,\"\",IF(AJ16>AJ17,AI16,AI17))","v":""},null,null,null,{"$f":"IF(BB16>BB17,2,0)","v":0},null,null,null,null,null,null,null,null,null,null,{"$f":"IF(BJ12=BJ13,\"\",IF(BJ12>BJ13,BI12,BI13))","v":""},null,null,null,{"$f":"IF(BQ16>BQ17,2,0)","v":0},null,null,null,{"$f":"IF(BQ16=BQ17,\"\",IF(BQ16<BQ17,BP16,BP17))","v":""},null,null,null,{"$f":"IF(BY16>BY17,2,0)","v":0}]
[null,"Format Billard",{"$f":"'Saisie des joueurs'!L30","v":0},null,null,null,{"$f":"IF(D17>D16,2,0)","v":0},null,null,null,null,null,null,null,null,null,"Format Billard",{"$f":"IF(K20=K21,\"\",IF(K20<K21,J20,J21))","v":""},null,null,null,{"$f":"IF(S17>S16,2,0)","v":0},null,null,null,null,null,null,null,null,null,null,null,"Format Billard",{"$f":"IF(Z36=Z37,\"\",IF(Z36<Z37,Y36,Y37))","v":""},null,null,null,{"$f":"IF(AJ17>AJ16,2,0)","v":0},null,null,null,null,null,null,null,null,null,null,null,null,"Format Billard",{"$f":"IF(AQ28=AQ29,\"\",IF(AQ28<AQ29,AP28,AP29))","v":""},null,null,null,{"$f":"IF(BB17>BB16,2,0)","v":0},null,null,null,null,null,null,null,null,null,"Format Billard",{"$f":"IF(BJ20=BJ21,\"\",IF(BJ20>BJ21,BI20,BI21))","v":""},null,null,null,{"$f":"IF(BQ17>BQ16,2,0)","v":0},null,null,"Format Billard",{"$f":"IF(BQ32=BQ33,\"\",IF(BQ32<BQ33,BP32,BP33))","v":""},null,null,null,{"$f":"IF(BY17>BY16,2,0)","v":0}]
[null,null,"J 13",{"$f":"J12","v":0},null,null,null,null,"J 11","ELIMINATOIRE 1",null,null,null,null,null,null,null,null,{"$f":"Y12","v":0},null,null,null,null,"J 6","ELIMINATOIRE 2",null,null,null,null,null,null,null,null,null,null,{"$f":"AP12","v":0},null,null,null,null,"J 1","ELIMINATOIRE 3",null,null,null,null,null,null,null,null,null,null,null,{"$f":"IF(AQ12=AQ13,\"\",IF(AQ12>AQ13,AP12,AP13))","v":""},null,null,null,null,null,"1/4 DE FINALE",null,null,null,null,null,null,null,null,{"$f":"IF(BJ12=BJ13,\"\",IF(BJ12<BJ13,BI12,BI13))","v":""},null,null,null,null,null,null,null,{"$f":"IF(BJ36=BJ37,\"\",IF(BJ36<BJ37,BI36,BI37))","v":""}]
[null,"Format de Billard : mettre 3,10\nsi match joué sur ces billards",null,null,null,null,null,null,"Match 6","JOUEUR","Pts","Rep","Ser",null,null,null,null,null,null,null,null,null,null,"Match 14","JOUEUR","Pts","Rep","Ser",null,null,null,null,null,null,null,null,null,null,null,null,"Match 22","JOUEUR","Pts","Rep","Ser",null,null,null,null,null,null,null,null,null,null,null,null,null,null,"Match 30","JOUEUR","Pts","Rep","Ser"]
[null,null,null,"Arbitre",null,null,null,null,null,{"$f":"'Saisie des joueurs'!L28","v":0},null,null,null,{"$f":"IF(K20>K21,2,0)","v":0},null,null,null,null,null,null,null,null,null,null,{"$f":"'Saisie des joueurs'!L23","v":0},null,null,null,{"$f":"IF(Z20>Z21,2,0)","v":0},null,null,null,null,null,null,null,null,null,null,null,null,{"$f":"'Saisie des joueurs'!L18","v":0},null,null,null,{"$f":"IF(AQ20>AQ21,2,0)","v":0},null,null,null,null,null,null,null,null,null,null,null,null,null,null,{"$f":"IF(AQ20=AQ21,\"\",IF(AQ20>AQ21,AP20,AP21))","v":""},null,null,null,{"$f":"IF(BJ20>BJ21,2,0)","v":0}]
[null,null,null,null,null,null,null,null,"Format Billard",{"$f":"IF(D24=D25,\"\",IF(D24>D25,C24,C25))","v":""},null,null,null,{"$f":"IF(K21>K20,2,0)","v":0},null,null,null,null,null,null,null,null,null,"Format Billard",{"$f":"IF(K20=K21,\"\",IF(K20>K21,J20,J21))","v":""},null,null,null,{"$f":"IF(Z21>Z20,2,0)","v":0},null,null,null,null,null,null,null,null,null,null,null,"Format Billard",{"$f":"IF(Z20=Z21,\"\",IF(Z20>Z21,Y20,Y21))","v":""},null,null,null,{"$f":"IF(AQ21>AQ20,2,0)","v":0},null,null,null,null,null,null,null,null,null,null,null,null,null,"Format Billard",{"$f":"IF(BB24=BB25,\"\",IF(BB24>BB25,BA24,BA25))","v":""},null,null,null,{"$f":"IF(BJ21>BJ20,2,0)","v":0}]
[null,"J 19","ELIMINATOIRE 1",null,null,null,null,null,null,null,{"$f":"IF(D24=D25,\"\",IF(D24<D25,C24,C25))","v":""},null,null,null,null,null,"ELIMINATOIRE 1",null,null,null,null,null,null,null,null,{"$f":"IF(S24=S25,\"\",IF(S24<S25,R24,R25))","v":""},null,null,null,null,null,null,null,"ELIMINATOIRE 2",null,null,null,null,null,null,null,null,{"$f":"IF(AJ24=AJ25,\"\",IF(AJ24<AJ25,AI24,AI25))","v":""},null,null,null,null,null,null,null,null,"REPÊCHAGE",null,null,null,null,null,null,null,null,null,{"$f":"IF(BB24=BB25,\"\",IF(BB24<BB25,BA24,BA25))","v":""}]
[null,"Match 2","JOUEUR","Pts","Rep","Ser",null,null,null,null,null,null,null,null,null,null,"Match 10","JOUEUR","Pts","Rep","Ser",null,null,null,null,null,null,null,null,null,null,null,null,"Match 18","JOUEUR","Pts","Rep","Ser",null,null,null,null,null,null,null,null,null,null,null,null,null,"Match 26","JOUEUR","Pts","Rep","Ser"]
[null,null,{"$f":"'Saisie des joueurs'!L36","v":0},null,null,null,{"$f":"IF(D24>D25,2,0)","v":0},null,null,null,null,null,null,null,null,null,null,{"$f":"IF(D24=D25,\"\",IF(D24<D25,C24,C25))","v":""},null,null,null,{"$f":"IF(S24>S25,2,0)","v":0},null,null,null,null,null,null,null,null,null,null,null,null,{"$f":"IF(S24=S25,\"\",IF(S24>S25,R24,R25))","v":""},null,null,null,{"$f":"IF(AJ24>AJ25,2,0)","v":0},null,null,null,null,null,null,null,null,null,null,null,null,null,{"$f":"IF(AJ24=AJ25,\"\",IF(AJ24>AJ25,AI24,AI25))","v":""},null,null,null,{"$f":"IF(BB24>BB25,2,0)","v":0}]
[null,"Format Billard",{"$f":"'Saisie des joueurs'!L31","v":0},null,null,null,{"$f":"IF(D25>D24,2,0)","v":0},null,null,null,null,null,null,null,null,null,"Format Billard",{"$f":"IF(K12=K13,\"\",IF(K12<K13,J12,J13))","v":""},null,null,null,{"$f":"IF(S25>S24,2,0)","v":0},null,null,null,null,null,null,null,null,null,null,null,"Format Billard",{"$f":"IF(Z28=Z29,\"\",IF(Z28<Z29,Y28,Y29))","v":""},null,null,null,{"$f":"IF(AJ25>AJ24,2,0)","v":0},null,null,null,null,null,null,null,null,null,null,null,null,"Format Billard",{"$f":"IF(AQ36=AQ37,\"\",IF(AQ36<AQ37,AP36,AP37))","v":""},null,null,null,{"$f":"IF(BB25>BB24,2,0)","v":0}]
[null,null,"J 14",{"$f":"J20","v":0},null,null,null,null,"J 10","ELIMINATOIRE 1",null,null,null,null,null,null,null,null,{"$f":"Y20","v":0},null,null,null,null,"J 7","ELIMINATOIRE 2",null,null,null,null,null,null,null,null,null,null,{"$f":"AP20","v":0},null,null,null,null,"J 2","ELIMINATOIRE 3",null,null,null,null,null,null,null,null,null,null,null,{"$f":"IF(AQ20=AQ21,\"\",IF(AQ20>AQ21,AP20,AP21))","v":""},null,null,null,null,null,"1/4 DE FINALE"]
[null,null,null,null,null,null,null,null,"Match 7","JOUEUR","Pts","Rep","Ser",null,null,null,null,null,null,null,null,null,null,"Match 15","JOUEUR","Pts","Rep","Ser",null,null,null,null,null,null,null,null,null,null,null,null,"Match 23","JOUEUR","Pts","Rep","Ser",null,null,null,null,null,null,null,null,null,null,null,null,null,null,"Match 31","JOUEUR","Pts","Rep","Ser",null,null,null,null,null,null,null,null,null,null,"PHASE 7  DISTANCES 2"]
[null,null,null,null,null,null,null,null,null,{"$f":"'Saisie des joueurs'!L27","v":0},null,null,null,{"$f":"IF(K28>K29,2,0)","v":0},null,null,null,null,null,null,null,null,null,null,{"$f":"'Saisie des joueurs'!L24","v":0},null,null,null,{"$f":"IF(Z28>Z29,2,0)","v":0},null,null,null,null,null,null,null,null,null,null,null,null,{"$f":"'Saisie des joueurs'!L19","v":0},null,null,null,{"$f":"IF(AQ28>AQ29,2,0)","v":0},null,null,null,null,null,null,null,null,null,null,null,null,null,null,{"$f":"IF(AQ28=AQ29,\"\",IF(AQ28>AQ29,AP28,AP29))","v":""},null,null,null,{"$f":"IF(BJ28>BJ29,2,0)","v":0}]
[null,null,null,null,null,null,null,null,"Format Billard",{"$f":"IF(D32=D33,\"\",IF(D32>D33,C32,C33))","v":""},null,null,null,{"$f":"IF(K29>K28,2,0)","v":0},null,null,null,null,null,null,null,null,null,"Format Billard",{"$f":"IF(K28=K29,\"\",IF(K28>K29,J28,J29))","v":""},null,null,null,{"$f":"IF(Z29>Z28,2,0)","v":0},null,null,null,null,null,null,null,null,null,null,null,"Format Billard",{"$f":"IF(Z28=Z29,\"\",IF(Z28>Z29,Y28,Y29))","v":""},null,null,null,{"$f":"IF(AQ29>AQ28,2,0)","v":0},null,null,null,null,null,null,null,null,null,null,null,null,null,"Format Billard",{"$f":"IF(BB32=BB33,\"\",IF(BB32>BB33,BA32,BA33))","v":""},null,null,null,{"$f":"IF(BJ29>BJ28,2,0)","v":0}]
[null,"J 18","ELIMINATOIRE 1",null,null,null,null,null,null,null,{"$f":"IF(D32=D33,\"\",IF(D32<D33,C32,C33))","v":""},null,null,null,null,null,"ELIMINATOIRE 1",null,null,null,null,null,null,null,null,{"$f":"IF(S32=S33,\"\",IF(S32<S33,R32,R33))","v":""},null,null,null,null,null,null,null,"ELIMINATOIRE 2",null,null,null,null,null,null,null,null,{"$f":"IF(AJ32=AJ33,\"\",IF(AJ32<AJ33,AI32,AI33))","v":""},null,null,null,null,null,null,null,null,"REPÊCHAGE",null,null,null,null,null,null,null,null,null,{"$f":"IF(BB32=BB33,\"\",IF(BB32<BB33,BA32,BA33))","v":""},null,null,null,null,"1/2 FINALE",null,null,null,null,null,null,null,"FINALE"]
[null,"Match 3","JOUEUR","Pts","Rep","Ser",null,null,null,null,null,null,null,null,null,null,"Match 11","JOUEUR","Pts","Rep","Ser",null,null,null,null,null,null,null,null,null,null,null,null,"Match 19","JOUEUR","Pts","Rep","Ser",null,null,null,null,null,null,null,null,null,null,null,null,null,"Match 27","JOUEUR","Pts","Rep","Ser",null,null,null,null,null,null,null,null,null,null,"Match 34","JOUEUR","Pts","Rep","Ser",null,null,null,"Match 36","JOUEUR","Pts","Rep","Ser"]
[null,null,{"$f":"'Saisie des joueurs'!L35","v":0},null,null,null,{"$f":"IF(D32>D33,2,0)","v":0},null,null,null,null,null,null,null,null,null,null,{"$f":"IF(D32=D33,\"\",IF(D32<D33,C32,C33))","v":""},null,null,null,{"$f":"IF(S32>S33,2,0)","v":0},null,null,null,null,null,null,null,null,null,null,null,null,{"$f":"IF(S32=S33,\"\",IF(S32>S33,R32,R33))","v":""},null,null,null,{"$f":"IF(AJ32>AJ33,2,0)","v":0},null,null,null,null,null,null,null,null,null,null,null,null,null,{"$f":"IF(AJ32=AJ33,\"\",IF(AJ32>AJ33,AI32,AI33))","v":""},null,null,null,{"$f":"IF(BB32>BB33,2,0)","v":0},null,null,null,null,null,null,null,null,null,null,{"$f":"IF(BJ28=BJ29,\"\",IF(BJ28>BJ29,BI28,BI29))","v":""},null,null,null,{"$f":"IF(BQ32>BQ33,2,0)","v":0},null,null,null,{"$f":"IF(BQ16=BQ17,\"\",IF(BQ16>BQ17,BP16,BP17))","v":""},null,null,null,{"$f":"IF(BY32>BY33,2,0)","v":0}]
[null,"Format Billard",{"$f":"'Saisie des joueurs'!L32","v":0},null,null,null,{"$f":"IF(D33>D32,2,0)","v":0},null,null,null,null,null,null,null,null,null,"Format Billard",{"$f":"IF(K36=K37,\"\",IF(K36<K37,J36,J37))","v":""},null,null,null,{"$f":"IF(S33>S32,2,0)","v":0},null,null,null,null,null,null,null,null,null,null,null,"Format Billard",{"$f":"IF(Z20=Z21,\"\",IF(Z20<Z21,Y20,Y21))","v":""},null,null,null,{"$f":"IF(AJ33>AJ32,2,0)","v":0},null,null,null,null,null,null,null,null,null,null,null,null,"Format Billard",{"$f":"IF(AQ12=AQ13,\"\",IF(AQ12<AQ13,AP12,AP13))","v":""},null,null,null,{"$f":"IF(BB33>BB32,2,0)","v":0},null,null,null,null,null,null,null,null,null,"Format Billard",{"$f":"IF(BJ36=BJ37,\"\",IF(BJ36>BJ37,BI36,BI37))","v":""},null,null,null,{"$f":"IF(BQ33>BQ32,2,0)","v":0},null,null,"Format Billard",{"$f":"IF(BQ32=BQ33,\"\",IF(BQ32>BQ33,BP32,BP33))","v":""},null,null,null,{"$f":"IF(BY33>BY32,2,0)","v":0}]
[null,null,"J 15",{"$f":"J28","v":0},null,null,null,null,"J 9","ELIMINATOIRE 1",null,null,null,null,null,null,null,null,{"$f":"Y28","v":0},null,null,null,null,"J 8","ELIMINATOIRE 2",null,null,null,null,null,null,null,null,null,null,{"$f":"AP28","v":0},null,null,null,null,"J 3","ELIMINATOIRE 3",null,null,null,null,null,null,null,null,null,null,null,{"$f":"IF(AQ28=AQ29,\"\",IF(AQ28>AQ29,AP28,AP29))","v":""},null,null,null,null,null,"1/4 DE FINALE",null,null,null,null,null,null,null,null,{"$f":"IF(BJ28=BJ29,\"\",IF(BJ28<BJ29,BI28,BI29))","v":""},null,null,null,null,null,null,null,{"$f":"IF(BJ20=BJ21,\"\",IF(BJ20<BJ21,BI20,BI21))","v":""}]
[null,null,null,null,null,null,null,null,"Match 8","JOUEUR","Pts","Rep","Ser",null,null,null,null,null,null,null,null,null,null,"Match 16","JOUEUR","Pts","Rep","Ser",null,null,null,null,null,null,null,null,null,null,null,null,"Match 24","JOUEUR","Pts","Rep","Ser",null,null,null,null,null,null,null,null,null,null,null,null,null,null,"Match 32","JOUEUR","Pts","Rep","Ser"]
[null,null,null,null,null,null,null,null,null,{"$f":"'Saisie des joueurs'!L26","v":0},null,null,null,{"$f":"IF(K36>K37,2,0)","v":0},null,null,null,null,null,null,null,null,null,null,{"$f":"'Saisie des joueurs'!L25","v":0},null,null,null,{"$f":"IF(Z36>Z37,2,0)","v":0},null,null,null,null,null,null,null,null,null,null,null,null,{"$f":"'Saisie des joueurs'!L20","v":0},null,null,null,{"$f":"IF(AQ36>AQ37,2,0)","v":0},null,null,null,null,null,null,null,null,null,null,null,null,null,null,{"$f":"IF(AQ36=AQ37,\"\",IF(AQ36>AQ37,AP36,AP37))","v":""},null,null,null,{"$f":"IF(BJ36>BJ37,2,0)","v":0}]
[null,null,null,null,null,null,null,null,"Format Billard",{"$f":"IF(D40=D41,\"\",IF(D40>D41,C40,C41))","v":""},null,null,null,{"$f":"IF(K37>K36,2,0)","v":0},null,null,null,null,null,null,null,null,null,"Format Billard",{"$f":"IF(K36=K37,\"\",IF(K36>K37,J36,J37))","v":""},null,null,null,{"$f":"IF(Z37>Z36,2,0)","v":0},null,null,null,null,null,null,null,null,null,null,null,"Format Billard",{"$f":"IF(Z36=Z37,\"\",IF(Z36>Z37,Y36,Y37))","v":""},null,null,null,{"$f":"IF(AQ37>AQ36,2,0)","v":0},null,null,null,null,null,null,null,null,null,null,null,null,null,"Format Billard",{"$f":"IF(BB40=BB41,\"\",IF(BB40>BB41,BA40,BA41))","v":""},null,null,null,{"$f":"IF(BJ37>BJ36,2,0)","v":0}]
[null,"J 17","ELIMINATOIRE 1",null,null,null,null,null,null,null,{"$f":"IF(D40=D41,\"\",IF(D40<D41,C40,C41))","v":""},null,null,null,null,null,"ELIMINATOIRE 1",null,null,null,null,null,null,null,null,{"$f":"IF(S40=S41,\"\",IF(S40<S41,R40,R41))","v":""},null,null,null,null,null,null,null,"ELIMINATOIRE 2",null,null,null,null,null,null,null,null,{"$f":"IF(AJ40=AJ41,\"\",IF(AJ40<AJ41,AI40,AI41))","v":""},null,null,null,null,null,null,null,null,"REPÊCHAGE",null,null,null,null,null,null,null,null,null,{"$f":"IF(BB40=BB41,\"\",IF(BB40<BB41,BA40,BA41))","v":""}]
[null,"Match 4","JOUEUR","Pts","Rep","Ser",null,null,null,null,null,null,null,null,null,null,"Match 12","JOUEUR","Pts","Rep","Ser",null,null,null,null,null,null,null,null,null,null,null,null,"Match 20","JOUEUR","Pts","Rep","Ser",null,null,null,null,null,null,null,null,null,null,null,null,null,"Match 28","JOUEUR","Pts","Rep","Ser"]
[null,null,{"$f":"'Saisie des joueurs'!L34","v":0},null,null,null,{"$f":"IF(D40>D41,2,0)","v":0},null,null,null,null,null,null,null,null,null,null,{"$f":"IF(D40=D41,\"\",IF(D40<D41,C40,C41))","v":""},null,null,null,{"$f":"IF(S40>S41,2,0)","v":0},null,null,null,null,null,null,null,null,null,null,null,null,{"$f":"IF(S40=S41,\"\",IF(S40>S41,R40,R41))","v":""},null,null,null,{"$f":"IF(AJ40>AJ41,2,0)","v":0},null,null,null,null,null,null,null,null,null,null,null,null,null,{"$f":"IF(AJ40=AJ41,\"\",IF(AJ40>AJ41,AI40,AI41))","v":""},null,null,null,{"$f":"IF(BB40>BB41,2,0)","v":0}]
[null,"Format Billard",{"$f":"'Saisie des joueurs'!L33","v":0},null,null,null,{"$f":"IF(D41>D40,2,0)","v":0},null,null,null,null,null,null,null,null,null,"Format Billard",{"$f":"IF(K28=K29,\"\",IF(K28<K29,J28,J29))","v":""},null,null,null,{"$f":"IF(S41>S40,2,0)","v":0},null,null,null,null,null,null,null,null,null,null,null,"Format Billard",{"$f":"IF(Z12=Z13,\"\",IF(Z12<Z13,Y12,Y13))","v":""},null,null,null,{"$f":"IF(AJ41>AJ40,2,0)","v":0},null,null,null,null,null,null,null,null,null,null,null,null,"Format Billard",{"$f":"IF(AQ20=AQ21,\"\",IF(AQ20<AQ21,AP20,AP21))","v":""},null,null,null,{"$f":"IF(BB41>BB40,2,0)","v":0},null,null,"Rappel : Format de Billard : mettre 3,10\nsi match joué sur ces billards"]
[null,null,"J 16",{"$f":"J36","v":0},null,null,null,null,null,null,null,null,null,null,null,null,null,null,{"$f":"Y36","v":0},null,null,null,null,null,null,null,null,null,null,null,null,null,null,null,null,{"$f":"AP36","v":0},null,null,null,null,null,null,null,null,null,null,null,null,null,null,null,null,null,{"$f":"IF(AQ36=AQ37,\"\",IF(AQ36>AQ37,AP36,AP37))","v":""}]
[null,null,null,null,null,null,null,null,null,null,null,null,null,null,null,null,null,null,null,null,null,null,null,null,null,null,null,null,null,null,null,null,null,null,null,null,null,null,null,null,"Rappel : Format de Billard : mettre 3,10\nsi match joué sur ces billards"]
[null,null,null,null,null,null,null,null,null,null,null,null,null,null,null,null,null,null,null,"Dans ces matchs, il n'y a pas d'égalité de scores entre les joueurs.\n Appliquer la règle des prolongations définie dans le Règlement Sportif Art.4-03… Dans les points saisis sur cette feuille, mettre 1 point de plus sur le score du joueur remportant les prolongations pour les départager.\nPar contre sur la saisie FFB, mettre le même nombre de points aux deux joueurs, mais mettre 2 points gagnants au 1er et 0 point au 2ème et forcer ce choix.",null,null,null,null,null,null,null,null,null,null,"Si égalité de points : prolongations.\nIL NE PEUT Y AVOIR DE MATCH NUL."]
[null,{"$f":"'Saisie des joueurs'!D11","v":0},null,null,{"$f":"'Saisie des joueurs'!D7","v":"T1"},{"$f":"'Saisie des joueurs'!D9","v":"3 BANDES"},null,null,null,{"$f":"'Saisie des joueurs'!G11","v":0},{"$f":"'Saisie des joueurs'!D5","v":"00:00:00"}]
[null,null,null,null,null,null,null,null,null,null,null,null,null,null,null,null,null,null,null,null,null,null,null,null,null,null,null,null,null,null,"Distance non limitée au 3B."]
[null,null,"™A.FERHAT ™ C.PEREZ",null,null,null,null,null,null,null,null,null,null,null,null,null,null,null,null,null,null,null,null,null,null,null,null,null,null,null,"Joueur A débute, une seule reprise sur point de départ."]
[null,null,null,null,null,null,null,null,null,null,null,null,null,null,null,null,null,null,null,null,null,null,null,null,null,null,null,null,null,null,"Joueur B débute, une seule reprise sur point de départ."]
[null,"SI JOUEUR EST \"ABSENT\", METTRE 1 POINT AU JOUEUR QUI EST SUR LE BILLARD POUR FAIRE AVANCER LE GRAPHIQUE.\n NE PAS SAISIR CES MATCHS NON JOUES.",null,null,null,null,null,null,null,null,null,null,null,null,null,null,null,null,null,null,null,null,null,null,null,null,null,null,null,null,"Si égalité nouvelle prolongation selon le même principe..."]
[null,null,null,null,null,null,null,null,null,null,null,null,null,null,null,null,null,null,null,null,null,null,null,null,null,null,null,null,null,null,"Jusqu'à élimination d'un joueur."]

{"sheet":"12x4","index":11,"n_rows":45,"n_cols":48,"rows_kept":45,"cut":false,"hidden":true,"merged":[[43,31,43,40],[44,31,44,40],[36,3,36,5],[36,8,37,13],[36,19,36,21],[38,17,44,29],[38,31,39,40],[40,31,40,40],[41,4,41,8],[41,10,41,12],[41,31,41,40],[42,31,42,40],[30,11,31,11],[30,31,31,31],[32,10,32,12],[32,30,32,32],[34,4,35,4],[34,20,35,20],[26,4,27,4],[26,20,27,20],[26,38,27,38],[28,3,28,5],[28,19,28,21],[28,37,28,39],[20,3,20,5],[20,19,20,21],[22,11,23,11],[22,31,23,31],[22,46,23,46],[24,10,24,12],[24,30,24,32],[24,45,24,47],[14,46,15,46],[16,10,16,12],[16,30,16,32],[16,45,16,47],[18,4,19,4],[18,20,19,20],[10,38,11,38],[12,3,12,5],[12,19,12,21],[12,37,12,39],[14,11,15,11],[14,31,15,31],[6,11,7,11],[6,31,7,31],[8,10,8,12],[8,30,8,32],[10,4,11,4],[10,20,11,20],[3,43,3,47],[3,1,3,5],[3,8,3,12],[3,17,3,21],[3,28,3,32],[3,35,3,39]]}
[]
[]
[]
[null,"TOUR 1",null,null,null,null,null,null,"TOUR 2",null,null,null,null,null,null,null,null,"TOUR 3",null,null,null,null,null,null,null,null,null,null,"TOUR 4",null,null,null,null,null,null,"TOUR 5",null,null,null,null,null,null,null,"TOUR 6"]
[null,null,null,null,null,null,null,null,null,"J 4"]
[null,null,null,null,null,null,null,null,"PHASE 2","JOUEUR","Pts","Rep","Ser",null,null,null,null,null,null,null,null,null,null,null,null,null,null,null,"PHASE 4","JOUEUR","Pts","Rep","Ser"]
[null,null,null,null,null,null,null,null,"éliminatoire",{"$f":"'Saisie des joueurs'!L21","v":0},null,null,null,null,null,null,null,null,null,null,null,null,null,null,null,null,null,null,"1/4  Finale",{"$f":"IF(K7=K8,\"\",IF(K7>K8,J7,J8))","v":""}]
[null,null,null,null,null,null,null,null,null,{"$f":"IF(D11=D12,\"\",IF(D11>D12,C11,C12))","v":""},null,null,null,null,null,null,null,null,null,null,null,null,null,null,null,null,null,null,null,{"$f":"IF(T35=T36,\"\",IF(T35>T36,S35,S36))","v":""}]
[null,null,"J 12",null,null,null,null,null,"F.Billard",null,{"$f":"IF(D11=D12,\"\",IF(D11<D12,C11,C12))","v":""},null,null,null,null,null,null,null,null,null,null,null,null,null,null,null,null,null,"F.Billard",null,{"$f":"IF(T11=T12,\"\",IF(T11<T12,S11,S12))","v":""}]
[null,"PHASE 1","JOUEUR","Pts","Rep","Ser",null,null,null,null,null,null,null,null,null,null,null,"PHASE 3","JOUEUR","Pts","Rep","Ser",null,null,null,null,null,null,null,null,null,null,null,null,null,"PHASE 5","JOUEUR","Pts","Rep","Ser"]
[null,"éliminatoire",{"$f":"'Saisie des joueurs'!L33","v":0},null,null,null,null,null,null,null,null,null,null,null,null,null,null,"Repêchage",{"$f":"IF(D11=D12,\"\",IF(D11>D12,C12,C11))","v":""},null,null,null,null,null,null,null,null,null,null,null,null,null,null,null,null,"1/2  Finale",{"$f":"IF(AE7=AE8,\"\",IF(AE7>AE8,AD7,AD8))","v":""}]
[null,null,{"$f":"'Saisie des joueurs'!L22","v":0},null,null,null,null,null,null,null,null,null,null,null,null,null,null,null,{"$f":"IF(K15=K16,\"\",IF(K15>K16,J16,J15))","v":""},null,null,null,null,null,null,null,null,null,null,null,null,null,null,null,null,null,{"$f":"IF(AE15=AE16,\"\",IF(AE15>AE16,AD15,AD16))","v":""}]
[null,"F.Billard","J 5",{"$f":"J7","v":0},null,null,null,null,null,"J 1",null,null,null,null,null,null,null,"F.Billard",null,{"$f":"IF(K7=K8,\"\",IF(K7>K8,J7,J8))","v":""},null,null,null,null,null,null,null,null,null,null,null,null,null,null,null,"F.Billard",null,{"$f":"IF(AE7=AE8,\"\",IF(AE7<AE8,AD7,AD8))","v":""}]
[null,null,null,null,null,null,null,null,"PHASE 2","JOUEUR","Pts","Rep","Ser",null,null,null,null,null,null,null,null,null,null,null,null,null,null,null,"PHASE 4","JOUEUR","Pts","Rep","Ser",null,null,null,null,null,null,null,null,null,null,"PHASE 6","JOUEUR","Pts","Rep","Ser"]
[null,null,"Arbitre",null,null,null,null,null,"éliminatoire",{"$f":"'Saisie des joueurs'!L18","v":0},null,null,null,null,null,null,null,null,null,null,null,null,null,null,null,null,null,null,"1/4  Finale",{"$f":"IF(K15=K16,\"\",IF(K15>K16,J15,J16))","v":""},null,null,null,null,null,null,null,null,null,null,null,null,null,"3/4 Places",{"$f":"IF(AL11=AL12,\"\",IF(AL11<AL12,AK11,AK12))","v":""}]
[null,null,null,null,null,null,null,null,null,{"$f":"IF(D19=D20,\"\",IF(D19>D20,C19,C20))","v":""},null,null,null,null,null,null,null,null,null,null,null,null,null,null,null,null,null,null,null,{"$f":"IF(T27=T28,\"\",IF(T27>T28,S27,S28))","v":""},null,null,null,null,null,null,null,null,null,null,null,null,null,null,{"$f":"IF(AL27=AL28,\"\",IF(AL27<AL28,AK27,AK28))","v":""}]
[null,null,"J 11",null,null,null,null,null,"F.Billard",null,{"$f":"IF(D19=D20,\"\",IF(D19<D20,C19,C20))","v":""},null,null,null,null,null,null,null,null,null,null,null,null,null,null,null,null,null,"F.Billard",null,{"$f":"IF(T19=T20,\"\",IF(T19<T20,S19,S20))","v":""},null,null,null,null,null,null,null,null,null,null,null,null,"F.Billard",null,{"$f":"IF(AE31=AE32,\"\",IF(AE31<AE32,AD31,AD32))","v":""}]
[null,"PHASE 1","JOUEUR","Pts","Rep","Ser",null,null,null,null,null,null,null,null,null,null,null,"PHASE 3","JOUEUR","Pts","Rep","Ser"]
[null,"éliminatoire",{"$f":"'Saisie des joueurs'!L28","v":0},null,null,null,null,null,null,null,null,null,null,null,null,null,null,"Repêchage",{"$f":"IF(D19=D20,\"\",IF(D19>D20,C20,C19))","v":""}]
[null,null,{"$f":"'Saisie des joueurs'!L23","v":0},null,null,null,null,null,null,null,null,null,null,null,null,null,null,null,{"$f":"IF(K7=K8,\"\",IF(K7>K8,J8,J7))","v":""}]
[null,"F.Billard","J 6",{"$f":"J15","v":0},null,null,null,null,null,"J 2",null,null,null,null,null,null,null,"F.Billard",null,{"$f":"IF(K15=K16,\"\",IF(K15>K16,J15,J16))","v":""}]
[null,null,null,null,null,null,null,null,"PHASE 2","JOUEUR","Pts","Rep","Ser",null,null,null,null,null,null,null,null,null,null,null,null,null,null,null,"PHASE 4","JOUEUR","Pts","Rep","Ser",null,null,null,null,null,null,null,null,null,null,"PHASE 7","JOUEUR","Pts","Rep","Ser"]
[null,null,null,null,null,null,null,null,"éliminatoire",{"$f":"'Saisie des joueurs'!L19","v":0},null,null,null,null,null,null,null,null,null,null,null,null,null,null,null,null,null,null,"1/4  Finale",{"$f":"IF(K23=K24,\"\",IF(K23>K24,J23,J24))","v":""},null,null,null,null,null,null,null,null,null,null,null,null,null,"FINALE",{"$f":"IF(AL11=AL12,\"\",IF(AL11>AL12,AK11,AK12))","v":""}]
[null,null,null,null,null,null,null,null,null,{"$f":"IF(D27=D28,\"\",IF(D27>D28,C27,C28))","v":""},null,null,null,null,null,null,null,null,null,null,null,null,null,null,null,null,null,null,null,{"$f":"IF(T19=T20,\"\",IF(T19>T20,S19,S20))","v":""},null,null,null,null,null,null,null,null,null,null,null,null,null,null,{"$f":"IF(AL27=AL28,\"\",IF(AL27>AL28,AK27,AK28))","v":""}]
[null,null,"J 10",null,null,null,null,null,"F.Billard",null,{"$f":"IF(D27=D28,\"\",IF(D27<D28,C27,C28))","v":""},null,null,null,null,null,null,null,null,null,null,null,null,null,null,null,null,null,"F.Billard",null,{"$f":"IF(T27=T28,\"\",IF(T27<T28,S27,S28))","v":""},null,null,null,null,null,null,null,null,null,null,null,null,"F.Billard",null,{"$f":"IF(AE15=AE16,\"\",IF(AE15<AE16,AD15,AD16))","v":""}]
[null,"PHASE 1","JOUEUR","Pts","Rep","Ser",null,null,null,null,null,null,null,null,null,null,null,"PHASE 3","JOUEUR","Pts","Rep","Ser",null,null,null,null,null,null,null,null,null,null,null,null,null,"PHASE 5","JOUEUR","Pts","Rep","Ser"]
[null,"éliminatoire",{"$f":"'Saisie des joueurs'!L27","v":0},null,null,null,null,null,null,null,null,null,null,null,null,null,null,"Repêchage",{"$f":"IF(D27=D28,\"\",IF(D27>D28,C28,C27))","v":""},null,null,null,null,null,null,null,null,null,null,null,null,null,null,null,null,"1/2  Finale",{"$f":"IF(AE23=AE24,\"\",IF(AE23>AE24,AD23,AD24))","v":""}]
[null,null,{"$f":"'Saisie des joueurs'!L24","v":0},null,null,null,null,null,null,null,null,null,null,null,null,null,null,null,{"$f":"IF(K31=K32,\"\",IF(K31>K32,J32,J31))","v":""},null,null,null,null,null,null,null,null,null,null,null,null,null,null,null,null,null,{"$f":"IF(AE31=AE32,\"\",IF(AE31>AE32,AD31,AD32))","v":""}]
[null,"F.Billard","J 7",{"$f":"J23","v":0},null,null,null,null,null,"J 3",null,null,null,null,null,null,null,"F.Billard",null,{"$f":"IF(K23=K24,\"\",IF(K23>K24,J23,J24))","v":""},null,null,null,null,null,null,null,null,null,null,null,null,null,null,null,"F.Billard",null,{"$f":"IF(AE23=AE24,\"\",IF(AE23<AE24,AD23,AD24))","v":""}]
[null,null,null,null,null,null,null,null,"PHASE 2","JOUEUR","Pts","Rep","Ser",null,null,null,null,null,null,null,null,null,null,null,null,null,null,null,"PHASE 4","JOUEUR","Pts","Rep","Ser"]
[null,null,null,null,null,null,null,null,"éliminatoire",{"$f":"'Saisie des joueurs'!L20","v":0},null,null,null,null,null,null,null,null,null,null,null,null,null,null,null,null,null,null,"1/4  Finale",{"$f":"IF(K31=K32,\"\",IF(K31>K32,J31,J32))","v":""}]
[null,null,null,null,null,null,null,null,null,{"$f":"IF(D35=D36,\"\",IF(D35>D36,C35,C36))","v":""},null,null,null,null,null,null,null,null,null,null,null,null,null,null,null,null,null,null,null,{"$f":"IF(T11=T12,\"\",IF(T11>T12,S11,S12))","v":""}]
[null,null,"J 9",null,null,null,null,null,"F.Billard",null,{"$f":"IF(D35=D36,\"\",IF(D35<D36,C35,C36))","v":""},null,null,null,null,null,null,null,null,null,null,null,null,null,null,null,null,null,"F.Billard",null,{"$f":"IF(T35=T36,\"\",IF(T35<T36,S35,S36))","v":""}]
[null,"PHASE 1","JOUEUR","Pts","Rep","Ser",null,null,null,null,null,null,null,null,null,null,null,"PHASE 3","JOUEUR","Pts","Rep","Ser"]
[null,"éliminatoire",{"$f":"'Saisie des joueurs'!L26","v":0},null,null,null,null,null,null,null,null,null,null,null,null,null,null,"Repêchage",{"$f":"IF(D35=D36,\"\",IF(D35>D36,C36,C35))","v":""}]
[null,null,{"$f":"'Saisie des joueurs'!L25","v":0},null,null,null,null,null,null,null,null,null,null,null,null,null,null,null,{"$f":"IF(K23=K24,\"\",IF(K23>K24,J24,J23))","v":""}]
[null,"F.Billard","J 8",{"$f":"J31","v":0},null,null,null,null,"Format de Billard : chiffre 1 pour 2,80 et chiffre 2 pour 3,10",null,null,null,null,null,null,null,null,"F.Billard",null,{"$f":"IF(K31=K32,\"\",IF(K31>K32,J31,J32))","v":""}]
[]
[null,null,null,null,null,null,null,null,null,null,null,null,null,null,null,null,null,"Dans ces matchs, il n'y a pas d'égalité de scores entre les joueurs.\n Appliquer la règle des prolongations définie dans le Règlement Sportif Art.4-03… Dans les points saisis sur cette feuille, mettre 1 point de plus sur le score du joueur remportant les prolongations pour les départager.\n\nPar contre sur la saisie FFB, mettre le même nombre de points aux deux joueurs, mais mettre 2 points gagnants au 1er et 0 point au 2ème et forcer ce choix.",null,null,null,null,null,null,null,null,null,null,null,null,null,"Si égalité de points : prolongations.\nIL NE PEUT Y AVOIR DE MATCH NUL."]
[]
[null,null,null,null,null,null,null,null,null,"12 joueurs sur 4 billards",null,null,null,null,null,null,null,null,null,null,null,null,null,null,null,null,null,null,null,null,null,"10% de la distance normale. Non limitée au 3B."]
[null,null,0,0,0,null,null,null,null,0,"00:00:00",null,null,null,null,null,null,null,null,null,null,null,null,null,null,null,null,null,null,null,null,"Joueur A débute, une seule reprise sur point de départ."]
[null,null,null,null,null,null,null,null,null,null,null,null,null,null,null,null,null,null,null,null,null,null,null,null,null,null,null,null,null,null,null,"Joueur B débute, une seule reprise sur point de départ."]
[null,null,"C. Perez",null,null,null,null,null,null,null,null,null,null,null,null,null,null,null,null,null,null,null,null,null,null,null,null,null,null,null,null,"Si égalité nouvelle prolongation selon le même principe..."]
[null,null,null,null,null,null,null,null,null,null,null,null,null,null,null,null,null,null,null,null,null,null,null,null,null,null,null,null,null,null,null,"Jusqu'à élimination d'un joueur."]

{"sheet":"12x3","index":12,"n_rows":53,"n_cols":62,"rows_kept":53,"cut":false,"hidden":true,"merged":[[52,27,52,36],[34,10,34,12],[37,19,38,19],[39,18,39,20],[40,4,40,8],[40,10,40,12],[46,16,52,25],[46,27,47,36],[48,27,48,36],[49,27,49,36],[50,27,50,36],[51,27,51,36],[29,3,29,5],[29,26,29,28],[29,51,29,53],[31,19,32,19],[31,45,32,45],[32,11,33,11],[32,35,33,40],[33,1,34,6],[33,18,33,20],[33,44,33,46],[23,60,24,60],[25,10,25,12],[25,37,25,39],[25,59,25,61],[27,4,28,4],[27,27,28,27],[27,52,28,52],[23,38,24,38],[19,4,20,4],[19,27,20,27],[21,3,21,5],[21,26,21,28],[23,11,24,11],[15,19,16,19],[15,45,16,45],[15,60,16,60],[17,18,17,20],[17,44,17,46],[17,59,17,61],[11,4,12,4],[11,27,12,27],[11,52,12,52],[13,3,13,5],[13,26,13,28],[13,51,13,53],[4,49,4,53],[4,57,4,61],[7,11,8,11],[7,38,8,38],[9,10,9,12],[9,37,9,39],[4,42,4,46],[4,1,4,5],[4,8,4,12],[4,16,4,20],[4,24,4,28],[4,35,4,39]]}
[]
[]
[]
[]
[null,"TOUR 1",null,null,null,null,null,null,"TOUR 2",null,null,null,null,null,null,null,"TOUR 3",null,null,null,null,null,null,null,"TOUR 4",null,null,null,null,null,null,null,null,null,null,"TOUR 5",null,null,null,null,null,null,"TOUR 6",null,null,null,null,null,null,"TOUR 7",null,null,null,null,null,null,null,"TOUR 8"]
[null,null,null,null,null,null,null,null,null,"J 4"]
[null,null,null,null,null,null,null,null,"PHASE 2 élim","JOUEUR","Pts","Rep","Ser",null,null,null,null,null,null,null,null,null,null,null,null,null,null,null,null,null,null,null,null,null,null,"PHASE 4 1/4 F","JOUEUR","Pts","Rep","Ser"]
[null,null,null,null,null,null,null,null,"Match 5",{"$f":"'Saisie des joueurs'!L21","v":0},null,null,null,null,null,null,null,null,null,null,null,null,null,null,null,null,null,null,null,null,null,null,null,null,null,"Match 13",{"$f":"IF(K8=K9,\"\",IF(K8>K9,J8,J9))","v":""}]
[null,null,null,null,null,null,null,null,null,{"$f":"IF(D12=D13,\"\",IF(D12>D13,C12,C13))","v":""},null,null,null,null,null,null,null,null,null,null,null,null,null,null,null,null,null,null,null,null,null,null,null,null,null,null,{"$f":"IF(S38=S39,\"\",IF(S38>S39,R38,R39))","v":""}]
[null,null,"J 12",null,null,null,null,null,"F.Billard",null,{"$f":"IF(D12=D13,\"\",IF(D12<D13,C12,C13))","v":""},null,null,null,null,null,null,null,null,null,null,null,null,null,null,null,null,null,null,null,null,null,null,null,null,"F.Billard",null,{"$f":"IF(AS16=AS17,\"\",IF(AS16<AS17,AR16,AR17))","v":""}]
[null,"PHASE 1 élim","JOUEUR","Pts","Rep","Ser",null,null,null,null,null,null,null,null,null,null,null,null,null,null,null,null,null,null,"PHASE 3 Repêch","JOUEUR","Pts","Rep","Ser",null,null,null,null,null,null,null,null,null,null,null,null,null,null,null,null,null,null,null,null,"PHASE 5 1/2 F","JOUEUR","Pts","Rep","Ser"]
[null,"Match 1",{"$f":"'Saisie des joueurs'!L33","v":0},null,null,null,null,null,null,null,null,null,null,null,null,null,null,null,null,null,null,null,null,null,"Match 9",{"$f":"IF(D12=D13,\"\",IF(D12>D13,C13,C12))","v":""},null,null,null,null,null,null,null,null,null,null,null,null,null,null,null,null,null,null,null,null,null,null,null,"Match 17",{"$f":"IF(AL8=AL9,\"\",IF(AL8>AL9,AK8,AK9))","v":""}]
[null,null,{"$f":"'Saisie des joueurs'!L22","v":0},null,null,null,null,null,null,null,null,null,null,null,null,null,null,null,null,null,null,null,null,null,null,{"$f":"IF(S16=S17,\"\",IF(S16>S17,R17,R16))","v":""},null,null,null,null,null,null,null,null,null,null,null,null,null,null,null,null,null,null,null,null,null,null,null,null,{"$f":"IF(AS16=AS17,\"\",IF(AS16>AS17,AR16,AR17))","v":""}]
[null,"F.Billard","J 5",{"$f":"J8","v":0},null,null,null,null,null,null,null,null,null,null,null,null,null,"J 1",null,null,null,null,null,null,"F.Billard",null,{"$f":"IF(S16=S17,\"\",IF(S16>S17,R16,R17))","v":""},null,null,null,null,null,null,null,null,null,null,null,null,null,null,null,null,null,null,null,null,null,null,"F.Billard",null,{"$f":"IF(AL8=AL9,\"\",IF(AL8<AL9,AK8,AK9))","v":""}]
[null,null,null,null,null,null,null,null,null,null,null,null,null,null,null,null,"PHASE 2 élim","JOUEUR","Pts","Rep","Ser",null,null,null,null,null,null,null,null,null,null,null,null,null,null,null,null,null,null,null,null,null,"PHASE 4 1/4 F","JOUEUR","Pts","Rep","Ser",null,null,null,null,null,null,null,null,null,null,"PHASE 6 3/4 Plc","JOUEUR","Pts","Rep","Ser"]
[null,null,"Arbitre",null,null,null,null,null,null,null,null,null,null,null,null,null,"Match 6",{"$f":"'Saisie des joueurs'!L18","v":0},null,null,null,null,null,null,null,null,null,null,null,null,null,null,null,null,null,null,null,null,null,null,null,null,"Match 14",{"$f":"IF(S16=S17,\"\",IF(S16>S17,R16,R17))","v":""},null,null,null,null,null,null,null,null,null,null,null,null,null,"Match 19",{"$f":"IF(AZ12=AZ13,\"\",IF(AZ12<AZ13,AY12,AY13))","v":""}]
[null,null,null,null,null,null,null,null,null,null,null,null,null,null,null,null,null,{"$f":"IF(D20=D21,\"\",IF(D20>D21,C20,C21))","v":""},null,null,null,null,null,null,null,null,null,null,null,null,null,null,null,null,null,null,null,null,null,null,null,null,null,{"$f":"IF(AA28=AA29,\"\",IF(AA28>AA29,Z28,Z29))","v":""},null,null,null,null,null,null,null,null,null,null,null,null,null,null,{"$f":"IF(AZ28=AZ29,\"\",IF(AZ28<AZ29,AY28,AY29))","v":""}]
[null,null,"J 11",null,null,null,null,null,null,null,null,null,null,null,null,null,"F.Billard",null,{"$f":"IF(K8=K9,\"\",IF(K8<K9,J8,J9))","v":""},null,null,null,null,null,null,null,null,null,null,null,null,null,null,null,null,null,null,null,null,null,null,null,"F.Billard",null,{"$f":"IF(AA12=AA13,\"\",IF(AA12<AA13,Z12,Z13))","v":""},null,null,null,null,null,null,null,null,null,null,null,null,"F.Billard",null,"Arbitre du Club"]
[null,"PHASE 1 élim","JOUEUR","Pts","Rep","Ser",null,null,null,null,null,null,null,null,null,null,null,null,null,null,null,null,null,null,"PHASE 3 Repêch","JOUEUR","Pts","Rep","Ser"]
[null,"Match 2",{"$f":"'Saisie des joueurs'!L28","v":0},null,null,null,null,null,null,null,null,null,null,null,null,null,null,null,null,null,null,null,null,null,"Match 10",{"$f":"IF(D20=D21,\"\",IF(D20>D21,C21,C20))","v":""}]
[null,null,{"$f":"'Saisie des joueurs'!L23","v":0},null,null,null,null,null,null,null,null,null,null,null,null,null,null,null,null,null,null,null,null,null,null,{"$f":"IF(K8=K9,\"\",IF(K8>K9,J9,J8))","v":""}]
[null,"F.Billard","J 6",{"$f":"J33","v":0},null,null,null,null,null,"J 2",null,null,null,null,null,null,null,null,null,null,null,null,null,null,"F.Billard",null,{"$f":"IF(S32=S33,\"\",IF(S32>S33,R32,R33))","v":""}]
[null,null,null,null,null,null,null,null,"PHASE 2 élim","JOUEUR","Pts","Rep","Ser",null,null,null,null,null,null,null,null,null,null,null,null,null,null,null,null,null,null,null,null,null,null,"PHASE 4 1/4 F","JOUEUR","Pts","Rep","Ser",null,null,null,null,null,null,null,null,null,null,null,null,null,null,null,null,null,"PHASE 7 FINALE","JOUEUR","Pts","Rep","Ser"]
[null,null,null,null,null,null,null,null,"Match 7",{"$f":"'Saisie des joueurs'!L19","v":0},null,null,null,null,null,null,null,null,null,null,null,null,null,null,null,null,null,null,null,null,null,null,null,null,null,"Match 15",{"$f":"IF(K24=K25,\"\",IF(K24>K25,J24,J25))","v":""},null,null,null,null,null,null,null,null,null,null,null,null,null,null,null,null,null,null,null,null,"Match 20",{"$f":"IF(AZ12=AZ13,\"\",IF(AZ12>AZ13,AY12,AY13))","v":""}]
[null,null,null,null,null,null,null,null,null,{"$f":"IF(D28=D29,\"\",IF(D28>D29,C28,C29))","v":""},null,null,null,null,null,null,null,null,null,null,null,null,null,null,null,null,null,null,null,null,null,null,null,null,null,null,{"$f":"IF(AA20=AA21,\"\",IF(AA20>AA21,Z20,Z21))","v":""},null,null,null,null,null,null,null,null,null,null,null,null,null,null,null,null,null,null,null,null,null,{"$f":"IF(AZ28=AZ29,\"\",IF(AZ28>AZ29,AY28,AY29))","v":""}]
[null,null,"J 10",null,null,null,null,null,"F.Billard",null,{"$f":"IF(D20=D21,\"\",IF(D20<D21,C20,C21))","v":""},null,null,null,null,null,null,null,null,null,null,null,null,null,null,null,null,null,null,null,null,null,null,null,null,"F.Billard",null,{"$f":"IF(AA28=AA29,\"\",IF(AA28<AA29,Z28,Z29))","v":""},null,null,null,null,null,null,null,null,null,null,null,null,null,null,null,null,null,null,null,"F.Billard",null,"Arbitre du Club"]
[null,"PHASE 1 élim","JOUEUR","Pts","Rep","Ser",null,null,null,null,null,null,null,null,null,null,null,null,null,null,null,null,null,null,"PHASE 3 Repêch","JOUEUR","Pts","Rep","Ser",null,null,null,null,null,null,null,null,null,null,null,null,null,null,null,null,null,null,null,null,"PHASE 5 1/2 F","JOUEUR","Pts","Rep","Ser"]
[null,"Match 3",{"$f":"'Saisie des joueurs'!L27","v":0},null,null,null,null,null,null,null,null,null,null,null,null,null,null,null,null,null,null,null,null,null,"Match 11",{"$f":"IF(D28=D29,\"\",IF(D28>D29,C29,C28))","v":""},null,null,null,null,null,null,null,null,null,null,null,null,null,null,null,null,null,null,null,null,null,null,null,"Match 18",{"$f":"IF(AL24=AL25,\"\",IF(AL24>AL25,AK24,AK25))","v":""}]
[null,null,{"$f":"'Saisie des joueurs'!L24","v":0},null,null,null,null,null,null,null,null,null,null,null,null,null,null,null,null,null,null,null,null,null,null,{"$f":"IF(S32=S33,\"\",IF(S32>S33,R33,R32))","v":""},null,null,null,null,null,null,null,null,null,null,null,null,null,null,null,null,null,null,null,null,null,null,null,null,{"$f":"IF(AS32=AS33,\"\",IF(AS32>AS33,AR32,AR33))","v":""}]
[null,"F.Billard","J 7",{"$f":"J34","v":0},null,null,null,null,null,null,null,null,null,null,null,null,null,"J 3",null,null,null,null,null,null,"F.Billard",null,{"$f":"IF(S38=S39,\"\",IF(S38<S39,R38,R39))","v":""},null,null,null,null,null,null,null,null,null,null,null,null,null,null,null,null,null,null,null,null,null,null,"F.Billard",null,{"$f":"IF(AS32=AS33,\"\",IF(AS32<AS33,AR32,AR33))","v":""}]
[null,null,null,null,null,null,null,null,null,"J 9",null,null,null,null,null,null,"PHASE 2 élim","JOUEUR","Pts","Rep","Ser",null,null,null,null,null,null,null,null,null,null,null,null,null,null,null,null,null,null,null,null,null,"PHASE 4 1/4 F","JOUEUR","Pts","Rep","Ser"]
[null,null,null,null,null,null,null,null,"PHASE 1 élim","JOUEUR","Pts","Rep","Ser",null,null,null,"Match 8",{"$f":"'Saisie des joueurs'!L20","v":0},null,null,null,null,null,null,null,null,null,null,null,null,null,null,null,null,null,null,null,null,null,null,null,null,"Match 16",{"$f":"IF(S32=S33,\"\",IF(S32>S33,R32,R33))","v":""}]
[null,null,null,null,null,null,null,null,"Match 4",{"$f":"'Saisie des joueurs'!L26","v":0},null,null,null,null,null,null,null,{"$f":"IF(K33=K34,\"\",IF(K33>K34,J33,J34))","v":""},null,null,null,null,null,null,null,null,null,null,null,null,null,null,null,null,null,"Format de Billard : chiffre 1 pour 2,80 et chiffre 2 pour 3,10",null,null,null,null,null,null,null,{"$f":"IF(AA12=AA13,\"\",IF(AA12>AA13,Z12,Z13))","v":""}]
[null,"Format de Billard : chiffre 1 pour 2,80 et chiffre 2 pour 3,10",null,null,null,null,null,null,null,{"$f":"'Saisie des joueurs'!L25","v":0},null,null,null,null,null,null,"F.Billard",null,{"$f":"IF(K8=K9,\"\",IF(K8>K9,J8,J9))","v":""},null,null,null,null,null,null,null,null,null,null,null,null,null,null,null,null,null,null,null,null,null,null,null,"F.Billard",null,{"$f":"IF(AL24=AL25,\"\",IF(AL24<AL25,AK24,AK25))","v":""}]
[null,null,null,null,null,null,null,null,"F.Billard","J 8",{"$f":"IF(D29=D30,\"\",IF(D29<D30,C29,C30))","v":""}]
[]
[null,null,null,null,null,null,null,null,null,null,null,null,null,null,null,null,"PHASE 3 Repêch","JOUEUR","Pts","Rep","Ser"]
[null,null,null,null,null,null,null,null,null,null,null,null,null,null,null,null,"Match 12",{"$f":"IF(K33=K34,\"\",IF(K33>K34,J34,J33))","v":""}]
[null,null,null,null,null,null,null,null,null,null,null,null,null,null,null,null,null,{"$f":"IF(K24=K25,\"\",IF(K24>K25,J25,J24))","v":""}]
[null,null,null,null,null,null,null,null,null,"12 joueurs sur 3 billards",null,null,null,null,null,null,"F.Billard",null,{"$f":"IF(K24=K25,\"\",IF(K24>K25,J24,J25))","v":""}]
[null,null,0,0,0,null,null,null,null,0,"00:00:00"]
[null,"C. Perez"]
[null,null,"ATTENTION :","La saisie sur FFB doit respecter les phases ; Le tournoi se fait sur 8 tours de jeu, puisque sur 3 billards, MAIS EN 7 PHASES."]
[]
[null,null,null,"Saisir les matchs indiqués dans chaque PHASE, bien qu'ils aient été joués sur des tours différents : "]
[]
[null,null,null,null,null,null,null,null,null,null,null,null,null,null,null,null,"Dans ces matchs, il n'y a pas d'égalité de scores entre les joueurs.\n Appliquer la règle des prolongations définie dans le Règlement Sportif Art.4-03… Dans les points saisis sur cette feuille, mettre 1 point de plus sur le score du joueur remportant les prolongations pour les départager.\n\nPar contre sur la saisie FFB, mettre le même nombre de points aux deux joueurs, mais mettre 2 points gagnants au 1er et 0 point au 2ème et forcer ce choix.",null,null,null,null,null,null,null,null,null,null,"Si égalité de points : prolongations.\nIL NE PEUT Y AVOIR DE MATCH NUL."]
[]
[null,null,null,null,null,null,null,null,null,null,null,null,null,null,null,null,null,null,null,null,null,null,null,null,null,null,null,"10% de la distance normale. Non limitée au 3B."]
[null,null,null,null,null,null,null,null,null,null,null,null,null,null,null,null,null,null,null,null,null,null,null,null,null,null,null,"Joueur A débute, une seule reprise sur point de départ."]
[null,null,null,null,null,null,null,null,null,null,null,null,null,null,null,null,null,null,null,null,null,null,null,null,null,null,null,"Joueur B débute, une seule reprise sur point de départ."]
[null,null,null,null,null,null,null,null,null,null,null,null,null,null,null,null,null,null,null,null,null,null,null,null,null,null,null,"Si égalité nouvelle prolongation selon le même principe..."]
[null,null,null,null,null,null,null,null,null,null,null,null,null,null,null,null,null,null,null,null,null,null,null,null,null,null,null,"Jusqu'à élimination d'un joueur."]

{"sheet":"Heures convocations 20J","index":13,"n_rows":34,"n_cols":9,"rows_kept":34,"cut":false,"hidden":false,"merged":[[5,3,5,5],[0,0,0,6],[3,0,3,4],[7,0,7,6],[10,3,10,6],[8,0,8,6],[11,0,23,0],[24,0,31,0],[24,2,25,2],[28,2,29,2],[11,2,12,2],[16,2,17,2],[18,2,19,2],[20,2,21,2],[22,2,23,2]]}
["LIGUE MEDITERRANEENNE DE BILLARD"]
[]
[]
["TOURNOI HOMOLOGUE   20 JOUEURS",null,null,null,null,{"$f":"'Saisie des joueurs'!D7","v":"T1"},{"$f":"'Saisie des joueurs'!D9","v":"3 BANDES"}]
[]
[null,null,null,{"$f":"'Saisie des joueurs'!D11","v":0},null,null,{"$f":"'Saisie des joueurs'!D5","v":"00:00:00"},null," "]
[]
["HORAIRES DES CONVOCATIONS JOUEURS ET ARBITRES"]
["LES NOMS DES ARBITRES CONVOQUES SONT EN ITALIQUE"]
[]
["JOUR","N° TOUR HORAIRE ","HEURE CONVOC","NOMS"]
["SAMEDI",1,"8 H 30",{"$f":"'GRAPHIQUE 20J'!C16","v":0},{"$f":"'GRAPHIQUE 20J'!C24","v":0},{"$f":"'GRAPHIQUE 20J'!C32","v":0},{"$f":"'GRAPHIQUE 20J'!C40","v":0}]
[null,"09 H 00",null,{"$f":"'GRAPHIQUE 20J'!C17","v":0},{"$f":"'GRAPHIQUE 20J'!C25","v":0},{"$f":"'GRAPHIQUE 20J'!C33","v":0},{"$f":"'GRAPHIQUE 20J'!C41","v":0}]
[null,null,"8 H 45",{"$f":"'GRAPHIQUE 20J'!J12","v":0},{"$f":"'GRAPHIQUE 20J'!J20","v":0},{"$f":"'GRAPHIQUE 20J'!J28","v":0},{"$f":"'GRAPHIQUE 20J'!J36","v":0}]
[null,2]
[null,"10 H 15"]
[null,3,"11 H 15",{"$f":"'GRAPHIQUE 20J'!Y12","v":0},{"$f":"'GRAPHIQUE 20J'!Y20","v":0},{"$f":"'GRAPHIQUE 20J'!Y28","v":0},{"$f":"'GRAPHIQUE 20J'!Y36","v":0}]
[null,"11 H 30"]
[null,4]
[null,"13 H 00"]
[null,5,"14 H 15",{"$f":"'GRAPHIQUE 20J'!AP12","v":0},{"$f":"'GRAPHIQUE 20J'!AP20","v":0},{"$f":"'GRAPHIQUE 20J'!AP28","v":0},{"$f":"'GRAPHIQUE 20J'!AP36","v":0}]
[null,"14 H 30"]
[null,6]
[null,"16 H 00"]
["DIMANCHE",7,"8 H 30"]
[null,"9 H 00"]
[null,8]
[]
[null,9]
[]
[null,10]
[]
[]
[null,"™A.FERHAT ™ C.PEREZ"]

{"sheet":"GRAPHIQUE 24J","index":14,"n_rows":51,"n_cols":99,"rows_kept":51,"cut":false,"hidden":false,"merged":[[32,4,33,4],[32,19,33,19],[32,36,33,36],[32,54,33,54],[32,70,33,70],[32,88,33,88],[38,10,38,12],[38,16,38,20],[38,25,38,27],[38,33,38,37],[38,42,38,44],[38,51,38,55],[38,62,38,64],[38,67,38,71],[38,79,38,81],[34,3,34,5],[34,9,34,12],[34,18,34,20],[35,8,36,8],[35,23,36,23],[35,40,36,40],[35,60,36,60],[35,77,36,77],[36,11,37,11],[14,62,14,64],[20,80,21,80],[23,67,24,67],[24,4,25,4],[24,19,25,19],[24,36,25,36],[27,8,28,8],[27,23,28,23],[27,40,28,40],[26,77,26,81],[22,10,22,12],[22,16,22,20],[22,25,22,27],[22,33,22,37],[22,42,22,44],[22,51,22,55],[22,62,22,64],[22,67,22,71],[22,79,22,81],[24,54,25,54],[24,70,25,70],[26,3,26,5],[26,9,26,12],[26,18,26,20],[18,3,18,5],[18,9,18,12],[18,18,18,20],[18,24,18,27],[18,35,18,37],[18,41,18,44],[26,35,26,37],[26,41,26,44],[18,53,18,55],[26,53,26,55],[16,96,17,96],[18,61,18,64],[18,69,18,71],[18,77,18,81],[18,87,18,89],[18,95,18,97],[2,1,3,55],[2,60,3,97],[5,1,5,20],[5,23,5,37],[5,40,5,55],[5,60,5,64],[5,67,5,71],[5,77,5,81],[5,85,5,89],[7,1,7,5],[7,8,7,12],[7,16,7,20],[7,23,7,27],[7,33,7,37],[7,40,7,44],[7,51,7,55],[7,60,7,64],[7,67,7,71],[7,77,7,81],[7,85,7,89],[7,93,7,97],[10,9,10,12],[10,24,10,27],[10,41,10,44],[10,61,10,64],[10,77,10,81],[11,8,12,8],[11,23,12,23],[11,40,12,40],[11,60,12,60],[11,77,12,77],[11,93,12,97],[12,11,13,11],[12,26,13,26],[12,43,13,43],[12,63,13,63],[12,80,13,80],[14,67,14,71],[15,1,16,1],[15,16,16,16],[15,33,16,33],[15,51,16,51],[15,67,16,67],[15,85,16,85],[15,93,16,93],[16,4,17,4],[16,19,17,19],[16,36,17,36],[16,54,17,54],[16,70,17,70],[16,88,17,88],[14,79,14,81],[14,85,14,89],[14,93,14,97],[14,2,14,5],[14,10,14,12],[14,16,14,20],[14,25,14,27],[14,33,14,37],[14,42,14,44],[14,51,14,55],[19,1,20,2],[19,8,20,8],[19,23,20,23],[19,40,20,40],[19,60,20,60],[19,77,20,77],[20,3,20,5],[20,11,21,11],[20,26,21,26],[20,43,21,43],[20,63,21,63],[26,61,26,64],[26,69,26,71],[27,60,28,60],[27,77,28,77],[27,93,28,97],[28,11,29,11],[28,26,29,26],[28,43,29,43],[28,63,29,63],[28,80,29,80],[26,24,26,27],[30,10,30,12],[30,16,30,20],[30,25,30,27],[30,33,30,37],[30,42,30,44],[30,51,30,55],[30,62,30,64],[30,67,30,71],[30,79,30,81],[40,19,41,19],[30,85,30,89],[30,93,30,97],[34,24,34,27],[34,35,34,37],[34,41,34,44],[34,53,34,55],[34,61,34,64],[34,69,34,71],[34,77,34,81],[34,87,34,89],[34,95,34,97],[32,96,33,96],[36,80,37,80],[31,67,32,67],[31,85,32,85],[31,93,32,93],[36,26,37,26],[36,43,37,43],[36,63,37,63],[0,1,1,23],[45,77,46,80],[46,26,46,35],[47,26,47,35],[48,1,51,12],[48,26,48,35],[49,26,49,35],[50,26,50,35],[40,36,41,36],[40,54,41,54],[40,70,41,70],[42,3,42,5],[42,18,42,20],[42,35,42,37],[42,53,42,55],[42,69,42,71],[44,1,44,3],[44,5,44,8],[44,10,44,12],[44,16,50,25],[44,26,45,35],[44,40,45,43],[39,67,40,67],[40,4,41,4]]}
[null,"GRAPHIQUE 2KO : 24 joueurs sur 4 billards"]
[]
[null,"SAMEDI",null,null,null,null,null,null,null,null,null,null,null,null,null,null,null,null,null,null,null,null,null,null,null,null,null,null,null,null,null,null,null,null,null,null,null,null,null,null,null,null,null,null,null,null,null,null,null,null,null,null,null,null,null,null,null,null,null,null,"DIMANCHE"]
[]
[]
[null,"PHASE 1  DISTANCES 1",null,null,null,null,null,null,null,null,null,null,null,null,null,null,null,null,null,null,null,null,null,"PHASE 2  DISTANCES 1",null,null,null,null,null,null,null,null,null,null,null,null,null,null,null,null,"PHASE 3  DISTANCES 1",null,null,null,null,null,null,null,null,null,null,null,null,null,null,null,null,null,null,null,"PHASE 4  DISTANCES 1",null,null,null,null,null,null,"PHASE 4  DISTANCES 1",null,null,null,null,null,null,null,null,null,"PHASE 5  DISTANCES 2",null,null,null,null,null,null,null,"PHASE 6  DISTANCES 2"]
[]
[null,"TOUR 1",null,null,null,null,null,null,"TOUR 2",null,null,null,null,null,null,null,"TOUR 3",null,null,null,null,null,null,"TOUR 4",null,null,null,null,null,null,null,null,null,"TOUR 5",null,null,null,null,null,null,"TOUR 6",null,null,null,null,null,null,null,null,null,null,"TOUR 7",null,null,null,null,null,null,null,null,"TOUR 8",null,null,null,null,null,null,"TOUR 9",null,null,null,null,null,null,null,null,null,"TOUR 10",null,null,null,null,null,null,null,"TOUR 11",null,null,null,null,null,null,null,"TOUR 12"]
[]
[]
[null,null,null,null,null,null,null,null,"J 16","ELIMINATOIRE 1",null,null,null,null,null,null,null,null,null,null,null,null,null,"J 9","ELIMINATOIRE 2",null,null,null,null,null,null,null,null,null,null,null,null,null,null,null,"J 8","ELIMINATOIRE 3",null,null,null,null,null,null,null,null,null,null,null,null,null,null,null,null,null,null,"J 3","ELIMINATOIRE 4",null,null,null,null,null,null,null,null,null,null,null,null,null,null,null,"1/4 DE FINALE"]
[null,null,null,null,null,null,null,null,"Match 5","JOUEUR","Pts","Rep","Ser",null,null,null,null,null,null,null,null,null,null,"Match 13","JOUEUR","Pts","Rep","Ser",null,null,null,null,null,null,null,null,null,null,null,null,"Match 21","JOUEUR","Pts","Rep","Ser",null,null,null,null,null,null,null,null,null,null,null,null,null,null,null,"Match 29","JOUEUR","Pts","Rep","Ser",null,null,null,null,null,null,null,null,null,null,null,null,"Match 37","JOUEUR","Pts","Rep","Ser",null,null,null,null,null,null,null,null,null,null,null,"PHASE 7  DISTANCES 2"]
[null,null,null,null,null,null,null,null,null,{"$f":"'Saisie des joueurs'!L33","v":0},null,null,null,{"$f":"IF(K13>K14,2,0)","v":0},null,null,null,null,null,null,null,null,null,null,{"$f":"'Saisie des joueurs'!L26","v":0},null,null,null,{"$f":"IF(Z13>Z14,2,0)","v":0},null,null,null,null,null,null,null,null,null,null,null,null,{"$f":"'Saisie des joueurs'!L25","v":0},null,null,null,{"$f":"IF(AQ13>AQ14,2,0)","v":0},null,null,null,null,null,null,null,null,null,null,null,null,null,null,null,{"$f":"'Saisie des joueurs'!L20","v":0},null,null,null,{"$f":"IF(BK13>BK14,2,0)","v":0},null,null,null,null,null,null,null,null,null,null,null,null,{"$f":"IF(BK13=BK14,\"\",IF(BK13>BK14,BJ13,BJ14))","v":""},null,null,null,{"$f":"IF(CB13>CB14,2,0)","v":0}]
[null,null,null,null,null,null,null,null,"Format Billard",{"$f":"IF(D17=D18,\"\",IF(D17>D18,C17,C18))","v":""},null,null,null,{"$f":"IF(K14>K13,2,0)","v":0},null,null,null,null,null,null,null,null,null,"Format Billard",{"$f":"IF(K13=K14,\"\",IF(K13>K14,J13,J14))","v":""},null,null,null,{"$f":"IF(Z14>Z13,2,0)","v":0},null,null,null,null,null,null,null,null,null,null,null,"Format Billard",{"$f":"IF(Z13=Z14,\"\",IF(Z13>Z14,Y13,Y14))","v":""},null,null,null,{"$f":"IF(AQ14>AQ13,2,0)","v":0},null,null,null,null,null,null,null,null,null,null,null,null,null,null,"Format Billard",{"$f":"IF(AQ13=AQ14,\"\",IF(AQ13>AQ14,AP13,AP14))","v":""},null,null,null,{"$f":"IF(BK14>BK13,2,0)","v":0},null,null,null,null,null,null,null,null,null,null,null,"Format Billard",{"$f":"IF(BR33=BR34,\"\",IF(BR33>BR34,BQ33,BQ34))","v":""},null,null,null,{"$f":"IF(CB14>CB13,2,0)","v":0}]
[null,"J 24","ELIMINATOIRE 1",null,null,null,null,null,null,null,{"$f":"IF(D17=D18,\"\",IF(D17<D18,C17,C18))","v":""},null,null,null,null,null,"ELIMINATOIRE 1",null,null,null,null,null,null,null,null,{"$f":"IF(S17=S18,\"\",IF(S17<S18,R17,R18))","v":""},null,null,null,null,null,null,null,"ELIMINATOIRE 2",null,null,null,null,null,null,null,null,{"$f":"IF(AJ17=AJ18,\"\",IF(AJ17<AJ18,AI17,AI18))","v":""},null,null,null,null,null,null,null,null,"ELIMINATOIRE 3",null,null,null,null,null,null,null,null,null,null,{"$f":"IF(BB17>BB18,BA17,BA18)","v":""},null,null,null,null,"REPÊCHAGE",null,null,null,null,null,null,null,null,null,null,null,{"$f":"IF(BR17=BR18,\"\",IF(BR17<BR18,BQ17,BQ18))","v":""},null,null,null,null,null,"1/2 FINALE",null,null,null,null,null,null,null,"3éme et 4éme PLACES"]
[null,"Match 1","JOUEUR","Pts","Rep","Ser",null,null,null,null,null,null,null,null,null,null,"Match 9","JOUEUR","Pts","Rep","Ser",null,null,null,null,null,null,null,null,null,null,null,null,"Match 17","JOUEUR","Pts","Rep","Ser",null,null,null,null,null,null,null,null,null,null,null,null,null,"Match 25","JOUEUR","Pts","Rep","Ser",null,null,null,null,null,null,null,null,null,null,null,"Match 33","JOUEUR","Pts","Rep","Ser",null,null,null,null,null,null,null,null,null,null,null,null,null,"Match 41","JOUEUR","Pts","Rep","Ser",null,null,null,"Match 43","JOUEUR","Pts","Rep","Ser"]
[null,null,{"$f":"'Saisie des joueurs'!L41","v":0},null,null,null,{"$f":"IF(D17>D18,2,0)","v":0},null,null,null,null,null,null,null,null,null,null,{"$f":"IF(D17=D18,\"\",IF(D17<D18,C17,C18))","v":""},null,null,null,{"$f":"IF(S17>S18,2,0)","v":0},null,null,null,null,null,null,null,null,null,null,null,null,{"$f":"IF(S17=S18,\"\",IF(S17>S18,R17,R18))","v":""},null,null,null,{"$f":"IF(AJ17>AJ18,2,0)","v":0},null,null,null,null,null,null,null,null,null,null,null,null,null,{"$f":"IF(AJ17=AJ18,\"\",IF(AJ17>AJ18,AI17,AI18))","v":""},null,null,null,{"$f":"IF(BB17>BB18,2,0)","v":0},null,null,null,null,null,null,null,null,null,null,null,{"$f":"IF(BB17=BB18,\"\",IF(BB17>BB18,BA17,BA18))","v":""},null,null,null,{"$f":"IF(BR17>BR18,2,0)","v":0},null,null,null,null,null,null,null,null,null,null,null,null,null,{"$f":"IF(CB13=CB14,\"\",IF(CB13>CB14,CA13,CA14))","v":""},null,null,null,{"$f":"IF(CJ17>CJ18,2,0)","v":0},null,null,null,{"$f":"IF(CJ17=CJ18,\"\",IF(CJ17<CJ18,CI17,CI18))","v":""},null,null,null,{"$f":"IF(CR17>CR18,2,0)","v":0}]
[null,"Format Billard",{"$f":"'Saisie des joueurs'!L34","v":0},null,null,null,{"$f":"IF(D18>D17,2,0)","v":0},null,null,null,null,null,null,null,null,null,"Format Billard",{"$f":"IF(K21=K22,\"\",IF(K21<K22,J21,J22))","v":""},null,null,null,{"$f":"IF(S18>S17,2,0)","v":0},null,null,null,null,null,null,null,null,null,null,null,"Format Billard",{"$f":"IF(Z37=Z38,\"\",IF(Z37<Z38,Y37,Y38))","v":""},null,null,null,{"$f":"IF(AJ18>AJ17,2,0)","v":0},null,null,null,null,null,null,null,null,null,null,null,null,"Format Billard",{"$f":"IF(AQ29=AQ30,\"\",IF(AQ29<AQ30,AP29,AP30))","v":""},null,null,null,{"$f":"IF(BB18>BB17,2,0)","v":0},null,null,null,null,null,null,null,null,null,null,"Format Billard",{"$f":"IF(BK13=BK14,\"\",IF(BK13<BK14,BJ13,BJ14))","v":""},null,null,null,{"$f":"IF(BR18>BR17,2,0)","v":0},null,null,null,null,null,null,null,null,null,null,null,null,"Format Billard",{"$f":"IF(CB21=CB22,\"\",IF(CB21>CB22,CA21,CA22))","v":""},null,null,null,{"$f":"IF(CJ18>CJ17,2,0)","v":0},null,null,"Format Billard",{"$f":"IF(CJ33=CJ34,\"\",IF(CJ33<CJ34,CI33,CI34))","v":""},null,null,null,{"$f":"IF(CR18>CR17,2,0)","v":0}]
[null,null,"J 17",{"$f":"J13","v":0},null,null,null,null,"J 15","ELIMINATOIRE 1",null,null,null,null,null,null,null,null,{"$f":"Y13","v":0},null,null,null,null,"J 10","ELIMINATOIRE 2",null,null,null,null,null,null,null,null,null,null,{"$f":"AP13","v":0},null,null,null,null,"J 7","ELIMINATOIRE 3",null,null,null,null,null,null,null,null,null,null,null,{"$f":"IF(AQ13=AQ14,\"\",IF(AQ13>AQ14,AP13,AP14))","v":""},null,null,null,null,null,null,"J 2","ELIMINATOIRE 4",null,null,null,null,null,null,null,{"$f":"IF(BK13=BK14,\"\",IF(BK13>BK14,BJ13,BJ14))","v":""},null,null,null,null,null,null,null,"1/4 DE FINALE",null,null,null,null,null,null,null,null,null,{"$f":"IF(CB13=CB14,\"\",IF(CB13<CB14,CA13,CA14))","v":""},null,null,null,null,null,null,null,{"$f":"IF(CB37=CB38,\"\",IF(CB37<CB38,CA37,CA38))","v":""}]
[null,"Format de Billard : mettre 3,10\nsi match joué sur ces billards",null,null,null,null,null,null,"Match 6","JOUEUR","Pts","Rep","Ser",null,null,null,null,null,null,null,null,null,null,"Match 14","JOUEUR","Pts","Rep","Ser",null,null,null,null,null,null,null,null,null,null,null,null,"Match 22","JOUEUR","Pts","Rep","Ser",null,null,null,null,null,null,null,null,null,null,null,null,null,null,null,"Match 30","JOUEUR","Pts","Rep","Ser",null,null,null,null,null,null,null,null,null,null,null,null,"Match 38","JOUEUR","Pts","Rep","Ser"]
[null,null,null,"Arbitre",null,null,null,null,null,{"$f":"'Saisie des joueurs'!L32","v":0},null,null,null,{"$f":"IF(K21>K22,2,0)","v":0},null,null,null,null,null,null,null,null,null,null,{"$f":"'Saisie des joueurs'!L27","v":0},null,null,null,{"$f":"IF(Z21>Z22,2,0)","v":0},null,null,null,null,null,null,null,null,null,null,null,null,{"$f":"'Saisie des joueurs'!L24","v":0},null,null,null,{"$f":"IF(AQ21>AQ22,2,0)","v":0},null,null,null,null,null,null,null,null,null,null,null,null,null,null,null,{"$f":"'Saisie des joueurs'!L19","v":0},null,null,null,{"$f":"IF(BK21>BK22,2,0)","v":0},null,null,null,null,null,null,null,null,null,null,null,null,{"$f":"IF(BK21=BK22,\"\",IF(BK21>BK22,BJ21,BJ22))","v":""},null,null,null,{"$f":"IF(CB21>CB22,2,0)","v":0}]
[null,null,null,null,null,null,null,null,"Format Billard",{"$f":"IF(D25=D26,\"\",IF(D25>D26,C25,C26))","v":""},null,null,null,{"$f":"IF(K22>K21,2,0)","v":0},null,null,null,null,null,null,null,null,null,"Format Billard",{"$f":"IF(K21=K22,\"\",IF(K21>K22,J21,J22))","v":""},null,null,null,{"$f":"IF(Z22>Z21,2,0)","v":0},null,null,null,null,null,null,null,null,null,null,null,"Format Billard",{"$f":"IF(Z21=Z22,\"\",IF(Z21>Z22,Y21,Y22))","v":""},null,null,null,{"$f":"IF(AQ22>AQ21,2,0)","v":0},null,null,null,null,null,null,null,null,null,null,null,null,null,null,"Format Billard",{"$f":"IF(AQ21=AQ22,\"\",IF(AQ21>AQ22,AP21,AP22))","v":""},null,null,null,{"$f":"IF(BK22>BK21,2,0)","v":0},null,null,null,null,null,null,null,null,null,null,null,"Format Billard",{"$f":"IF(BR41=BR42,\"\",IF(BR41>BR42,BQ41,BQ42))","v":""},null,null,null,{"$f":"IF(CB22>CB21,2,0)","v":0}]
[null,"J 23","ELIMINATOIRE 1",null,null,null,null,null,null,null,{"$f":"IF(D25=D26,\"\",IF(D25<D26,C25,C26))","v":""},null,null,null,null,null,"ELIMINATOIRE 1",null,null,null,null,null,null,null,null,{"$f":"IF(S25=S26,\"\",IF(S25<S26,R25,R26))","v":""},null,null,null,null,null,null,null,"ELIMINATOIRE 2",null,null,null,null,null,null,null,null,{"$f":"IF(AJ25=AJ26,\"\",IF(AJ25<AJ26,AI25,AI26))","v":""},null,null,null,null,null,null,null,null,"ELIMINATOIRE 3",null,null,null,null,null,null,null,null,null,null,{"$f":"IF(BB25>BB26,BA25,BA26)","v":""},null,null,null,null,"REPÊCHAGE",null,null,null,null,null,null,null,null,null,null,null,{"$f":"IF(BR25=BR26,\"\",IF(BR25<BR26,BQ25,BQ26))","v":""}]
[null,"Match 2","JOUEUR","Pts","Rep","Ser",null,null,null,null,null,null,null,null,null,null,"Match 10","JOUEUR","Pts","Rep","Ser",null,null,null,null,null,null,null,null,null,null,null,null,"Match 18","JOUEUR","Pts","Rep","Ser",null,null,null,null,null,null,null,null,null,null,null,null,null,"Match 26","JOUEUR","Pts","Rep","Ser",null,null,null,null,null,null,null,null,null,null,null,"Match 34","JOUEUR","Pts","Rep","Ser"]
[null,null,{"$f":"'Saisie des joueurs'!L40","v":0},null,null,null,{"$f":"IF(D25>D26,2,0)","v":0},null,null,null,null,null,null,null,null,null,null,{"$f":"IF(D25=D26,\"\",IF(D25<D26,C25,C26))","v":""},null,null,null,{"$f":"IF(S25>S26,2,0)","v":0},null,null,null,null,null,null,null,null,null,null,null,null,{"$f":"IF(S25=S26,\"\",IF(S25>S26,R25,R26))","v":""},null,null,null,{"$f":"IF(AJ25>AJ26,2,0)","v":0},null,null,null,null,null,null,null,null,null,null,null,null,null,{"$f":"IF(AJ25=AJ26,\"\",IF(AJ25>AJ26,AI25,AI26))","v":""},null,null,null,{"$f":"IF(BB25>BB26,2,0)","v":0},null,null,null,null,null,null,null,null,null,null,null,{"$f":"IF(BB25=BB26,\"\",IF(BB25>BB26,BA25,BA26))","v":""},null,null,null,{"$f":"IF(BR25>BR26,2,0)","v":0}]
[null,"Format Billard",{"$f":"'Saisie des joueurs'!L35","v":0},null,null,null,{"$f":"IF(D26>D25,2,0)","v":0},null,null,null,null,null,null,null,null,null,"Format Billard",{"$f":"IF(K13=K14,\"\",IF(K13<K14,J13,J14))","v":""},null,null,null,{"$f":"IF(S26>S25,2,0)","v":0},null,null,null,null,null,null,null,null,null,null,null,"Format Billard",{"$f":"IF(Z29=Z30,\"\",IF(Z29<Z30,Y29,Y30))","v":""},null,null,null,{"$f":"IF(AJ26>AJ25,2,0)","v":0},null,null,null,null,null,null,null,null,null,null,null,null,"Format Billard",{"$f":"IF(AQ37=AQ38,\"\",IF(AQ37<AQ38,AP37,AP38))","v":""},null,null,null,{"$f":"IF(BB26>BB25,2,0)","v":0},null,null,null,null,null,null,null,null,null,null,"Format Billard",{"$f":"IF(BK21=BK22,\"\",IF(BK21<BK22,BJ21,BJ22))","v":""},null,null,null,{"$f":"IF(BR26>BR25,2,0)","v":0}]
[null,null,"J 18",{"$f":"J21","v":0},null,null,null,null,"J 14","ELIMINATOIRE 1",null,null,null,null,null,null,null,null,{"$f":"Y21","v":0},null,null,null,null,"J 11","ELIMINATOIRE 2",null,null,null,null,null,null,null,null,null,null,{"$f":"AP21","v":0},null,null,null,null,"J6","ELIMINATOIRE 3",null,null,null,null,null,null,null,null,null,null,null,{"$f":"IF(AQ21=AQ22,\"\",IF(AQ21>AQ22,AP21,AP22))","v":""},null,null,null,null,null,null,"J 1","ELIMINATOIRE 4",null,null,null,null,null,null,null,{"$f":"IF(BK21=BK22,\"\",IF(BK21>BK22,BJ21,BJ22))","v":""},null,null,null,null,null,null,null,"1/4 DE FINALE"]
[null,null,null,null,null,null,null,null,"Match 7","JOUEUR","Pts","Rep","Ser",null,null,null,null,null,null,null,null,null,null,"Match 15","JOUEUR","Pts","Rep","Ser",null,null,null,null,null,null,null,null,null,null,null,null,"Match 23","JOUEUR","Pts","Rep","Ser",null,null,null,null,null,null,null,null,null,null,null,null,null,null,null,"Match 31","JOUEUR","Pts","Rep","Ser",null,null,null,null,null,null,null,null,null,null,null,null,"Match 39","JOUEUR","Pts","Rep","Ser",null,null,null,null,null,null,null,null,null,null,null,"PHASE 8  DISTANCES 2"]
[null,null,null,null,null,null,null,null,null,{"$f":"'Saisie des joueurs'!L31","v":0},null,null,null,{"$f":"IF(K29>K30,2,0)","v":0},null,null,null,null,null,null,null,null,null,null,{"$f":"'Saisie des joueurs'!L28","v":0},null,null,null,{"$f":"IF(Z29>Z30,2,0)","v":0},null,null,null,null,null,null,null,null,null,null,null,null,{"$f":"'Saisie des joueurs'!L23","v":0},null,null,null,{"$f":"IF(AQ29>AQ30,2,0)","v":0},null,null,null,null,null,null,null,null,null,null,null,null,null,null,null,{"$f":"'Saisie des joueurs'!L18","v":0},null,null,null,{"$f":"IF(BK29>BK30,2,0)","v":0},null,null,null,null,null,null,null,null,null,null,null,null,{"$f":"IF(BK29=BK30,\"\",IF(BK29>BK30,BJ29,BJ30))","v":""},null,null,null,{"$f":"IF(CB29>CB30,2,0)","v":0}]
[null,null,null,null,null,null,null,null,"Format Billard",{"$f":"IF(D33=D34,\"\",IF(D33>D34,C33,C34))","v":""},null,null,null,{"$f":"IF(K30>K29,2,0)","v":0},null,null,null,null,null,null,null,null,null,"Format Billard",{"$f":"IF(K29=K30,\"\",IF(K29>K30,J29,J30))","v":""},null,null,null,{"$f":"IF(Z30>Z29,2,0)","v":0},null,null,null,null,null,null,null,null,null,null,null,"Format Billard",{"$f":"IF(Z29=Z30,\"\",IF(Z29>Z30,Y29,Y30))","v":""},null,null,null,{"$f":"IF(AQ30>AQ29,2,0)","v":0},null,null,null,null,null,null,null,null,null,null,null,null,null,null,"Format Billard",{"$f":"IF(AQ29=AQ30,\"\",IF(AQ29>AQ30,AP29,AP30))","v":""},null,null,null,{"$f":"IF(BK30>BK29,2,0)","v":0},null,null,null,null,null,null,null,null,null,null,null,"Format Billard",{"$f":"IF(BR17=BR18,\"\",IF(BR17>BR18,BQ17,BQ18))","v":""},null,null,null,{"$f":"IF(CB30>CB29,2,0)","v":0}]
[null,"J 22","ELIMINATOIRE 1",null,null,null,null,null,null,null,{"$f":"IF(D33=D34,\"\",IF(D33<D34,C33,C34))","v":""},null,null,null,null,null,"ELIMINATOIRE 1",null,null,null,null,null,null,null,null,{"$f":"IF(S33=S34,\"\",IF(S33<S34,R33,R34))","v":""},null,null,null,null,null,null,null,"ELIMINATOIRE 2",null,null,null,null,null,null,null,null,{"$f":"IF(AJ33=AJ34,\"\",IF(AJ33<AJ34,AI33,AI34))","v":""},null,null,null,null,null,null,null,null,"ELIMINATOIRE 3",null,null,null,null,null,null,null,null,null,null,{"$f":"IF(BB33>BB34,BA33,BA34)","v":""},null,null,null,null,"REPÊCHAGE",null,null,null,null,null,null,null,null,null,null,null,{"$f":"IF(BR33=BR34,\"\",IF(BR33<BR34,BQ33,BQ34))","v":""},null,null,null,null,null,"1/2 FINALE",null,null,null,null,null,null,null,"FINALE"]
[null,"Match 3","JOUEUR","Pts","Rep","Ser",null,null,null,null,null,null,null,null,null,null,"Match 11","JOUEUR","Pts","Rep","Ser",null,null,null,null,null,null,null,null,null,null,null,null,"Match 19","JOUEUR","Pts","Rep","Ser",null,null,null,null,null,null,null,null,null,null,null,null,null,"Match 27","JOUEUR","Pts","Rep","Ser",null,null,null,null,null,null,null,null,null,null,null,"Match 35","JOUEUR","Pts","Rep","Ser",null,null,null,null,null,null,null,null,null,null,null,null,null,"Match 42","JOUEUR","Pts","Rep","Ser",null,null,null,"Match 44","JOUEUR","Pts","Rep","Ser"]
[null,null,{"$f":"'Saisie des joueurs'!L39","v":0},null,null,null,{"$f":"IF(D33>D34,2,0)","v":0},null,null,null,null,null,null,null,null,null,null,{"$f":"IF(D33=D34,\"\",IF(D33<D34,C33,C34))","v":""},null,null,null,{"$f":"IF(S33>S34,2,0)","v":0},null,null,null,null,null,null,null,null,null,null,null,null,{"$f":"IF(S33=S34,\"\",IF(S33>S34,R33,R34))","v":""},null,null,null,{"$f":"IF(AJ33>AJ34,2,0)","v":0},null,null,null,null,null,null,null,null,null,null,null,null,null,{"$f":"IF(AJ33=AJ34,\"\",IF(AJ33>AJ34,AI33,AI34))","v":""},null,null,null,{"$f":"IF(BB33>BB34,2,0)","v":0},null,null,null,null,null,null,null,null,null,null,null,{"$f":"IF(BB33=BB34,\"\",IF(BB33>BB34,BA33,BA34))","v":""},null,null,null,{"$f":"IF(BR33>BR34,2,0)","v":0},null,null,null,null,null,null,null,null,null,null,null,null,null,{"$f":"IF(CB29=CB30,\"\",IF(CB29>CB30,CA29,CA30))","v":""},null,null,null,{"$f":"IF(CJ33>CJ34,2,0)","v":0},null,null,null,{"$f":"IF(CJ17=CJ18,\"\",IF(CJ17>CJ18,CI17,CI18))","v":""},null,null,null,{"$f":"IF(CR33>CR34,2,0)","v":0}]
[null,"Format Billard",{"$f":"'Saisie des joueurs'!L36","v":0},null,null,null,{"$f":"IF(D34>D33,2,0)","v":0},null,null,null,null,null,null,null,null,null,"Format Billard",{"$f":"IF(K37=K38,\"\",IF(K37<K38,J37,J38))","v":""},null,null,null,{"$f":"IF(S34>S33,2,0)","v":0},null,null,null,null,null,null,null,null,null,null,null,"Format Billard",{"$f":"IF(Z21=Z22,\"\",IF(Z21<Z22,Y21,Y22))","v":""},null,null,null,{"$f":"IF(AJ34>AJ33,2,0)","v":0},null,null,null,null,null,null,null,null,null,null,null,null,"Format Billard",{"$f":"IF(AQ13=AQ14,\"\",IF(AQ13<AQ14,AP13,AP14))","v":""},null,null,null,{"$f":"IF(BB34>BB33,2,0)","v":0},null,null,null,null,null,null,null,null,null,null,"Format Billard",{"$f":"IF(BK29=BK30,\"\",IF(BK29<BK30,BJ29,BJ30))","v":""},null,null,null,{"$f":"IF(BR34>BR33,2,0)","v":0},null,null,null,null,null,null,null,null,null,null,null,null,"Format Billard",{"$f":"IF(CB37=CB38,\"\",IF(CB37>CB38,CA37,CA38))","v":""},null,null,null,{"$f":"IF(CJ34>CJ33,2,0)","v":0},null,null,"Format Billard",{"$f":"IF(CJ33=CJ34,\"\",IF(CJ33>CJ34,CI33,CI34))","v":""},null,null,null,{"$f":"IF(CR34>CR33,2,0)","v":0}]
[null,null,"J 19",{"$f":"J29","v":0},null,null,null,null,"J 13","ELIMINATOIRE 1",null,null,null,null,null,null,null,null,{"$f":"Y29","v":0},null,null,null,null,"J 12","ELIMINATOIRE 2",null,null,null,null,null,null,null,null,null,null,{"$f":"AP29","v":0},null,null,null,null,"J5","ELIMINATOIRE 3",null,null,null,null,null,null,null,null,null,null,null,{"$f":"IF(AQ29=AQ30,\"\",IF(AQ29>AQ30,AP29,AP30))","v":""},null,null,null,null,null,null,"J 4","ELIMINATOIRE 4",null,null,null,null,null,null,null,{"$f":"IF(BK29=BK30,\"\",IF(BK29>BK30,BJ29,BJ30))","v":""},null,null,null,null,null,null,null,"1/4 DE FINALE",null,null,null,null,null,null,null,null,null,{"$f":"IF(CB29=CB30,\"\",IF(CB29<CB30,CA29,CA30))","v":""},null,null,null,null,null,null,null,{"$f":"IF(CB21=CB22,\"\",IF(CB21<CB22,CA21,CA22))","v":""}]
[null,null,null,null,null,null,null,null,"Match 8","JOUEUR","Pts","Rep","Ser",null,null,null,null,null,null,null,null,null,null,"Match 16","JOUEUR","Pts","Rep","Ser",null,null,null,null,null,null,null,null,null,null,null,null,"Match 24","JOUEUR","Pts","Rep","Ser",null,null,null,null,null,null,null,null,null,null,null,null,null,null,null,"Match 32","JOUEUR","Pts","Rep","Ser",null,null,null,null,null,null,null,null,null,null,null,null,"Match 40","JOUEUR","Pts","Rep","Ser"]
[null,null,null,null,null,null,null,null,null,{"$f":"'Saisie des joueurs'!L30","v":0},null,null,null,{"$f":"IF(K37>K38,2,0)","v":0},null,null,null,null,null,null,null,null,null,null,{"$f":"'Saisie des joueurs'!L29","v":0},null,null,null,{"$f":"IF(Z37>Z38,2,0)","v":0},null,null,null,null,null,null,null,null,null,null,null,null,{"$f":"'Saisie des joueurs'!L22","v":0},null,null,null,{"$f":"IF(AQ37>AQ38,2,0)","v":0},null,null,null,null,null,null,null,null,null,null,null,null,null,null,null,{"$f":"'Saisie des joueurs'!L21","v":0},null,null,null,{"$f":"IF(BK37>BK38,2,0)","v":0},null,null,null,null,null,null,null,null,null,null,null,null,{"$f":"IF(BK37=BK38,\"\",IF(BK37>BK38,BJ37,BJ38))","v":""},null,null,null,{"$f":"IF(CB37>CB38,2,0)","v":0}]
[null,null,null,null,null,null,null,null,"Format Billard",{"$f":"IF(D41=D42,\"\",IF(D41>D42,C41,C42))","v":""},null,null,null,{"$f":"IF(K38>K37,2,0)","v":0},null,null,null,null,null,null,null,null,null,"Format Billard",{"$f":"IF(K37=K38,\"\",IF(K37>K38,J37,J38))","v":""},null,null,null,{"$f":"IF(Z38>Z37,2,0)","v":0},null,null,null,null,null,null,null,null,null,null,null,"Format Billard",{"$f":"IF(Z37=Z38,\"\",IF(Z37>Z38,Y37,Y38))","v":""},null,null,null,{"$f":"IF(AQ38>AQ37,2,0)","v":0},null,null,null,null,null,null,null,null,null,null,null,null,null,null,"Format Billard",{"$f":"IF(AQ37=AQ38,\"\",IF(AQ37>AQ38,AP37,AP38))","v":""},null,null,null,{"$f":"IF(BK38>BK37,2,0)","v":0},null,null,null,null,null,null,null,null,null,null,null,"Format Billard",{"$f":"IF(BR25=BR26,\"\",IF(BR25>BR26,BQ25,BQ26))","v":""},null,null,null,{"$f":"IF(CB38>CB37,2,0)","v":0}]
[null,"J 21","ELIMINATOIRE 1",null,null,null,null,null,null,null,{"$f":"IF(D41=D42,\"\",IF(D41<D42,C41,C42))","v":""},null,null,null,null,null,"ELIMINATOIRE 1",null,null,null,null,null,null,null,null,{"$f":"IF(S41=S42,\"\",IF(S41<S42,R41,R42))","v":""},null,null,null,null,null,null,null,"ELIMINATOIRE 2",null,null,null,null,null,null,null,null,{"$f":"IF(AJ41=AJ42,\"\",IF(AJ41<AJ42,AI41,AI42))","v":""},null,null,null,null,null,null,null,null,"ELIMINATOIRE 3",null,null,null,null,null,null,null,null,null,null,{"$f":"IF(BB41>BB42,BA41,BA42)","v":""},null,null,null,null,"REPÊCHAGE",null,null,null,null,null,null,null,null,null,null,null,{"$f":"IF(BR41=BR42,\"\",IF(BR41<BR42,BQ41,BQ42))","v":""}]
[null,"Match 4","JOUEUR","Pts","Rep","Ser",null,null,null,null,null,null,null,null,null,null,"Match 12","JOUEUR","Pts","Rep","Ser",null,null,null,null,null,null,null,null,null,null,null,null,"Match 20","JOUEUR","Pts","Rep","Ser",null,null,null,null,null,null,null,null,null,null,null,null,null,"Match 28","JOUEUR","Pts","Rep","Ser",null,null,null,null,null,null,null,null,null,null,null,"Match 36","JOUEUR","Pts","Rep","Ser"]
[null,null,{"$f":"'Saisie des joueurs'!L38","v":0},null,null,null,{"$f":"IF(D41>D42,2,0)","v":0},null,null,null,null,null,null,null,null,null,null,{"$f":"IF(D41=D42,\"\",IF(D41<D42,C41,C42))","v":""},null,null,null,{"$f":"IF(S41>S42,2,0)","v":0},null,null,null,null,null,null,null,null,null,null,null,null,{"$f":"IF(S41=S42,\"\",IF(S41>S42,R41,R42))","v":""},null,null,null,{"$f":"IF(AJ41>AJ42,2,0)","v":0},null,null,null,null,null,null,null,null,null,null,null,null,null,{"$f":"IF(AJ41=AJ42,\"\",IF(AJ41>AJ42,AI41,AI42))","v":""},null,null,null,{"$f":"IF(BB41>BB42,2,0)","v":0},null,null,null,null,null,null,null,null,null,null,null,{"$f":"IF(BB41=BB42,\"\",IF(BB41>BB42,BA41,BA42))","v":""},null,null,null,{"$f":"IF(BR41>BR42,2,0)","v":0}]
[null,"Format Billard",{"$f":"'Saisie des joueurs'!L37","v":0},null,null,null,{"$f":"IF(D42>D41,2,0)","v":0},null,null,null,null,null,null,null,null,null,"Format Billard",{"$f":"IF(K29=K30,\"\",IF(K29<K30,J29,J30))","v":""},null,null,null,{"$f":"IF(S42>S41,2,0)","v":0},null,null,null,null,null,null,null,null,null,null,null,"Format Billard",{"$f":"IF(Z13=Z14,\"\",IF(Z13<Z14,Y13,Y14))","v":""},null,null,null,{"$f":"IF(AJ42>AJ41,2,0)","v":0},null,null,null,null,null,null,null,null,null,null,null,null,"Format Billard",{"$f":"IF(AQ21=AQ22,\"\",IF(AQ21<AQ22,AP21,AP22))","v":""},null,null,null,{"$f":"IF(BB42>BB41,2,0)","v":0},null,null,null,null,null,null,null,null,null,null,"Format Billard",{"$f":"IF(BK37=BK38,\"\",IF(BK37<BK38,BJ37,BJ38))","v":""},null,null,null,{"$f":"IF(BR42>BR41,2,0)","v":0}]
[null,null,"J 20",{"$f":"J37","v":0},null,null,null,null,null,null,null,null,null,null,null,null,null,null,{"$f":"Y37","v":0},null,null,null,null,null,null,null,null,null,null,null,null,null,null,null,null,{"$f":"AP37","v":0},null,null,null,null,null,null,null,null,null,null,null,null,null,null,null,null,null,{"$f":"IF(AQ37=AQ38,\"\",IF(AQ37>AQ38,AP37,AP38))","v":""},null,null,null,null,null,null,null,null,null,null,null,null,null,null,null,{"$f":"IF(BK37=BK38,\"\",IF(BK37>BK38,BJ37,BJ38))","v":""}]
[]
[null,{"$f":"'Saisie des joueurs'!D11","v":0},null,null,{"$f":"'Saisie des joueurs'!$D$7","v":"T1"},{"$f":"'Saisie des joueurs'!$D$9","v":"3 BANDES"},null,null,null,{"$f":"'Saisie des joueurs'!G11","v":0},{"$f":"'Saisie des joueurs'!D5","v":"00:00:00"},null,null,null,null,null,"Dans ces matchs, il n'y a pas d'égalité de scores entre les joueurs.\n Appliquer la règle des prolongations définie dans le Règlement Sportif Art.4-03… Dans les points saisis sur cette feuille, mettre 1 point de plus sur le score du joueur remportant les prolongations pour les départager.\n\nPar contre sur la saisie FFB, mettre le même nombre de points aux deux joueurs, mais mettre 2 points gagnants au 1er et 0 point au 2ème et forcer ce choix.",null,null,null,null,null,null,null,null,null,"Si égalité de points : prolongations.\nIL NE PEUT Y AVOIR DE MATCH NUL.",null,null,null,null,null,null,null,null,null,null,null,null,null,"Rappel : Format de Billard : mettre 3,10\nsi match joué sur ces billards"]
[null,null,null,null,null,null,null,null,null,null,null,null,null,null,null,null,null,null,null,null,null,null,null,null,null,null,null,null,null,null,null,null,null,null,null,null,null,null,null,null,null,null,null,null,null,null,null,null,null,null,null,null,null,null,null,null,null,null,null,null,null,null,null,null,null,null,null,null,null,null,null,null,null,null,null,null,null,"Rappel : Format de Billard : mettre 3,10\nsi match joué sur ces billards"]
[null,null,"™A.FERHAT ™ C.PEREZ",null,null,null,null,null,null,null,null,null,null,null,null,null,null,null,null,null,null,null,null,null,null,null,"Distance non limitée au 3B."]
[null,null,null,null,null,null,null,null,null,null,null,null,null,null,null,null,null,null,null,null,null,null,null,null,null,null,"Joueur A débute, une seule reprise sur point de départ."]
[null,"SI JOUEUR EST \"ABSENT\", METTRE 1 POINT AU JOUEUR QUI EST SUR LE BILLARD POUR FAIRE AVANCER LE GRAPHIQUE.\n NE PAS SAISIR CES MATCHS NON JOUES.",null,null,null,null,null,null,null,null,null,null,null,null,null,null,null,null,null,null,null,null,null,null,null,null,"Joueur B débute, une seule reprise sur point de départ."]
[null,null,null,null,null,null,null,null,null,null,null,null,null,null,null,null,null,null,null,null,null,null,null,null,null,null,"Si égalité nouvelle prolongation selon le même principe..."]
[null,null,null,null,null,null,null,null,null,null,null,null,null,null,null,null,null,null,null,null,null,null,null,null,null,null,"Jusqu'à élimination d'un joueur."]

{"sheet":"Heures convocations 24J","index":15,"n_rows":40,"n_cols":9,"rows_kept":40,"cut":false,"hidden":false,"merged":[[0,0,0,6],[3,0,3,4],[5,3,5,5],[7,0,7,6],[10,3,10,6],[8,0,8,6],[11,2,12,2],[11,0,25,0],[11,1,12,1],[26,0,36,0],[26,1,27,1],[26,2,27,2],[31,2,32,2]]}
["LIGUE MEDITERRANEENNE DE BILLARD"]
[]
[]
["TOURNOI HOMOLOGUE  24 JOUEURS",null,null,null,null,{"$f":"'Saisie des joueurs'!D7","v":"T1"},{"$f":"'Saisie des joueurs'!D9","v":"3 BANDES"}]
[]
[null,null,null,{"$f":"'Saisie des joueurs'!D11","v":0},null,null,{"$f":"'Saisie des joueurs'!D5","v":"00:00:00"},null," "]
[]
["HORAIRES DES CONVOCATIONS JOUEURS ET ARBITRES"]
["LES NOMS DES ARBITRES CONVOQUES SONT EN ITALIQUE"]
[]
["JOUR","N° TOUR HORAIRE ","HEURE CONVOC","NOMS"]
["SAMEDI",1,"8 H 30",{"$f":"'GRAPHIQUE 24J'!C17","v":0},{"$f":"'GRAPHIQUE 24J'!C25","v":0},{"$f":"'GRAPHIQUE 24J'!C33","v":0},{"$f":"'GRAPHIQUE 24J'!C41","v":0}]
[null,null,null,{"$f":"'GRAPHIQUE 24J'!C18","v":0},{"$f":"'GRAPHIQUE 24J'!C26","v":0},{"$f":"'GRAPHIQUE 24J'!C34","v":0},{"$f":"'GRAPHIQUE 24J'!C42","v":0}]
[null,"09 H 00","8 H 45",{"$f":"'GRAPHIQUE 24J'!J13","v":0},{"$f":"'GRAPHIQUE 24J'!J21","v":0},{"$f":"'GRAPHIQUE 24J'!J29","v":0},{"$f":"'GRAPHIQUE 24J'!J37","v":0}]
[null,2]
[null,"10 H 15"]
[null,3,"11 H 15",{"$f":"'GRAPHIQUE 24J'!Y13","v":0},{"$f":"'GRAPHIQUE 24J'!Y21","v":0},{"$f":"'GRAPHIQUE 24J'!Y29","v":0},{"$f":"'GRAPHIQUE 24J'!Y37","v":0}]
[null,"11 H 30"]
[null,4]
[null,"13 H 00"]
[null,5,"14 H 15",{"$f":"'GRAPHIQUE 24J'!AP13","v":0},{"$f":"'GRAPHIQUE 24J'!AP21","v":0},{"$f":"'GRAPHIQUE 24J'!AP29","v":0},{"$f":"'GRAPHIQUE 24J'!AP37","v":0}]
[null,"14 H 30"]
[null,6]
[null,"16 H 00"]
[null,7]
[null,"17 H 30"]
["DIMANCHE",8,"8 H 30",{"$f":"'GRAPHIQUE 24J'!BJ13","v":0},{"$f":"'GRAPHIQUE 24J'!BJ21","v":0},{"$f":"'GRAPHIQUE 24J'!BJ29","v":0},{"$f":"'GRAPHIQUE 24J'!BJ37","v":0}]
[null,null,null,"GAGNANT MATCH 21","GAGNANT MATCH 22","GAGNANT MATCH 23","GAGNANT MATCH 24"]
[null,"09 H 00","8 H 45","GAGNANT MATCH 25","GAGNANT MATCH 26","GAGNANT MATCH 27","GAGNANT MATCH 28"]
[null,9]
[]
[null,10]
[]
[null,11]
[]
[null,12]
[]
[]
[]
[null,null,"™A.FERHAT ™ C.PEREZ"]